Workbook

Sheet vstupy
A1: Obecné
A2: diskont | B2: 2
B3: =IF(B2=1,5%,IF(B2=2,7%,IF(B2=3,10%,8%))) -> 0.07
A4: růst cen služeb | B4: 0.02
A5: růst ceny energií | B5: 0.02
A6: výkon | B6: 1200
A7: kVS | B7: =(1037+1043)/(1088+1096) -> 0.9523809524
A8: kTm | B8: =7500/B12 -> 0.855578371
A9: F PXE CZ BL CAL-17 | B9: 23.9
A10: kurz CZK/EUR | B10: 27.02
A11: kurz CZK/USD | B11: 23.899
A12: hodin v roce | B12: =(8760*4+24)/4 -> 8766
A13: daň z příjmu | B13: 0.19
A14: odpisování | B14: 1
A15: doba odepisování | B15: 20
A16: životnost | B16: 60
A17: Investice
A18: overnight cost | B18: 5500
A19: zahájení provozu | B19: 2035
A20: rok | B20: 2016 | C20: 2017 | D20: 2018 | E20: 2019 | F20: 2020 | G20: 2021 | H20: 2022 | I20: 2023 | J20: 2024 | K20: 2025 | L20: 2026 | M20: 2027 | N20: 2028 | O20: 2029 | P20: 2030 | Q20: 2031 | R20: 2032 | S20: 2033 | T20: 2034
A21: podíl | B21: 0.002 | C21: 0.003 | D21: 0.005 | E21: 0.01 | F21: 0.02 | G21: 0.03 | H21: 0.04 | I21: 0.05 | J21: 0.07 | K21: 0.1 | L21: 0.12 | M21: 0.15 | N21: 0.15 | O21: 0.13 | P21: 0.05 | Q21: 0.04 | R21: 0.02 | S21: 0.005 | T21: 0.005
A22: nominále | B22: =$B$18*$B$6*B21*$B$11*1000 -> 315466800 | C22: =$B$18*$B$6*C21*$B$11*1000 -> 473200200 | D22: 788667000 | E22: 1577334000 | F22: 3154668000 | G22: 4732002000 | H22: 6309336000 | I22: 7886670000 | J22: 1.1041338e+10 | K22: 15773340000 | L22: 18928008000 | M22: 23660010000 | N22: 23660010000 | O22: 20505342000 | P22: 7886670000 | Q22: 6309336000 | R22: 3154668000 | S22: 788667000 | T22: 788667000
A24: Provozní náklady
A25: přírůstkové netto | B25: 9.33
A28: Vytápění
A29: uvažovat teplo? | B29: 2
A30: roční dodávka tepla | B30: 8
A31: investice | B31: 25000000000
A32: roční snížení výroby elektřiny | B32: 288515
A33: roční provozní náklady | B33: 800000000
A34: cena tepla | B34: 550

Sheet LCOE_vypocet
A1: WNA
A2: diskont | B2: LCOE2015 (SVK) | E2: O&M + fuel
A3: 0.07 | B3: 84 | C3: =vstupy!$B$11*B3 -> 2007.516 | E3: 696.7394096 | F3: =E3/vstupy!$B$10 -> 25.78606253
D5: 772.2301817
A9: Rok | B9: 0 | C9: 1 | D9: 2 | E9: 3 | F9: 4 | G9: 5 | H9: 6 | I9: 7 | J9: 8 | K9: 9 | L9: 10 | M9: 11 | N9: 12 | O9: 13 | P9: 14 | Q9: 15 | R9: 16 | S9: 17 | T9: 18 | U9: 19 | V9: 20 | W9: 21 | X9: 22 | Y9: 23 | Z9: 24 | AA9: 25 | AB9: 26 | AC9: 27 | AD9: 28 | AE9: 29 | AF9: 30 | AG9: 31 | AH9: 32 | AI9: 33 | AJ9: 34 | AK9: 35 | AL9: 36 | AM9: 37 | AN9: 38 | AO9: 39 | AP9: 40 | AQ9: 41 | AR9: 42 | AS9: 43 | AT9: 44 | AU9: 45 | AV9: 46 | AW9: 47 | AX9: 48 | AY9: 49 | AZ9: 50 | BA9: 51 | BB9: 52 | BC9: 53 | BD9: 54 | BE9: 55 | BF9: 56 | BG9: 57 | BH9: 58 | BI9: 59 | BJ9: 60
A10: El. energie netto | B10: 0 | C10: =vstupy!$B$12*vstupy!$B$6*vstupy!$B$7*vstupy!$B$8 -> 8571428.571 | D10: =vstupy!$B$12*vstupy!$B$6*vstupy!$B$7*vstupy!$B$8 -> 8571428.571 | E10: =vstupy!$B$12*vstupy!$B$6*vstupy!$B$7*vstupy!$B$8 -> 8571428.571 | F10: =vstupy!$B$12*vstupy!$B$6*vstupy!$B$7*vstupy!$B$8 -> 8571428.571 | G10: =vstupy!$B$12*vstupy!$B$6*vstupy!$B$7*vstupy!$B$8 -> 8571428.571 | H10: =vstupy!$B$12*vstupy!$B$6*vstupy!$B$7*vstupy!$B$8 -> 8571428.571 | I10: =vstupy!$B$12*vstupy!$B$6*vstupy!$B$7*vstupy!$B$8 -> 8571428.571 | J10: =vstupy!$B$12*vstupy!$B$6*vstupy!$B$7*vstupy!$B$8 -> 8571428.571 | K10: =vstupy!$B$12*vstupy!$B$6*vstupy!$B$7*vstupy!$B$8 -> 8571428.571 | L10: =vstupy!$B$12*vstupy!$B$6*vstupy!$B$7*vstupy!$B$8 -> 8571428.571 | M10: =vstupy!$B$12*vstupy!$B$6*vstupy!$B$7*vstupy!$B$8 -> 8571428.571 | N10: =vstupy!$B$12*vstupy!$B$6*vstupy!$B$7*vstupy!$B$8 -> 8571428.571 | O10: =vstupy!$B$12*vstupy!$B$6*vstupy!$B$7*vstupy!$B$8 -> 8571428.571 | P10: =vstupy!$B$12*vstupy!$B$6*vstupy!$B$7*vstupy!$B$8 -> 8571428.571 | Q10: =vstupy!$B$12*vstupy!$B$6*vstupy!$B$7*vstupy!$B$8 -> 8571428.571 | R10: =vstupy!$B$12*vstupy!$B$6*vstupy!$B$7*vstupy!$B$8 -> 8571428.571 | S10: =vstupy!$B$12*vstupy!$B$6*vstupy!$B$7*vstupy!$B$8 -> 8571428.571 | T10: =vstupy!$B$12*vstupy!$B$6*vstupy!$B$7*vstupy!$B$8 -> 8571428.571 | U10: =vstupy!$B$12*vstupy!$B$6*vstupy!$B$7*vstupy!$B$8 -> 8571428.571 | V10: =vstupy!$B$12*vstupy!$B$6*vstupy!$B$7*vstupy!$B$8 -> 8571428.571 | W10: =vstupy!$B$12*vstupy!$B$6*vstupy!$B$7*vstupy!$B$8 -> 8571428.571 | X10: =vstupy!$B$12*vstupy!$B$6*vstupy!$B$7*vstupy!$B$8 -> 8571428.571 | Y10: =vstupy!$B$12*vstupy!$B$6*vstupy!$B$7*vstupy!$B$8 -> 8571428.571 | Z10: =vstupy!$B$12*vstupy!$B$6*vstupy!$B$7*vstupy!$B$8 -> 8571428.571 | AA10: =vstupy!$B$12*vstupy!$B$6*vstupy!$B$7*vstupy!$B$8 -> 8571428.571 | AB10: =vstupy!$B$12*vstupy!$B$6*vstupy!$B$7*vstupy!$B$8 -> 8571428.571 | AC10: =vstupy!$B$12*vstupy!$B$6*vstupy!$B$7*vstupy!$B$8 -> 8571428.571 | AD10: =vstupy!$B$12*vstupy!$B$6*vstupy!$B$7*vstupy!$B$8 -> 8571428.571 | AE10: =vstupy!$B$12*vstupy!$B$6*vstupy!$B$7*vstupy!$B$8 -> 8571428.571 | AF10: =vstupy!$B$12*vstupy!$B$6*vstupy!$B$7*vstupy!$B$8 -> 8571428.571 | AG10: =vstupy!$B$12*vstupy!$B$6*vstupy!$B$7*vstupy!$B$8 -> 8571428.571 | AH10: =vstupy!$B$12*vstupy!$B$6*vstupy!$B$7*vstupy!$B$8 -> 8571428.571 | AI10: =vstupy!$B$12*vstupy!$B$6*vstupy!$B$7*vstupy!$B$8 -> 8571428.571 | AJ10: =vstupy!$B$12*vstupy!$B$6*vstupy!$B$7*vstupy!$B$8 -> 8571428.571 | AK10: =vstupy!$B$12*vstupy!$B$6*vstupy!$B$7*vstupy!$B$8 -> 8571428.571 | AL10: =vstupy!$B$12*vstupy!$B$6*vstupy!$B$7*vstupy!$B$8 -> 8571428.571 | AM10: =vstupy!$B$12*vstupy!$B$6*vstupy!$B$7*vstupy!$B$8 -> 8571428.571 | AN10: =vstupy!$B$12*vstupy!$B$6*vstupy!$B$7*vstupy!$B$8 -> 8571428.571 | AO10: =vstupy!$B$12*vstupy!$B$6*vstupy!$B$7*vstupy!$B$8 -> 8571428.571 | AP10: =vstupy!$B$12*vstupy!$B$6*vstupy!$B$7*vstupy!$B$8 -> 8571428.571 | AQ10: =vstupy!$B$12*vstupy!$B$6*vstupy!$B$7*vstupy!$B$8 -> 8571428.571 | AR10: =vstupy!$B$12*vstupy!$B$6*vstupy!$B$7*vstupy!$B$8 -> 8571428.571 | AS10: =vstupy!$B$12*vstupy!$B$6*vstupy!$B$7*vstupy!$B$8 -> 8571428.571 | AT10: =vstupy!$B$12*vstupy!$B$6*vstupy!$B$7*vstupy!$B$8 -> 8571428.571 | AU10: =vstupy!$B$12*vstupy!$B$6*vstupy!$B$7*vstupy!$B$8 -> 8571428.571 | AV10: =vstupy!$B$12*vstupy!$B$6*vstupy!$B$7*vstupy!$B$8 -> 8571428.571 | AW10: =vstupy!$B$12*vstupy!$B$6*vstupy!$B$7*vstupy!$B$8 -> 8571428.571 | AX10: =vstupy!$B$12*vstupy!$B$6*vstupy!$B$7*vstupy!$B$8 -> 8571428.571 | AY10: =vstupy!$B$12*vstupy!$B$6*vstupy!$B$7*vstupy!$B$8 -> 8571428.571 | AZ10: =vstupy!$B$12*vstupy!$B$6*vstupy!$B$7*vstupy!$B$8 -> 8571428.571 | BA10: =vstupy!$B$12*vstupy!$B$6*vstupy!$B$7*vstupy!$B$8 -> 8571428.571 | BB10: =vstupy!$B$12*vstupy!$B$6*vstupy!$B$7*vstupy!$B$8 -> 8571428.571 | BC10: =vstupy!$B$12*vstupy!$B$6*vstupy!$B$7*vstupy!$B$8 -> 8571428.571 | BD10: =vstupy!$B$12*vstupy!$B$6*vstupy!$B$7*vstupy!$B$8 -> 8571428.571 | BE10: =vstupy!$B$12*vstupy!$B$6*vstupy!$B$7*vstupy!$B$8 -> 8571428.571 | BF10: =vstupy!$B$12*vstupy!$B$6*vstupy!$B$7*vstupy!$B$8 -> 8571428.571 | BG10: =vstupy!$B$12*vstupy!$B$6*vstupy!$B$7*vstupy!$B$8 -> 8571428.571 | BH10: =vstupy!$B$12*vstupy!$B$6*vstupy!$B$7*vstupy!$B$8 -> 8571428.571 | BI10: =vstupy!$B$12*vstupy!$B$6*vstupy!$B$7*vstupy!$B$8 -> 8571428.571 | BJ10: =vstupy!$B$12*vstupy!$B$6*vstupy!$B$7*vstupy!$B$8 -> 8571428.571
A12: Investice | B12: =vstupy!B18*vstupy!B11*vstupy!B6*1000 -> 157733400000
A13: O&M+fuel | C13: =C10*$E$3 -> 5972052083 | D13: =D10*$E$3 -> 5972052083 | E13: =E10*$E$3 -> 5972052083 | F13: 5972052083 | G13: 5972052083 | H13: 5972052083 | I13: 5972052083 | J13: 5972052083 | K13: 5972052083 | L13: 5972052083 | M13: 5972052083 | N13: 5972052083 | O13: 5972052083 | P13: 5972052083 | Q13: 5972052083 | R13: 5972052083 | S13: 5972052083 | T13: 5972052083 | U13: 5972052083 | V13: 5972052083 | W13: 5972052083 | X13: 5972052083 | Y13: 5972052083 | Z13: 5972052083 | AA13: 5972052083 | AB13: 5972052083 | AC13: 5972052083 | AD13: 5972052083 | AE13: 5972052083 | AF13: 5972052083 | AG13: 5972052083 | AH13: 5972052083 | AI13: 5972052083 | AJ13: 5972052083 | AK13: 5972052083 | AL13: 5972052083 | AM13: 5972052083 | AN13: 5972052083 | AO13: 5972052083 | AP13: 5972052083 | AQ13: 5972052083 | AR13: 5972052083 | AS13: 5972052083 | AT13: 5972052083 | AU13: 5972052083 | AV13: 5972052083 | AW13: 5972052083 | AX13: 5972052083 | AY13: 5972052083 | AZ13: 5972052083 | BA13: 5972052083 | BB13: 5972052083 | BC13: 5972052083 | BD13: 5972052083 | BE13: 5972052083 | BF13: 5972052083 | BG13: 5972052083 | BH13: 5972052083 | BI13: 5972052083 | BJ13: 5972052083
A14: Výdaje | B14: =B13+B12 -> 157733400000 | C14: =C13+C12 -> 5972052083 | D14: 5972052083 | E14: 5972052083 | F14: 5972052083 | G14: 5972052083 | H14: 5972052083 | I14: 5972052083 | J14: 5972052083 | K14: 5972052083 | L14: 5972052083 | M14: 5972052083 | N14: 5972052083 | O14: 5972052083 | P14: 5972052083 | Q14: 5972052083 | R14: 5972052083 | S14: 5972052083 | T14: 5972052083 | U14: 5972052083 | V14: 5972052083 | W14: 5972052083 | X14: 5972052083 | Y14: 5972052083 | Z14: 5972052083 | AA14: 5972052083 | AB14: 5972052083 | AC14: 5972052083 | AD14: 5972052083 | AE14: 5972052083 | AF14: 5972052083 | AG14: 5972052083 | AH14: 5972052083 | AI14: 5972052083 | AJ14: 5972052083 | AK14: 5972052083 | AL14: 5972052083 | AM14: 5972052083 | AN14: 5972052083 | AO14: 5972052083 | AP14: 5972052083 | AQ14: 5972052083 | AR14: 5972052083 | AS14: 5972052083 | AT14: 5972052083 | AU14: 5972052083 | AV14: 5972052083 | AW14: 5972052083 | AX14: 5972052083 | AY14: 5972052083 | AZ14: 5972052083 | BA14: 5972052083 | BB14: 5972052083 | BC14: 5972052083 | BD14: 5972052083 | BE14: 5972052083 | BF14: 5972052083 | BG14: 5972052083 | BH14: 5972052083 | BI14: 5972052083 | BJ14: 5972052083
A16: Tržby za elektřinu | B16: 0 | C16: =C10*vstupy!$B$9*vstupy!$B$10*(1+vstupy!$B$5)^C9 -> 5645944800 | D16: =D10*vstupy!$B$9*vstupy!$B$10*(1+vstupy!$B$5)^D9 -> 5758863696 | E16: =E10*vstupy!$B$9*vstupy!$B$10*(1+vstupy!$B$5)^E9 -> 5874040970 | F16: =F10*vstupy!$B$9*vstupy!$B$10*(1+vstupy!$B$5)^F9 -> 5991521789 | G16: =G10*vstupy!$B$9*vstupy!$B$10*(1+vstupy!$B$5)^G9 -> 6111352225 | H16: =H10*vstupy!$B$9*vstupy!$B$10*(1+vstupy!$B$5)^H9 -> 6233579270 | I16: =I10*vstupy!$B$9*vstupy!$B$10*(1+vstupy!$B$5)^I9 -> 6358250855 | J16: =J10*vstupy!$B$9*vstupy!$B$10*(1+vstupy!$B$5)^J9 -> 6485415872 | K16: =K10*vstupy!$B$9*vstupy!$B$10*(1+vstupy!$B$5)^K9 -> 6615124190 | L16: =L10*vstupy!$B$9*vstupy!$B$10*(1+vstupy!$B$5)^L9 -> 6747426673 | M16: =M10*vstupy!$B$9*vstupy!$B$10*(1+vstupy!$B$5)^M9 -> 6882375207 | N16: =N10*vstupy!$B$9*vstupy!$B$10*(1+vstupy!$B$5)^N9 -> 7020022711 | O16: =O10*vstupy!$B$9*vstupy!$B$10*(1+vstupy!$B$5)^O9 -> 7160423165 | P16: =P10*vstupy!$B$9*vstupy!$B$10*(1+vstupy!$B$5)^P9 -> 7303631628 | Q16: =Q10*vstupy!$B$9*vstupy!$B$10*(1+vstupy!$B$5)^Q9 -> 7449704261 | R16: =R10*vstupy!$B$9*vstupy!$B$10*(1+vstupy!$B$5)^R9 -> 7598698346 | S16: =S10*vstupy!$B$9*vstupy!$B$10*(1+vstupy!$B$5)^S9 -> 7750672313 | T16: =T10*vstupy!$B$9*vstupy!$B$10*(1+vstupy!$B$5)^T9 -> 7905685759 | U16: =U10*vstupy!$B$9*vstupy!$B$10*(1+vstupy!$B$5)^U9 -> 8063799475 | V16: =V10*vstupy!$B$9*vstupy!$B$10*(1+vstupy!$B$5)^V9 -> 8225075464 | W16: =W10*vstupy!$B$9*vstupy!$B$10*(1+vstupy!$B$5)^W9 -> 8389576973 | X16: =X10*vstupy!$B$9*vstupy!$B$10*(1+vstupy!$B$5)^X9 -> 8557368513 | Y16: =Y10*vstupy!$B$9*vstupy!$B$10*(1+vstupy!$B$5)^Y9 -> 8728515883 | Z16: =Z10*vstupy!$B$9*vstupy!$B$10*(1+vstupy!$B$5)^Z9 -> 8903086201 | AA16: =AA10*vstupy!$B$9*vstupy!$B$10*(1+vstupy!$B$5)^AA9 -> 9081147925 | AB16: =AB10*vstupy!$B$9*vstupy!$B$10*(1+vstupy!$B$5)^AB9 -> 9262770883 | AC16: =AC10*vstupy!$B$9*vstupy!$B$10*(1+vstupy!$B$5)^AC9 -> 9448026301 | AD16: =AD10*vstupy!$B$9*vstupy!$B$10*(1+vstupy!$B$5)^AD9 -> 9636986827 | AE16: =AE10*vstupy!$B$9*vstupy!$B$10*(1+vstupy!$B$5)^AE9 -> 9829726564 | AF16: =AF10*vstupy!$B$9*vstupy!$B$10*(1+vstupy!$B$5)^AF9 -> 1.002632109e+10 | AG16: =AG10*vstupy!$B$9*vstupy!$B$10*(1+vstupy!$B$5)^AG9 -> 1.022684752e+10 | AH16: =AH10*vstupy!$B$9*vstupy!$B$10*(1+vstupy!$B$5)^AH9 -> 1.043138447e+10 | AI16: =AI10*vstupy!$B$9*vstupy!$B$10*(1+vstupy!$B$5)^AI9 -> 1.064001216e+10 | AJ16: =AJ10*vstupy!$B$9*vstupy!$B$10*(1+vstupy!$B$5)^AJ9 -> 1.08528124e+10 | AK16: =AK10*vstupy!$B$9*vstupy!$B$10*(1+vstupy!$B$5)^AK9 -> 1.106986865e+10 | AL16: =AL10*vstupy!$B$9*vstupy!$B$10*(1+vstupy!$B$5)^AL9 -> 1.129126602e+10 | AM16: =AM10*vstupy!$B$9*vstupy!$B$10*(1+vstupy!$B$5)^AM9 -> 1.151709134e+10 | AN16: =AN10*vstupy!$B$9*vstupy!$B$10*(1+vstupy!$B$5)^AN9 -> 1.174743317e+10 | AO16: =AO10*vstupy!$B$9*vstupy!$B$10*(1+vstupy!$B$5)^AO9 -> 1.198238183e+10 | AP16: =AP10*vstupy!$B$9*vstupy!$B$10*(1+vstupy!$B$5)^AP9 -> 1.222202947e+10 | AQ16: =AQ10*vstupy!$B$9*vstupy!$B$10*(1+vstupy!$B$5)^AQ9 -> 1.246647006e+10 | AR16: =AR10*vstupy!$B$9*vstupy!$B$10*(1+vstupy!$B$5)^AR9 -> 1.271579946e+10 | AS16: =AS10*vstupy!$B$9*vstupy!$B$10*(1+vstupy!$B$5)^AS9 -> 1.297011545e+10 | AT16: =AT10*vstupy!$B$9*vstupy!$B$10*(1+vstupy!$B$5)^AT9 -> 1.322951776e+10 | AU16: =AU10*vstupy!$B$9*vstupy!$B$10*(1+vstupy!$B$5)^AU9 -> 1.349410811e+10 | AV16: =AV10*vstupy!$B$9*vstupy!$B$10*(1+vstupy!$B$5)^AV9 -> 1.376399027e+10 | AW16: =AW10*vstupy!$B$9*vstupy!$B$10*(1+vstupy!$B$5)^AW9 -> 1.403927008e+10 | AX16: =AX10*vstupy!$B$9*vstupy!$B$10*(1+vstupy!$B$5)^AX9 -> 1.432005548e+10 | AY16: =AY10*vstupy!$B$9*vstupy!$B$10*(1+vstupy!$B$5)^AY9 -> 1.460645659e+10 | AZ16: =AZ10*vstupy!$B$9*vstupy!$B$10*(1+vstupy!$B$5)^AZ9 -> 1.489858572e+10 | BA16: =BA10*vstupy!$B$9*vstupy!$B$10*(1+vstupy!$B$5)^BA9 -> 1.519655744e+10 | BB16: =BB10*vstupy!$B$9*vstupy!$B$10*(1+vstupy!$B$5)^BB9 -> 1.550048859e+10 | BC16: =BC10*vstupy!$B$9*vstupy!$B$10*(1+vstupy!$B$5)^BC9 -> 1.581049836e+10 | BD16: =BD10*vstupy!$B$9*vstupy!$B$10*(1+vstupy!$B$5)^BD9 -> 1.612670832e+10 | BE16: =BE10*vstupy!$B$9*vstupy!$B$10*(1+vstupy!$B$5)^BE9 -> 1.644924249e+10 | BF16: =BF10*vstupy!$B$9*vstupy!$B$10*(1+vstupy!$B$5)^BF9 -> 1.677822734e+10 | BG16: =BG10*vstupy!$B$9*vstupy!$B$10*(1+vstupy!$B$5)^BG9 -> 1.711379189e+10 | BH16: =BH10*vstupy!$B$9*vstupy!$B$10*(1+vstupy!$B$5)^BH9 -> 1.745606772e+10 | BI16: =BI10*vstupy!$B$9*vstupy!$B$10*(1+vstupy!$B$5)^BI9 -> 1.780518908e+10 | BJ16: =BJ10*vstupy!$B$9*vstupy!$B$10*(1+vstupy!$B$5)^BJ9 -> 1.816129286e+10
A18: LCOE | B18: =(NPV(A3,C14:BJ14)+B14)/NPV(A3,C10:BJ10) -> 2007.516
A20: CF | C20: =C16-C14 -> -326107282.5 | D20: =D16-D14 -> -213188386.5 | E20: -98011112.6 | F20: 19469706.8 | G20: 139300142.6 | H20: 261527187.1 | I20: 386198772.5 | J20: 513363789.6 | K20: 643072107 | L20: 775374590.8 | M20: 910323124.3 | N20: 1047970628 | O20: 1188371083 | P20: 1331579546 | Q20: 1477652179 | R20: 1626646264 | S20: 1778620231 | T20: 1933633677 | U20: 2091747392 | V20: 2253023382 | W20: 2417524891 | X20: 2585316430 | Y20: 2756463801 | Z20: 2931034118 | AA20: 3109095842 | AB20: 3290718801 | AC20: 3475974218 | AD20: 3664934744 | AE20: 3857674481 | AF20: 4054269012 | AG20: 4254795434 | AH20: 4459332385 | AI20: 4667960074 | AJ20: 4880760317 | AK20: 5097816565 | AL20: 5319213938 | AM20: 5545039258 | AN20: 5775381085 | AO20: 6010329748 | AP20: 6249977385 | AQ20: 6494417974 | AR20: 6743747376 | AS20: 6998063365 | AT20: 7257465674 | AU20: 7522056029 | AV20: 7791938191 | AW20: 8067217997 | AX20: 8348003398 | AY20: 8634404508 | AZ20: 8926533640 | BA20: 9224505354 | BB20: 9528436503 | BC20: 9838446274 | BD20: 1.015465624e+10 | BE20: 1.047719041e+10 | BF20: 1.080617526e+10 | BG20: 1.11417398e+10 | BH20: 1.148401564e+10 | BI20: 1.1833137e+10 | BJ20: 1.218924078e+10
A22: NPV | B22: =NPV(A3,C20:BJ20)-B14 -> -1.350508958e+11

Sheet bez_podpory
A1: Výpočet NPV projektu NJZ bez podpory
A3: přehled vstupů: | B3: scénář | C3: diskont | D3: růst cen služeb | E3: O&M | F3: overnight costs | G3: cena elektřiny | H3: odpisy | I3: teplo | J3: růst ceny energií
B4: =IF(vstupy!B2=1,pomocny!A2,IF(vstupy!B2=2,pomocny!A3,IF(vstupy!B2=3,pomocny!A4,"chyba"))) -> 7 % | C4: =vstupy!B3 -> 0.07 | D4: =vstupy!B4 -> 0.02 | E4: =LCOE_vypocet!E3 -> 696.7394096 | F4: =vstupy!B18*vstupy!B11 -> 131444.5 | G4: =G5*vstupy!B10 -> 645.778 | H4: =IF(vstupy!B14=1,"degresivní","lineární") -> degresivní | I4: =IF(vstupy!B29=1,"ano","ne") -> ne | J4: =vstupy!B5 -> 0.02
E5: =LCOE_vypocet!F3 -> 25.78606253 | F5: =vstupy!B18 -> 5500 | G5: =vstupy!B9 -> 23.9 | H5: =vstupy!B15 -> 20
B7: 0 | C7: 1 | D7: 2 | E7: 3 | F7: 4 | G7: 5 | H7: 6 | I7: 7 | J7: 8 | K7: 9 | L7: 10 | M7: 11 | N7: 12 | O7: 13 | P7: 14 | Q7: 15 | R7: 16 | S7: 17 | T7: 18 | U7: 19 | V7: 20 | W7: 21 | X7: 22 | Y7: 23 | Z7: 24 | AA7: 25 | AB7: 26 | AC7: 27 | AD7: 28 | AE7: 29 | AF7: 30 | AG7: 31 | AH7: 32 | AI7: 33 | AJ7: 34 | AK7: 35 | AL7: 36 | AM7: 37 | AN7: 38 | AO7: 39 | AP7: 40 | AQ7: 41 | AR7: 42 | AS7: 43 | AT7: 44 | AU7: 45 | AV7: 46 | AW7: 47 | AX7: 48 | AY7: 49 | AZ7: 50 | BA7: 51 | BB7: 52 | BC7: 53 | BD7: 54 | BE7: 55 | BF7: 56 | BG7: 57 | BH7: 58 | BI7: 59 | BJ7: 60 | BK7: 61 | BL7: 62 | BM7: 63 | BN7: 64 | BO7: 65 | BP7: 66 | BQ7: 67 | BR7: 68 | BS7: 69 | BT7: 70 | BU7: 71 | BV7: 72 | BW7: 73 | BX7: 74 | BY7: 75 | BZ7: 76 | CA7: 77 | CB7: 78
A8: Rok | B8: 2016 | C8: 2017 | D8: 2018 | E8: 2019 | F8: 2020 | G8: 2021 | H8: 2022 | I8: 2023 | J8: 2024 | K8: 2025 | L8: 2026 | M8: 2027 | N8: 2028 | O8: 2029 | P8: 2030 | Q8: 2031 | R8: 2032 | S8: 2033 | T8: 2034 | U8: 2035 | V8: 2036 | W8: 2037 | X8: 2038 | Y8: 2039 | Z8: 2040 | AA8: 2041 | AB8: 2042 | AC8: 2043 | AD8: 2044 | AE8: 2045 | AF8: 2046 | AG8: 2047 | AH8: 2048 | AI8: 2049 | AJ8: 2050 | AK8: 2051 | AL8: 2052 | AM8: 2053 | AN8: 2054 | AO8: 2055 | AP8: 2056 | AQ8: 2057 | AR8: 2058 | AS8: 2059 | AT8: 2060 | AU8: 2061 | AV8: 2062 | AW8: 2063 | AX8: 2064 | AY8: 2065 | AZ8: 2066 | BA8: 2067 | BB8: 2068 | BC8: 2069 | BD8: 2070 | BE8: 2071 | BF8: 2072 | BG8: 2073 | BH8: 2074 | BI8: 2075 | BJ8: 2076 | BK8: 2077 | BL8: 2078 | BM8: 2079 | BN8: 2080 | BO8: 2081 | BP8: 2082 | BQ8: 2083 | BR8: 2084 | BS8: 2085 | BT8: 2086 | BU8: 2087 | BV8: 2088 | BW8: 2089 | BX8: 2090 | BY8: 2091 | BZ8: 2092 | CA8: 2093 | CB8: 2094
A10: Výroba
A11: Elektřiny | B11: 0 | C11: 0 | D11: 0 | E11: 0 | F11: 0 | G11: 0 | H11: 0 | I11: 0 | J11: 0 | K11: 0 | L11: 0 | M11: 0 | N11: 0 | O11: 0 | P11: 0 | Q11: 0 | R11: 0 | S11: 0 | T11: 0 | U11: =IF($I$4="ne",vstupy!$B$6*vstupy!$B$7*vstupy!$B$8*vstupy!$B$12,vstupy!$B$6*vstupy!$B$7*vstupy!$B$8*vstupy!$B$12-vstupy!$B$32) -> 8571428.571 | V11: =IF($I$4="ne",vstupy!$B$6*vstupy!$B$7*vstupy!$B$8*vstupy!$B$12,vstupy!$B$6*vstupy!$B$7*vstupy!$B$8*vstupy!$B$12-vstupy!$B$32) -> 8571428.571 | W11: =IF($I$4="ne",vstupy!$B$6*vstupy!$B$7*vstupy!$B$8*vstupy!$B$12,vstupy!$B$6*vstupy!$B$7*vstupy!$B$8*vstupy!$B$12-vstupy!$B$32) -> 8571428.571 | X11: =IF($I$4="ne",vstupy!$B$6*vstupy!$B$7*vstupy!$B$8*vstupy!$B$12,vstupy!$B$6*vstupy!$B$7*vstupy!$B$8*vstupy!$B$12-vstupy!$B$32) -> 8571428.571 | Y11: =IF($I$4="ne",vstupy!$B$6*vstupy!$B$7*vstupy!$B$8*vstupy!$B$12,vstupy!$B$6*vstupy!$B$7*vstupy!$B$8*vstupy!$B$12-vstupy!$B$32) -> 8571428.571 | Z11: =IF($I$4="ne",vstupy!$B$6*vstupy!$B$7*vstupy!$B$8*vstupy!$B$12,vstupy!$B$6*vstupy!$B$7*vstupy!$B$8*vstupy!$B$12-vstupy!$B$32) -> 8571428.571 | AA11: =IF($I$4="ne",vstupy!$B$6*vstupy!$B$7*vstupy!$B$8*vstupy!$B$12,vstupy!$B$6*vstupy!$B$7*vstupy!$B$8*vstupy!$B$12-vstupy!$B$32) -> 8571428.571 | AB11: =IF($I$4="ne",vstupy!$B$6*vstupy!$B$7*vstupy!$B$8*vstupy!$B$12,vstupy!$B$6*vstupy!$B$7*vstupy!$B$8*vstupy!$B$12-vstupy!$B$32) -> 8571428.571 | AC11: =IF($I$4="ne",vstupy!$B$6*vstupy!$B$7*vstupy!$B$8*vstupy!$B$12,vstupy!$B$6*vstupy!$B$7*vstupy!$B$8*vstupy!$B$12-vstupy!$B$32) -> 8571428.571 | AD11: =IF($I$4="ne",vstupy!$B$6*vstupy!$B$7*vstupy!$B$8*vstupy!$B$12,vstupy!$B$6*vstupy!$B$7*vstupy!$B$8*vstupy!$B$12-vstupy!$B$32) -> 8571428.571 | AE11: =IF($I$4="ne",vstupy!$B$6*vstupy!$B$7*vstupy!$B$8*vstupy!$B$12,vstupy!$B$6*vstupy!$B$7*vstupy!$B$8*vstupy!$B$12-vstupy!$B$32) -> 8571428.571 | AF11: =IF($I$4="ne",vstupy!$B$6*vstupy!$B$7*vstupy!$B$8*vstupy!$B$12,vstupy!$B$6*vstupy!$B$7*vstupy!$B$8*vstupy!$B$12-vstupy!$B$32) -> 8571428.571 | AG11: =IF($I$4="ne",vstupy!$B$6*vstupy!$B$7*vstupy!$B$8*vstupy!$B$12,vstupy!$B$6*vstupy!$B$7*vstupy!$B$8*vstupy!$B$12-vstupy!$B$32) -> 8571428.571 | AH11: =IF($I$4="ne",vstupy!$B$6*vstupy!$B$7*vstupy!$B$8*vstupy!$B$12,vstupy!$B$6*vstupy!$B$7*vstupy!$B$8*vstupy!$B$12-vstupy!$B$32) -> 8571428.571 | AI11: =IF($I$4="ne",vstupy!$B$6*vstupy!$B$7*vstupy!$B$8*vstupy!$B$12,vstupy!$B$6*vstupy!$B$7*vstupy!$B$8*vstupy!$B$12-vstupy!$B$32) -> 8571428.571 | AJ11: =IF($I$4="ne",vstupy!$B$6*vstupy!$B$7*vstupy!$B$8*vstupy!$B$12,vstupy!$B$6*vstupy!$B$7*vstupy!$B$8*vstupy!$B$12-vstupy!$B$32) -> 8571428.571 | AK11: =IF($I$4="ne",vstupy!$B$6*vstupy!$B$7*vstupy!$B$8*vstupy!$B$12,vstupy!$B$6*vstupy!$B$7*vstupy!$B$8*vstupy!$B$12-vstupy!$B$32) -> 8571428.571 | AL11: =IF($I$4="ne",vstupy!$B$6*vstupy!$B$7*vstupy!$B$8*vstupy!$B$12,vstupy!$B$6*vstupy!$B$7*vstupy!$B$8*vstupy!$B$12-vstupy!$B$32) -> 8571428.571 | AM11: =IF($I$4="ne",vstupy!$B$6*vstupy!$B$7*vstupy!$B$8*vstupy!$B$12,vstupy!$B$6*vstupy!$B$7*vstupy!$B$8*vstupy!$B$12-vstupy!$B$32) -> 8571428.571 | AN11: =IF($I$4="ne",vstupy!$B$6*vstupy!$B$7*vstupy!$B$8*vstupy!$B$12,vstupy!$B$6*vstupy!$B$7*vstupy!$B$8*vstupy!$B$12-vstupy!$B$32) -> 8571428.571 | AO11: =IF($I$4="ne",vstupy!$B$6*vstupy!$B$7*vstupy!$B$8*vstupy!$B$12,vstupy!$B$6*vstupy!$B$7*vstupy!$B$8*vstupy!$B$12-vstupy!$B$32) -> 8571428.571 | AP11: =IF($I$4="ne",vstupy!$B$6*vstupy!$B$7*vstupy!$B$8*vstupy!$B$12,vstupy!$B$6*vstupy!$B$7*vstupy!$B$8*vstupy!$B$12-vstupy!$B$32) -> 8571428.571 | AQ11: =IF($I$4="ne",vstupy!$B$6*vstupy!$B$7*vstupy!$B$8*vstupy!$B$12,vstupy!$B$6*vstupy!$B$7*vstupy!$B$8*vstupy!$B$12-vstupy!$B$32) -> 8571428.571 | AR11: =IF($I$4="ne",vstupy!$B$6*vstupy!$B$7*vstupy!$B$8*vstupy!$B$12,vstupy!$B$6*vstupy!$B$7*vstupy!$B$8*vstupy!$B$12-vstupy!$B$32) -> 8571428.571 | AS11: =IF($I$4="ne",vstupy!$B$6*vstupy!$B$7*vstupy!$B$8*vstupy!$B$12,vstupy!$B$6*vstupy!$B$7*vstupy!$B$8*vstupy!$B$12-vstupy!$B$32) -> 8571428.571 | AT11: =IF($I$4="ne",vstupy!$B$6*vstupy!$B$7*vstupy!$B$8*vstupy!$B$12,vstupy!$B$6*vstupy!$B$7*vstupy!$B$8*vstupy!$B$12-vstupy!$B$32) -> 8571428.571 | AU11: =IF($I$4="ne",vstupy!$B$6*vstupy!$B$7*vstupy!$B$8*vstupy!$B$12,vstupy!$B$6*vstupy!$B$7*vstupy!$B$8*vstupy!$B$12-vstupy!$B$32) -> 8571428.571 | AV11: =IF($I$4="ne",vstupy!$B$6*vstupy!$B$7*vstupy!$B$8*vstupy!$B$12,vstupy!$B$6*vstupy!$B$7*vstupy!$B$8*vstupy!$B$12-vstupy!$B$32) -> 8571428.571 | AW11: =IF($I$4="ne",vstupy!$B$6*vstupy!$B$7*vstupy!$B$8*vstupy!$B$12,vstupy!$B$6*vstupy!$B$7*vstupy!$B$8*vstupy!$B$12-vstupy!$B$32) -> 8571428.571 | AX11: =IF($I$4="ne",vstupy!$B$6*vstupy!$B$7*vstupy!$B$8*vstupy!$B$12,vstupy!$B$6*vstupy!$B$7*vstupy!$B$8*vstupy!$B$12-vstupy!$B$32) -> 8571428.571 | AY11: =IF($I$4="ne",vstupy!$B$6*vstupy!$B$7*vstupy!$B$8*vstupy!$B$12,vstupy!$B$6*vstupy!$B$7*vstupy!$B$8*vstupy!$B$12-vstupy!$B$32) -> 8571428.571 | AZ11: =IF($I$4="ne",vstupy!$B$6*vstupy!$B$7*vstupy!$B$8*vstupy!$B$12,vstupy!$B$6*vstupy!$B$7*vstupy!$B$8*vstupy!$B$12-vstupy!$B$32) -> 8571428.571 | BA11: =IF($I$4="ne",vstupy!$B$6*vstupy!$B$7*vstupy!$B$8*vstupy!$B$12,vstupy!$B$6*vstupy!$B$7*vstupy!$B$8*vstupy!$B$12-vstupy!$B$32) -> 8571428.571 | BB11: =IF($I$4="ne",vstupy!$B$6*vstupy!$B$7*vstupy!$B$8*vstupy!$B$12,vstupy!$B$6*vstupy!$B$7*vstupy!$B$8*vstupy!$B$12-vstupy!$B$32) -> 8571428.571 | BC11: =IF($I$4="ne",vstupy!$B$6*vstupy!$B$7*vstupy!$B$8*vstupy!$B$12,vstupy!$B$6*vstupy!$B$7*vstupy!$B$8*vstupy!$B$12-vstupy!$B$32) -> 8571428.571 | BD11: =IF($I$4="ne",vstupy!$B$6*vstupy!$B$7*vstupy!$B$8*vstupy!$B$12,vstupy!$B$6*vstupy!$B$7*vstupy!$B$8*vstupy!$B$12-vstupy!$B$32) -> 8571428.571 | BE11: =IF($I$4="ne",vstupy!$B$6*vstupy!$B$7*vstupy!$B$8*vstupy!$B$12,vstupy!$B$6*vstupy!$B$7*vstupy!$B$8*vstupy!$B$12-vstupy!$B$32) -> 8571428.571 | BF11: =IF($I$4="ne",vstupy!$B$6*vstupy!$B$7*vstupy!$B$8*vstupy!$B$12,vstupy!$B$6*vstupy!$B$7*vstupy!$B$8*vstupy!$B$12-vstupy!$B$32) -> 8571428.571 | BG11: =IF($I$4="ne",vstupy!$B$6*vstupy!$B$7*vstupy!$B$8*vstupy!$B$12,vstupy!$B$6*vstupy!$B$7*vstupy!$B$8*vstupy!$B$12-vstupy!$B$32) -> 8571428.571 | BH11: =IF($I$4="ne",vstupy!$B$6*vstupy!$B$7*vstupy!$B$8*vstupy!$B$12,vstupy!$B$6*vstupy!$B$7*vstupy!$B$8*vstupy!$B$12-vstupy!$B$32) -> 8571428.571 | BI11: =IF($I$4="ne",vstupy!$B$6*vstupy!$B$7*vstupy!$B$8*vstupy!$B$12,vstupy!$B$6*vstupy!$B$7*vstupy!$B$8*vstupy!$B$12-vstupy!$B$32) -> 8571428.571 | BJ11: =IF($I$4="ne",vstupy!$B$6*vstupy!$B$7*vstupy!$B$8*vstupy!$B$12,vstupy!$B$6*vstupy!$B$7*vstupy!$B$8*vstupy!$B$12-vstupy!$B$32) -> 8571428.571 | BK11: =IF($I$4="ne",vstupy!$B$6*vstupy!$B$7*vstupy!$B$8*vstupy!$B$12,vstupy!$B$6*vstupy!$B$7*vstupy!$B$8*vstupy!$B$12-vstupy!$B$32) -> 8571428.571 | BL11: =IF($I$4="ne",vstupy!$B$6*vstupy!$B$7*vstupy!$B$8*vstupy!$B$12,vstupy!$B$6*vstupy!$B$7*vstupy!$B$8*vstupy!$B$12-vstupy!$B$32) -> 8571428.571 | BM11: =IF($I$4="ne",vstupy!$B$6*vstupy!$B$7*vstupy!$B$8*vstupy!$B$12,vstupy!$B$6*vstupy!$B$7*vstupy!$B$8*vstupy!$B$12-vstupy!$B$32) -> 8571428.571 | BN11: =IF($I$4="ne",vstupy!$B$6*vstupy!$B$7*vstupy!$B$8*vstupy!$B$12,vstupy!$B$6*vstupy!$B$7*vstupy!$B$8*vstupy!$B$12-vstupy!$B$32) -> 8571428.571 | BO11: =IF($I$4="ne",vstupy!$B$6*vstupy!$B$7*vstupy!$B$8*vstupy!$B$12,vstupy!$B$6*vstupy!$B$7*vstupy!$B$8*vstupy!$B$12-vstupy!$B$32) -> 8571428.571 | BP11: =IF($I$4="ne",vstupy!$B$6*vstupy!$B$7*vstupy!$B$8*vstupy!$B$12,vstupy!$B$6*vstupy!$B$7*vstupy!$B$8*vstupy!$B$12-vstupy!$B$32) -> 8571428.571 | BQ11: =IF($I$4="ne",vstupy!$B$6*vstupy!$B$7*vstupy!$B$8*vstupy!$B$12,vstupy!$B$6*vstupy!$B$7*vstupy!$B$8*vstupy!$B$12-vstupy!$B$32) -> 8571428.571 | BR11: =IF($I$4="ne",vstupy!$B$6*vstupy!$B$7*vstupy!$B$8*vstupy!$B$12,vstupy!$B$6*vstupy!$B$7*vstupy!$B$8*vstupy!$B$12-vstupy!$B$32) -> 8571428.571 | BS11: =IF($I$4="ne",vstupy!$B$6*vstupy!$B$7*vstupy!$B$8*vstupy!$B$12,vstupy!$B$6*vstupy!$B$7*vstupy!$B$8*vstupy!$B$12-vstupy!$B$32) -> 8571428.571 | BT11: =IF($I$4="ne",vstupy!$B$6*vstupy!$B$7*vstupy!$B$8*vstupy!$B$12,vstupy!$B$6*vstupy!$B$7*vstupy!$B$8*vstupy!$B$12-vstupy!$B$32) -> 8571428.571 | BU11: =IF($I$4="ne",vstupy!$B$6*vstupy!$B$7*vstupy!$B$8*vstupy!$B$12,vstupy!$B$6*vstupy!$B$7*vstupy!$B$8*vstupy!$B$12-vstupy!$B$32) -> 8571428.571 | BV11: =IF($I$4="ne",vstupy!$B$6*vstupy!$B$7*vstupy!$B$8*vstupy!$B$12,vstupy!$B$6*vstupy!$B$7*vstupy!$B$8*vstupy!$B$12-vstupy!$B$32) -> 8571428.571 | BW11: =IF($I$4="ne",vstupy!$B$6*vstupy!$B$7*vstupy!$B$8*vstupy!$B$12,vstupy!$B$6*vstupy!$B$7*vstupy!$B$8*vstupy!$B$12-vstupy!$B$32) -> 8571428.571 | BX11: =IF($I$4="ne",vstupy!$B$6*vstupy!$B$7*vstupy!$B$8*vstupy!$B$12,vstupy!$B$6*vstupy!$B$7*vstupy!$B$8*vstupy!$B$12-vstupy!$B$32) -> 8571428.571 | BY11: =IF($I$4="ne",vstupy!$B$6*vstupy!$B$7*vstupy!$B$8*vstupy!$B$12,vstupy!$B$6*vstupy!$B$7*vstupy!$B$8*vstupy!$B$12-vstupy!$B$32) -> 8571428.571 | BZ11: =IF($I$4="ne",vstupy!$B$6*vstupy!$B$7*vstupy!$B$8*vstupy!$B$12,vstupy!$B$6*vstupy!$B$7*vstupy!$B$8*vstupy!$B$12-vstupy!$B$32) -> 8571428.571 | CA11: =IF($I$4="ne",vstupy!$B$6*vstupy!$B$7*vstupy!$B$8*vstupy!$B$12,vstupy!$B$6*vstupy!$B$7*vstupy!$B$8*vstupy!$B$12-vstupy!$B$32) -> 8571428.571 | CB11: =IF($I$4="ne",vstupy!$B$6*vstupy!$B$7*vstupy!$B$8*vstupy!$B$12,vstupy!$B$6*vstupy!$B$7*vstupy!$B$8*vstupy!$B$12-vstupy!$B$32) -> 8571428.571
A12: Tepla | B12: 0 | C12: 0 | D12: 0 | E12: 0 | F12: 0 | G12: 0 | H12: 0 | I12: 0 | J12: 0 | K12: 0 | L12: 0 | M12: 0 | N12: 0 | O12: 0 | P12: 0 | Q12: 0 | R12: 0 | S12: 0 | T12: 0 | U12: =IF($I$4="ano",vstupy!$B$30*1000000,0) -> 0 | V12: =IF($I$4="ano",vstupy!$B$30*1000000,0) -> 0 | W12: =IF($I$4="ano",vstupy!$B$30*1000000,0) -> 0 | X12: =IF($I$4="ano",vstupy!$B$30*1000000,0) -> 0 | Y12: =IF($I$4="ano",vstupy!$B$30*1000000,0) -> 0 | Z12: =IF($I$4="ano",vstupy!$B$30*1000000,0) -> 0 | AA12: =IF($I$4="ano",vstupy!$B$30*1000000,0) -> 0 | AB12: =IF($I$4="ano",vstupy!$B$30*1000000,0) -> 0 | AC12: =IF($I$4="ano",vstupy!$B$30*1000000,0) -> 0 | AD12: =IF($I$4="ano",vstupy!$B$30*1000000,0) -> 0 | AE12: =IF($I$4="ano",vstupy!$B$30*1000000,0) -> 0 | AF12: =IF($I$4="ano",vstupy!$B$30*1000000,0) -> 0 | AG12: =IF($I$4="ano",vstupy!$B$30*1000000,0) -> 0 | AH12: =IF($I$4="ano",vstupy!$B$30*1000000,0) -> 0 | AI12: =IF($I$4="ano",vstupy!$B$30*1000000,0) -> 0 | AJ12: =IF($I$4="ano",vstupy!$B$30*1000000,0) -> 0 | AK12: =IF($I$4="ano",vstupy!$B$30*1000000,0) -> 0 | AL12: =IF($I$4="ano",vstupy!$B$30*1000000,0) -> 0 | AM12: =IF($I$4="ano",vstupy!$B$30*1000000,0) -> 0 | AN12: =IF($I$4="ano",vstupy!$B$30*1000000,0) -> 0 | AO12: =IF($I$4="ano",vstupy!$B$30*1000000,0) -> 0 | AP12: =IF($I$4="ano",vstupy!$B$30*1000000,0) -> 0 | AQ12: =IF($I$4="ano",vstupy!$B$30*1000000,0) -> 0 | AR12: =IF($I$4="ano",vstupy!$B$30*1000000,0) -> 0 | AS12: =IF($I$4="ano",vstupy!$B$30*1000000,0) -> 0 | AT12: =IF($I$4="ano",vstupy!$B$30*1000000,0) -> 0 | AU12: =IF($I$4="ano",vstupy!$B$30*1000000,0) -> 0 | AV12: =IF($I$4="ano",vstupy!$B$30*1000000,0) -> 0 | AW12: =IF($I$4="ano",vstupy!$B$30*1000000,0) -> 0 | AX12: =IF($I$4="ano",vstupy!$B$30*1000000,0) -> 0 | AY12: =IF($I$4="ano",vstupy!$B$30*1000000,0) -> 0 | AZ12: =IF($I$4="ano",vstupy!$B$30*1000000,0) -> 0 | BA12: =IF($I$4="ano",vstupy!$B$30*1000000,0) -> 0 | BB12: =IF($I$4="ano",vstupy!$B$30*1000000,0) -> 0 | BC12: =IF($I$4="ano",vstupy!$B$30*1000000,0) -> 0 | BD12: =IF($I$4="ano",vstupy!$B$30*1000000,0) -> 0 | BE12: =IF($I$4="ano",vstupy!$B$30*1000000,0) -> 0 | BF12: =IF($I$4="ano",vstupy!$B$30*1000000,0) -> 0 | BG12: =IF($I$4="ano",vstupy!$B$30*1000000,0) -> 0 | BH12: =IF($I$4="ano",vstupy!$B$30*1000000,0) -> 0 | BI12: =IF($I$4="ano",vstupy!$B$30*1000000,0) -> 0 | BJ12: =IF($I$4="ano",vstupy!$B$30*1000000,0) -> 0 | BK12: =IF($I$4="ano",vstupy!$B$30*1000000,0) -> 0 | BL12: =IF($I$4="ano",vstupy!$B$30*1000000,0) -> 0 | BM12: =IF($I$4="ano",vstupy!$B$30*1000000,0) -> 0 | BN12: =IF($I$4="ano",vstupy!$B$30*1000000,0) -> 0 | BO12: =IF($I$4="ano",vstupy!$B$30*1000000,0) -> 0 | BP12: =IF($I$4="ano",vstupy!$B$30*1000000,0) -> 0 | BQ12: =IF($I$4="ano",vstupy!$B$30*1000000,0) -> 0 | BR12: =IF($I$4="ano",vstupy!$B$30*1000000,0) -> 0 | BS12: =IF($I$4="ano",vstupy!$B$30*1000000,0) -> 0 | BT12: =IF($I$4="ano",vstupy!$B$30*1000000,0) -> 0 | BU12: =IF($I$4="ano",vstupy!$B$30*1000000,0) -> 0 | BV12: =IF($I$4="ano",vstupy!$B$30*1000000,0) -> 0 | BW12: =IF($I$4="ano",vstupy!$B$30*1000000,0) -> 0 | BX12: =IF($I$4="ano",vstupy!$B$30*1000000,0) -> 0 | BY12: =IF($I$4="ano",vstupy!$B$30*1000000,0) -> 0 | BZ12: =IF($I$4="ano",vstupy!$B$30*1000000,0) -> 0 | CA12: =IF($I$4="ano",vstupy!$B$30*1000000,0) -> 0 | CB12: =IF($I$4="ano",vstupy!$B$30*1000000,0) -> 0
A14: Kapitálové výdaje
A15: CAPEX | B15: =(IF($I$4="ne",vstupy!B22,vstupy!B22+(vstupy!$B$31/19)))*(1+vstupy!$B$4)^B7 -> 315466800 | C15: =(IF($I$4="ne",vstupy!C22,vstupy!C22+(vstupy!$B$31/19)))*(1+vstupy!$B$4)^C7 -> 482664204 | D15: =(IF($I$4="ne",vstupy!D22,vstupy!D22+(vstupy!$B$31/19)))*(1+vstupy!$B$4)^D7 -> 820529146.8 | E15: =(IF($I$4="ne",vstupy!E22,vstupy!E22+(vstupy!$B$31/19)))*(1+vstupy!$B$4)^E7 -> 1673879459 | F15: =(IF($I$4="ne",vstupy!F22,vstupy!F22+(vstupy!$B$31/19)))*(1+vstupy!$B$4)^F7 -> 3414714097 | G15: =(IF($I$4="ne",vstupy!G22,vstupy!G22+(vstupy!$B$31/19)))*(1+vstupy!$B$4)^G7 -> 5224512569 | H15: =(IF($I$4="ne",vstupy!H22,vstupy!H22+(vstupy!$B$31/19)))*(1+vstupy!$B$4)^H7 -> 7105337094 | I15: =(IF($I$4="ne",vstupy!I22,vstupy!I22+(vstupy!$B$31/19)))*(1+vstupy!$B$4)^I7 -> 9059304794 | J15: =(IF($I$4="ne",vstupy!J22,vstupy!J22+(vstupy!$B$31/19)))*(1+vstupy!$B$4)^J7 -> 1.293668725e+10 | K15: =(IF($I$4="ne",vstupy!K22,vstupy!K22+(vstupy!$B$31/19)))*(1+vstupy!$B$4)^K7 -> 1.885060142e+10 | L15: =(IF($I$4="ne",vstupy!L22,vstupy!L22+(vstupy!$B$31/19)))*(1+vstupy!$B$4)^L7 -> 2.307313613e+10 | M15: =(IF($I$4="ne",vstupy!M22,vstupy!M22+(vstupy!$B$31/19)))*(1+vstupy!$B$4)^M7 -> 2.941824857e+10 | N15: =(IF($I$4="ne",vstupy!N22,vstupy!N22+(vstupy!$B$31/19)))*(1+vstupy!$B$4)^N7 -> 3.000661354e+10 | O15: =(IF($I$4="ne",vstupy!O22,vstupy!O22+(vstupy!$B$31/19)))*(1+vstupy!$B$4)^O7 -> 2.652584637e+10 | P15: =(IF($I$4="ne",vstupy!P22,vstupy!P22+(vstupy!$B$31/19)))*(1+vstupy!$B$4)^P7 -> 1.040629358e+10 | Q15: =(IF($I$4="ne",vstupy!Q22,vstupy!Q22+(vstupy!$B$31/19)))*(1+vstupy!$B$4)^Q7 -> 8491535558 | R15: =(IF($I$4="ne",vstupy!R22,vstupy!R22+(vstupy!$B$31/19)))*(1+vstupy!$B$4)^R7 -> 4330683135 | S15: =(IF($I$4="ne",vstupy!S22,vstupy!S22+(vstupy!$B$31/19)))*(1+vstupy!$B$4)^S7 -> 1104324199 | T15: =(IF($I$4="ne",vstupy!T22,vstupy!T22+(vstupy!$B$31/19)))*(1+vstupy!$B$4)^T7 -> 1126410683 | U15: 0 | V15: 0 | W15: 0 | X15: 0 | Y15: 0 | Z15: 0 | AA15: 0 | AB15: 0 | AC15: 0 | AD15: 0 | AE15: 0 | AF15: 0 | AG15: 0 | AH15: 0 | AI15: 0 | AJ15: 0 | AK15: 0 | AL15: 0 | AM15: 0 | AN15: 0 | AO15: 0 | AP15: 0 | AQ15: 0 | AR15: 0 | AS15: 0 | AT15: 0 | AU15: 0 | AV15: 0 | AW15: 0 | AX15: 0 | AY15: 0 | AZ15: 0 | BA15: 0 | BB15: 0 | BC15: 0 | BD15: 0 | BE15: 0 | BF15: 0 | BG15: 0 | BH15: 0 | BI15: 0 | BJ15: 0 | BK15: 0 | BL15: 0 | BM15: 0 | BN15: 0 | BO15: 0 | BP15: 0 | BQ15: 0 | BR15: 0 | BS15: 0 | BT15: 0 | BU15: 0 | BV15: 0 | BW15: 0 | BX15: 0 | BY15: 0 | BZ15: 0 | CA15: 0 | CB15: 0
A16: Celkem | B16: =SUM(B15) -> 315466800 | C16: =SUM(C15) -> 482664204 | D16: 820529146.8 | E16: 1673879459 | F16: 3414714097 | G16: 5224512569 | H16: 7105337094 | I16: 9059304794 | J16: 1.293668725e+10 | K16: 1.885060142e+10 | L16: 2.307313613e+10 | M16: 2.941824857e+10 | N16: 3.000661354e+10 | O16: 2.652584637e+10 | P16: 1.040629358e+10 | Q16: 8491535558 | R16: 4330683135 | S16: 1104324199 | T16: 1126410683 | U16: 0 | V16: 0 | W16: 0 | X16: 0 | Y16: 0 | Z16: 0 | AA16: 0 | AB16: 0 | AC16: 0 | AD16: 0 | AE16: 0 | AF16: 0 | AG16: 0 | AH16: 0 | AI16: 0 | AJ16: 0 | AK16: 0 | AL16: 0 | AM16: 0 | AN16: 0 | AO16: 0 | AP16: 0 | AQ16: 0 | AR16: 0 | AS16: 0 | AT16: 0 | AU16: 0 | AV16: 0 | AW16: 0 | AX16: 0 | AY16: 0 | AZ16: 0 | BA16: 0 | BB16: 0 | BC16: 0 | BD16: 0 | BE16: 0 | BF16: 0 | BG16: 0 | BH16: 0 | BI16: 0 | BJ16: 0 | BK16: 0 | BL16: 0 | BM16: 0 | BN16: 0 | BO16: 0 | BP16: 0 | BQ16: 0 | BR16: 0 | BS16: 0 | BT16: 0 | BU16: 0 | BV16: 0 | BW16: 0 | BX16: 0 | BY16: 0 | BZ16: 0 | CA16: 0 | CB16: 0
A18: Provozní výdaje
A19: O&M | B19: 0 | C19: 0 | D19: 0 | E19: 0 | F19: 0 | G19: 0 | H19: 0 | I19: 0 | J19: 0 | K19: 0 | L19: 0 | M19: 0 | N19: 0 | O19: 0 | P19: 0 | Q19: 0 | R19: 0 | S19: 0 | T19: 0 | U19: =IF($I$4="ne",$E$4*U11*(1+$D$4)^U7,($E$4*U11-vstupy!$B$33)*(1+$D$4)^U7) -> 8700152197 | V19: =IF($I$4="ne",$E$4*V11*(1+$D$4)^V7,($E$4*V11-vstupy!$B$33)*(1+$D$4)^V7) -> 8874155241 | W19: =IF($I$4="ne",$E$4*W11*(1+$D$4)^W7,($E$4*W11-vstupy!$B$33)*(1+$D$4)^W7) -> 9051638345 | X19: =IF($I$4="ne",$E$4*X11*(1+$D$4)^X7,($E$4*X11-vstupy!$B$33)*(1+$D$4)^X7) -> 9232671112 | Y19: =IF($I$4="ne",$E$4*Y11*(1+$D$4)^Y7,($E$4*Y11-vstupy!$B$33)*(1+$D$4)^Y7) -> 9417324535 | Z19: =IF($I$4="ne",$E$4*Z11*(1+$D$4)^Z7,($E$4*Z11-vstupy!$B$33)*(1+$D$4)^Z7) -> 9605671025 | AA19: =IF($I$4="ne",$E$4*AA11*(1+$D$4)^AA7,($E$4*AA11-vstupy!$B$33)*(1+$D$4)^AA7) -> 9797784446 | AB19: =IF($I$4="ne",$E$4*AB11*(1+$D$4)^AB7,($E$4*AB11-vstupy!$B$33)*(1+$D$4)^AB7) -> 9993740135 | AC19: =IF($I$4="ne",$E$4*AC11*(1+$D$4)^AC7,($E$4*AC11-vstupy!$B$33)*(1+$D$4)^AC7) -> 1.019361494e+10 | AD19: =IF($I$4="ne",$E$4*AD11*(1+$D$4)^AD7,($E$4*AD11-vstupy!$B$33)*(1+$D$4)^AD7) -> 1.039748724e+10 | AE19: =IF($I$4="ne",$E$4*AE11*(1+$D$4)^AE7,($E$4*AE11-vstupy!$B$33)*(1+$D$4)^AE7) -> 1.060543698e+10 | AF19: =IF($I$4="ne",$E$4*AF11*(1+$D$4)^AF7,($E$4*AF11-vstupy!$B$33)*(1+$D$4)^AF7) -> 1.081754572e+10 | AG19: =IF($I$4="ne",$E$4*AG11*(1+$D$4)^AG7,($E$4*AG11-vstupy!$B$33)*(1+$D$4)^AG7) -> 1.103389663e+10 | AH19: =IF($I$4="ne",$E$4*AH11*(1+$D$4)^AH7,($E$4*AH11-vstupy!$B$33)*(1+$D$4)^AH7) -> 1.125457457e+10 | AI19: =IF($I$4="ne",$E$4*AI11*(1+$D$4)^AI7,($E$4*AI11-vstupy!$B$33)*(1+$D$4)^AI7) -> 1.147966606e+10 | AJ19: =IF($I$4="ne",$E$4*AJ11*(1+$D$4)^AJ7,($E$4*AJ11-vstupy!$B$33)*(1+$D$4)^AJ7) -> 1.170925938e+10 | AK19: =IF($I$4="ne",$E$4*AK11*(1+$D$4)^AK7,($E$4*AK11-vstupy!$B$33)*(1+$D$4)^AK7) -> 1.194344457e+10 | AL19: =IF($I$4="ne",$E$4*AL11*(1+$D$4)^AL7,($E$4*AL11-vstupy!$B$33)*(1+$D$4)^AL7) -> 1.218231346e+10 | AM19: =IF($I$4="ne",$E$4*AM11*(1+$D$4)^AM7,($E$4*AM11-vstupy!$B$33)*(1+$D$4)^AM7) -> 1.242595973e+10 | AN19: =IF($I$4="ne",$E$4*AN11*(1+$D$4)^AN7,($E$4*AN11-vstupy!$B$33)*(1+$D$4)^AN7) -> 1.267447892e+10 | AO19: =IF($I$4="ne",$E$4*AO11*(1+$D$4)^AO7,($E$4*AO11-vstupy!$B$33)*(1+$D$4)^AO7) -> 1.29279685e+10 | AP19: =IF($I$4="ne",$E$4*AP11*(1+$D$4)^AP7,($E$4*AP11-vstupy!$B$33)*(1+$D$4)^AP7) -> 1.318652787e+10 | AQ19: =IF($I$4="ne",$E$4*AQ11*(1+$D$4)^AQ7,($E$4*AQ11-vstupy!$B$33)*(1+$D$4)^AQ7) -> 1.345025843e+10 | AR19: =IF($I$4="ne",$E$4*AR11*(1+$D$4)^AR7,($E$4*AR11-vstupy!$B$33)*(1+$D$4)^AR7) -> 1.37192636e+10 | AS19: =IF($I$4="ne",$E$4*AS11*(1+$D$4)^AS7,($E$4*AS11-vstupy!$B$33)*(1+$D$4)^AS7) -> 1.399364887e+10 | AT19: =IF($I$4="ne",$E$4*AT11*(1+$D$4)^AT7,($E$4*AT11-vstupy!$B$33)*(1+$D$4)^AT7) -> 1.427352185e+10 | AU19: =IF($I$4="ne",$E$4*AU11*(1+$D$4)^AU7,($E$4*AU11-vstupy!$B$33)*(1+$D$4)^AU7) -> 1.455899228e+10 | AV19: =IF($I$4="ne",$E$4*AV11*(1+$D$4)^AV7,($E$4*AV11-vstupy!$B$33)*(1+$D$4)^AV7) -> 1.485017213e+10 | AW19: =IF($I$4="ne",$E$4*AW11*(1+$D$4)^AW7,($E$4*AW11-vstupy!$B$33)*(1+$D$4)^AW7) -> 1.514717557e+10 | AX19: =IF($I$4="ne",$E$4*AX11*(1+$D$4)^AX7,($E$4*AX11-vstupy!$B$33)*(1+$D$4)^AX7) -> 1.545011908e+10 | AY19: =IF($I$4="ne",$E$4*AY11*(1+$D$4)^AY7,($E$4*AY11-vstupy!$B$33)*(1+$D$4)^AY7) -> 1.575912147e+10 | AZ19: =IF($I$4="ne",$E$4*AZ11*(1+$D$4)^AZ7,($E$4*AZ11-vstupy!$B$33)*(1+$D$4)^AZ7) -> 1.607430389e+10 | BA19: =IF($I$4="ne",$E$4*BA11*(1+$D$4)^BA7,($E$4*BA11-vstupy!$B$33)*(1+$D$4)^BA7) -> 1.639578997e+10 | BB19: =IF($I$4="ne",$E$4*BB11*(1+$D$4)^BB7,($E$4*BB11-vstupy!$B$33)*(1+$D$4)^BB7) -> 1.672370577e+10 | BC19: =IF($I$4="ne",$E$4*BC11*(1+$D$4)^BC7,($E$4*BC11-vstupy!$B$33)*(1+$D$4)^BC7) -> 1.705817989e+10 | BD19: =IF($I$4="ne",$E$4*BD11*(1+$D$4)^BD7,($E$4*BD11-vstupy!$B$33)*(1+$D$4)^BD7) -> 1.739934348e+10 | BE19: =IF($I$4="ne",$E$4*BE11*(1+$D$4)^BE7,($E$4*BE11-vstupy!$B$33)*(1+$D$4)^BE7) -> 1.774733035e+10 | BF19: =IF($I$4="ne",$E$4*BF11*(1+$D$4)^BF7,($E$4*BF11-vstupy!$B$33)*(1+$D$4)^BF7) -> 1.810227696e+10 | BG19: =IF($I$4="ne",$E$4*BG11*(1+$D$4)^BG7,($E$4*BG11-vstupy!$B$33)*(1+$D$4)^BG7) -> 1.84643225e+10 | BH19: =IF($I$4="ne",$E$4*BH11*(1+$D$4)^BH7,($E$4*BH11-vstupy!$B$33)*(1+$D$4)^BH7) -> 1.883360895e+10 | BI19: =IF($I$4="ne",$E$4*BI11*(1+$D$4)^BI7,($E$4*BI11-vstupy!$B$33)*(1+$D$4)^BI7) -> 1.921028113e+10 | BJ19: =IF($I$4="ne",$E$4*BJ11*(1+$D$4)^BJ7,($E$4*BJ11-vstupy!$B$33)*(1+$D$4)^BJ7) -> 1.959448675e+10 | BK19: =IF($I$4="ne",$E$4*BK11*(1+$D$4)^BK7,($E$4*BK11-vstupy!$B$33)*(1+$D$4)^BK7) -> 1.998637649e+10 | BL19: =IF($I$4="ne",$E$4*BL11*(1+$D$4)^BL7,($E$4*BL11-vstupy!$B$33)*(1+$D$4)^BL7) -> 2.038610402e+10 | BM19: =IF($I$4="ne",$E$4*BM11*(1+$D$4)^BM7,($E$4*BM11-vstupy!$B$33)*(1+$D$4)^BM7) -> 2.07938261e+10 | BN19: =IF($I$4="ne",$E$4*BN11*(1+$D$4)^BN7,($E$4*BN11-vstupy!$B$33)*(1+$D$4)^BN7) -> 2.120970262e+10 | BO19: =IF($I$4="ne",$E$4*BO11*(1+$D$4)^BO7,($E$4*BO11-vstupy!$B$33)*(1+$D$4)^BO7) -> 2.163389667e+10 | BP19: =IF($I$4="ne",$E$4*BP11*(1+$D$4)^BP7,($E$4*BP11-vstupy!$B$33)*(1+$D$4)^BP7) -> 2.206657461e+10 | BQ19: =IF($I$4="ne",$E$4*BQ11*(1+$D$4)^BQ7,($E$4*BQ11-vstupy!$B$33)*(1+$D$4)^BQ7) -> 2.25079061e+10 | BR19: =IF($I$4="ne",$E$4*BR11*(1+$D$4)^BR7,($E$4*BR11-vstupy!$B$33)*(1+$D$4)^BR7) -> 2.295806422e+10 | BS19: =IF($I$4="ne",$E$4*BS11*(1+$D$4)^BS7,($E$4*BS11-vstupy!$B$33)*(1+$D$4)^BS7) -> 2.34172255e+10 | BT19: =IF($I$4="ne",$E$4*BT11*(1+$D$4)^BT7,($E$4*BT11-vstupy!$B$33)*(1+$D$4)^BT7) -> 2.388557001e+10 | BU19: =IF($I$4="ne",$E$4*BU11*(1+$D$4)^BU7,($E$4*BU11-vstupy!$B$33)*(1+$D$4)^BU7) -> 2.436328141e+10 | BV19: =IF($I$4="ne",$E$4*BV11*(1+$D$4)^BV7,($E$4*BV11-vstupy!$B$33)*(1+$D$4)^BV7) -> 2.485054704e+10 | BW19: =IF($I$4="ne",$E$4*BW11*(1+$D$4)^BW7,($E$4*BW11-vstupy!$B$33)*(1+$D$4)^BW7) -> 2.534755798e+10 | BX19: =IF($I$4="ne",$E$4*BX11*(1+$D$4)^BX7,($E$4*BX11-vstupy!$B$33)*(1+$D$4)^BX7) -> 2.585450914e+10 | BY19: =IF($I$4="ne",$E$4*BY11*(1+$D$4)^BY7,($E$4*BY11-vstupy!$B$33)*(1+$D$4)^BY7) -> 2.637159933e+10 | BZ19: =IF($I$4="ne",$E$4*BZ11*(1+$D$4)^BZ7,($E$4*BZ11-vstupy!$B$33)*(1+$D$4)^BZ7) -> 2.689903131e+10 | CA19: =IF($I$4="ne",$E$4*CA11*(1+$D$4)^CA7,($E$4*CA11-vstupy!$B$33)*(1+$D$4)^CA7) -> 2.743701194e+10 | CB19: =IF($I$4="ne",$E$4*CB11*(1+$D$4)^CB7,($E$4*CB11-vstupy!$B$33)*(1+$D$4)^CB7) -> 2.798575218e+10
A20: Daňové odpisy | B20: 0 | C20: 0 | D20: 0 | E20: 0 | F20: 0 | G20: 0 | H20: 0 | I20: 0 | J20: 0 | K20: 0 | L20: 0 | M20: 0 | N20: 0 | O20: 0 | P20: 0 | Q20: 0 | R20: 0 | S20: 0 | T20: 0 | U20: =IF(vstupy!B14=1,SUM(B16:T16)/vstupy!B15,SUM(B16:T16)/(2*vstupy!B15-1)) -> 9718339430 | V20: =IF(vstupy!$B$14=1,IF(vstupy!$B$15<(V7-18),0,(2*SUM($B$16:$T$16))/(vstupy!$B$15*vstupy!$B$15)*(vstupy!$B$15-(V7-18)+1)),IF(vstupy!$B$15<(V7-18),0,(2*SUM($B$16:$T$16)/(2*vstupy!$B$15-1)))) -> 1.846484492e+10 | W20: =IF(vstupy!$B$14=1,IF(vstupy!$B$15<(W7-18),0,(2*SUM($B$16:$T$16))/(vstupy!$B$15*vstupy!$B$15)*(vstupy!$B$15-(W7-18)+1)),IF(vstupy!$B$15<(W7-18),0,(2*SUM($B$16:$T$16)/(2*vstupy!$B$15-1)))) -> 1.749301097e+10 | X20: =IF(vstupy!$B$14=1,IF(vstupy!$B$15<(X7-18),0,(2*SUM($B$16:$T$16))/(vstupy!$B$15*vstupy!$B$15)*(vstupy!$B$15-(X7-18)+1)),IF(vstupy!$B$15<(X7-18),0,(2*SUM($B$16:$T$16)/(2*vstupy!$B$15-1)))) -> 1.652117703e+10 | Y20: =IF(vstupy!$B$14=1,IF(vstupy!$B$15<(Y7-18),0,(2*SUM($B$16:$T$16))/(vstupy!$B$15*vstupy!$B$15)*(vstupy!$B$15-(Y7-18)+1)),IF(vstupy!$B$15<(Y7-18),0,(2*SUM($B$16:$T$16)/(2*vstupy!$B$15-1)))) -> 1.554934309e+10 | Z20: =IF(vstupy!$B$14=1,IF(vstupy!$B$15<(Z7-18),0,(2*SUM($B$16:$T$16))/(vstupy!$B$15*vstupy!$B$15)*(vstupy!$B$15-(Z7-18)+1)),IF(vstupy!$B$15<(Z7-18),0,(2*SUM($B$16:$T$16)/(2*vstupy!$B$15-1)))) -> 1.457750914e+10 | AA20: =IF(vstupy!$B$14=1,IF(vstupy!$B$15<(AA7-18),0,(2*SUM($B$16:$T$16))/(vstupy!$B$15*vstupy!$B$15)*(vstupy!$B$15-(AA7-18)+1)),IF(vstupy!$B$15<(AA7-18),0,(2*SUM($B$16:$T$16)/(2*vstupy!$B$15-1)))) -> 1.36056752e+10 | AB20: =IF(vstupy!$B$14=1,IF(vstupy!$B$15<(AB7-18),0,(2*SUM($B$16:$T$16))/(vstupy!$B$15*vstupy!$B$15)*(vstupy!$B$15-(AB7-18)+1)),IF(vstupy!$B$15<(AB7-18),0,(2*SUM($B$16:$T$16)/(2*vstupy!$B$15-1)))) -> 1.263384126e+10 | AC20: =IF(vstupy!$B$14=1,IF(vstupy!$B$15<(AC7-18),0,(2*SUM($B$16:$T$16))/(vstupy!$B$15*vstupy!$B$15)*(vstupy!$B$15-(AC7-18)+1)),IF(vstupy!$B$15<(AC7-18),0,(2*SUM($B$16:$T$16)/(2*vstupy!$B$15-1)))) -> 1.166200732e+10 | AD20: =IF(vstupy!$B$14=1,IF(vstupy!$B$15<(AD7-18),0,(2*SUM($B$16:$T$16))/(vstupy!$B$15*vstupy!$B$15)*(vstupy!$B$15-(AD7-18)+1)),IF(vstupy!$B$15<(AD7-18),0,(2*SUM($B$16:$T$16)/(2*vstupy!$B$15-1)))) -> 1.069017337e+10 | AE20: =IF(vstupy!$B$14=1,IF(vstupy!$B$15<(AE7-18),0,(2*SUM($B$16:$T$16))/(vstupy!$B$15*vstupy!$B$15)*(vstupy!$B$15-(AE7-18)+1)),IF(vstupy!$B$15<(AE7-18),0,(2*SUM($B$16:$T$16)/(2*vstupy!$B$15-1)))) -> 9718339430 | AF20: =IF(vstupy!$B$14=1,IF(vstupy!$B$15<(AF7-18),0,(2*SUM($B$16:$T$16))/(vstupy!$B$15*vstupy!$B$15)*(vstupy!$B$15-(AF7-18)+1)),IF(vstupy!$B$15<(AF7-18),0,(2*SUM($B$16:$T$16)/(2*vstupy!$B$15-1)))) -> 8746505487 | AG20: =IF(vstupy!$B$14=1,IF(vstupy!$B$15<(AG7-18),0,(2*SUM($B$16:$T$16))/(vstupy!$B$15*vstupy!$B$15)*(vstupy!$B$15-(AG7-18)+1)),IF(vstupy!$B$15<(AG7-18),0,(2*SUM($B$16:$T$16)/(2*vstupy!$B$15-1)))) -> 7774671544 | AH20: =IF(vstupy!$B$14=1,IF(vstupy!$B$15<(AH7-18),0,(2*SUM($B$16:$T$16))/(vstupy!$B$15*vstupy!$B$15)*(vstupy!$B$15-(AH7-18)+1)),IF(vstupy!$B$15<(AH7-18),0,(2*SUM($B$16:$T$16)/(2*vstupy!$B$15-1)))) -> 6802837601 | AI20: =IF(vstupy!$B$14=1,IF(vstupy!$B$15<(AI7-18),0,(2*SUM($B$16:$T$16))/(vstupy!$B$15*vstupy!$B$15)*(vstupy!$B$15-(AI7-18)+1)),IF(vstupy!$B$15<(AI7-18),0,(2*SUM($B$16:$T$16)/(2*vstupy!$B$15-1)))) -> 5831003658 | AJ20: =IF(vstupy!$B$14=1,IF(vstupy!$B$15<(AJ7-18),0,(2*SUM($B$16:$T$16))/(vstupy!$B$15*vstupy!$B$15)*(vstupy!$B$15-(AJ7-18)+1)),IF(vstupy!$B$15<(AJ7-18),0,(2*SUM($B$16:$T$16)/(2*vstupy!$B$15-1)))) -> 4859169715 | AK20: =IF(vstupy!$B$14=1,IF(vstupy!$B$15<(AK7-18),0,(2*SUM($B$16:$T$16))/(vstupy!$B$15*vstupy!$B$15)*(vstupy!$B$15-(AK7-18)+1)),IF(vstupy!$B$15<(AK7-18),0,(2*SUM($B$16:$T$16)/(2*vstupy!$B$15-1)))) -> 3887335772 | AL20: =IF(vstupy!$B$14=1,IF(vstupy!$B$15<(AL7-18),0,(2*SUM($B$16:$T$16))/(vstupy!$B$15*vstupy!$B$15)*(vstupy!$B$15-(AL7-18)+1)),IF(vstupy!$B$15<(AL7-18),0,(2*SUM($B$16:$T$16)/(2*vstupy!$B$15-1)))) -> 2915501829 | AM20: =IF(vstupy!$B$14=1,IF(vstupy!$B$15<(AM7-18),0,(2*SUM($B$16:$T$16))/(vstupy!$B$15*vstupy!$B$15)*(vstupy!$B$15-(AM7-18)+1)),IF(vstupy!$B$15<(AM7-18),0,(2*SUM($B$16:$T$16)/(2*vstupy!$B$15-1)))) -> 1943667886 | AN20: =IF(vstupy!$B$14=1,IF(vstupy!$B$15<(AN7-18),0,(2*SUM($B$16:$T$16))/(vstupy!$B$15*vstupy!$B$15)*(vstupy!$B$15-(AN7-18)+1)),IF(vstupy!$B$15<(AN7-18),0,(2*SUM($B$16:$T$16)/(2*vstupy!$B$15-1)))) -> 971833943 | AO20: =IF(vstupy!$B$14=1,IF(vstupy!$B$15<(AO7-18),0,(2*SUM($B$16:$T$16))/(vstupy!$B$15*vstupy!$B$15)*(vstupy!$B$15-(AO7-18)+1)),IF(vstupy!$B$15<(AO7-18),0,(2*SUM($B$16:$T$16)/(2*vstupy!$B$15-1)))) -> 0 | AP20: =IF(vstupy!$B$14=1,IF(vstupy!$B$15<(AP7-18),0,(2*SUM($B$16:$T$16))/(vstupy!$B$15*vstupy!$B$15)*(vstupy!$B$15-(AP7-18)+1)),IF(vstupy!$B$15<(AP7-18),0,(2*SUM($B$16:$T$16)/(2*vstupy!$B$15-1)))) -> 0 | AQ20: =IF(vstupy!$B$14=1,IF(vstupy!$B$15<(AQ7-18),0,(2*SUM($B$16:$T$16))/(vstupy!$B$15*vstupy!$B$15)*(vstupy!$B$15-(AQ7-18)+1)),IF(vstupy!$B$15<(AQ7-18),0,(2*SUM($B$16:$T$16)/(2*vstupy!$B$15-1)))) -> 0 | AR20: =IF(vstupy!$B$14=1,IF(vstupy!$B$15<(AR7-18),0,(2*SUM($B$16:$T$16))/(vstupy!$B$15*vstupy!$B$15)*(vstupy!$B$15-(AR7-18)+1)),IF(vstupy!$B$15<(AR7-18),0,(2*SUM($B$16:$T$16)/(2*vstupy!$B$15-1)))) -> 0 | AS20: =IF(vstupy!$B$14=1,IF(vstupy!$B$15<(AS7-18),0,(2*SUM($B$16:$T$16))/(vstupy!$B$15*vstupy!$B$15)*(vstupy!$B$15-(AS7-18)+1)),IF(vstupy!$B$15<(AS7-18),0,(2*SUM($B$16:$T$16)/(2*vstupy!$B$15-1)))) -> 0 | AT20: =IF(vstupy!$B$14=1,IF(vstupy!$B$15<(AT7-18),0,(2*SUM($B$16:$T$16))/(vstupy!$B$15*vstupy!$B$15)*(vstupy!$B$15-(AT7-18)+1)),IF(vstupy!$B$15<(AT7-18),0,(2*SUM($B$16:$T$16)/(2*vstupy!$B$15-1)))) -> 0 | AU20: =IF(vstupy!$B$14=1,IF(vstupy!$B$15<(AU7-18),0,(2*SUM($B$16:$T$16))/(vstupy!$B$15*vstupy!$B$15)*(vstupy!$B$15-(AU7-18)+1)),IF(vstupy!$B$15<(AU7-18),0,(2*SUM($B$16:$T$16)/(2*vstupy!$B$15-1)))) -> 0 | AV20: =IF(vstupy!$B$14=1,IF(vstupy!$B$15<(AV7-18),0,(2*SUM($B$16:$T$16))/(vstupy!$B$15*vstupy!$B$15)*(vstupy!$B$15-(AV7-18)+1)),IF(vstupy!$B$15<(AV7-18),0,(2*SUM($B$16:$T$16)/(2*vstupy!$B$15-1)))) -> 0 | AW20: =IF(vstupy!$B$14=1,IF(vstupy!$B$15<(AW7-18),0,(2*SUM($B$16:$T$16))/(vstupy!$B$15*vstupy!$B$15)*(vstupy!$B$15-(AW7-18)+1)),IF(vstupy!$B$15<(AW7-18),0,(2*SUM($B$16:$T$16)/(2*vstupy!$B$15-1)))) -> 0 | AX20: =IF(vstupy!$B$14=1,IF(vstupy!$B$15<(AX7-18),0,(2*SUM($B$16:$T$16))/(vstupy!$B$15*vstupy!$B$15)*(vstupy!$B$15-(AX7-18)+1)),IF(vstupy!$B$15<(AX7-18),0,(2*SUM($B$16:$T$16)/(2*vstupy!$B$15-1)))) -> 0 | AY20: =IF(vstupy!$B$14=1,IF(vstupy!$B$15<(AY7-18),0,(2*SUM($B$16:$T$16))/(vstupy!$B$15*vstupy!$B$15)*(vstupy!$B$15-(AY7-18)+1)),IF(vstupy!$B$15<(AY7-18),0,(2*SUM($B$16:$T$16)/(2*vstupy!$B$15-1)))) -> 0 | AZ20: =IF(vstupy!$B$14=1,IF(vstupy!$B$15<(AZ7-18),0,(2*SUM($B$16:$T$16))/(vstupy!$B$15*vstupy!$B$15)*(vstupy!$B$15-(AZ7-18)+1)),IF(vstupy!$B$15<(AZ7-18),0,(2*SUM($B$16:$T$16)/(2*vstupy!$B$15-1)))) -> 0 | BA20: =IF(vstupy!$B$14=1,IF(vstupy!$B$15<(BA7-18),0,(2*SUM($B$16:$T$16))/(vstupy!$B$15*vstupy!$B$15)*(vstupy!$B$15-(BA7-18)+1)),IF(vstupy!$B$15<(BA7-18),0,(2*SUM($B$16:$T$16)/(2*vstupy!$B$15-1)))) -> 0 | BB20: =IF(vstupy!$B$14=1,IF(vstupy!$B$15<(BB7-18),0,(2*SUM($B$16:$T$16))/(vstupy!$B$15*vstupy!$B$15)*(vstupy!$B$15-(BB7-18)+1)),IF(vstupy!$B$15<(BB7-18),0,(2*SUM($B$16:$T$16)/(2*vstupy!$B$15-1)))) -> 0 | BC20: =IF(vstupy!$B$14=1,IF(vstupy!$B$15<(BC7-18),0,(2*SUM($B$16:$T$16))/(vstupy!$B$15*vstupy!$B$15)*(vstupy!$B$15-(BC7-18)+1)),IF(vstupy!$B$15<(BC7-18),0,(2*SUM($B$16:$T$16)/(2*vstupy!$B$15-1)))) -> 0 | BD20: =IF(vstupy!$B$14=1,IF(vstupy!$B$15<(BD7-18),0,(2*SUM($B$16:$T$16))/(vstupy!$B$15*vstupy!$B$15)*(vstupy!$B$15-(BD7-18)+1)),IF(vstupy!$B$15<(BD7-18),0,(2*SUM($B$16:$T$16)/(2*vstupy!$B$15-1)))) -> 0 | BE20: =IF(vstupy!$B$14=1,IF(vstupy!$B$15<(BE7-18),0,(2*SUM($B$16:$T$16))/(vstupy!$B$15*vstupy!$B$15)*(vstupy!$B$15-(BE7-18)+1)),IF(vstupy!$B$15<(BE7-18),0,(2*SUM($B$16:$T$16)/(2*vstupy!$B$15-1)))) -> 0 | BF20: =IF(vstupy!$B$14=1,IF(vstupy!$B$15<(BF7-18),0,(2*SUM($B$16:$T$16))/(vstupy!$B$15*vstupy!$B$15)*(vstupy!$B$15-(BF7-18)+1)),IF(vstupy!$B$15<(BF7-18),0,(2*SUM($B$16:$T$16)/(2*vstupy!$B$15-1)))) -> 0 | BG20: =IF(vstupy!$B$14=1,IF(vstupy!$B$15<(BG7-18),0,(2*SUM($B$16:$T$16))/(vstupy!$B$15*vstupy!$B$15)*(vstupy!$B$15-(BG7-18)+1)),IF(vstupy!$B$15<(BG7-18),0,(2*SUM($B$16:$T$16)/(2*vstupy!$B$15-1)))) -> 0 | BH20: =IF(vstupy!$B$14=1,IF(vstupy!$B$15<(BH7-18),0,(2*SUM($B$16:$T$16))/(vstupy!$B$15*vstupy!$B$15)*(vstupy!$B$15-(BH7-18)+1)),IF(vstupy!$B$15<(BH7-18),0,(2*SUM($B$16:$T$16)/(2*vstupy!$B$15-1)))) -> 0 | BI20: =IF(vstupy!$B$14=1,IF(vstupy!$B$15<(BI7-18),0,(2*SUM($B$16:$T$16))/(vstupy!$B$15*vstupy!$B$15)*(vstupy!$B$15-(BI7-18)+1)),IF(vstupy!$B$15<(BI7-18),0,(2*SUM($B$16:$T$16)/(2*vstupy!$B$15-1)))) -> 0 | BJ20: =IF(vstupy!$B$14=1,IF(vstupy!$B$15<(BJ7-18),0,(2*SUM($B$16:$T$16))/(vstupy!$B$15*vstupy!$B$15)*(vstupy!$B$15-(BJ7-18)+1)),IF(vstupy!$B$15<(BJ7-18),0,(2*SUM($B$16:$T$16)/(2*vstupy!$B$15-1)))) -> 0 | BK20: =IF(vstupy!$B$14=1,IF(vstupy!$B$15<(BK7-18),0,(2*SUM($B$16:$T$16))/(vstupy!$B$15*vstupy!$B$15)*(vstupy!$B$15-(BK7-18)+1)),IF(vstupy!$B$15<(BK7-18),0,(2*SUM($B$16:$T$16)/(2*vstupy!$B$15-1)))) -> 0 | BL20: =IF(vstupy!$B$14=1,IF(vstupy!$B$15<(BL7-18),0,(2*SUM($B$16:$T$16))/(vstupy!$B$15*vstupy!$B$15)*(vstupy!$B$15-(BL7-18)+1)),IF(vstupy!$B$15<(BL7-18),0,(2*SUM($B$16:$T$16)/(2*vstupy!$B$15-1)))) -> 0 | BM20: =IF(vstupy!$B$14=1,IF(vstupy!$B$15<(BM7-18),0,(2*SUM($B$16:$T$16))/(vstupy!$B$15*vstupy!$B$15)*(vstupy!$B$15-(BM7-18)+1)),IF(vstupy!$B$15<(BM7-18),0,(2*SUM($B$16:$T$16)/(2*vstupy!$B$15-1)))) -> 0 | BN20: =IF(vstupy!$B$14=1,IF(vstupy!$B$15<(BN7-18),0,(2*SUM($B$16:$T$16))/(vstupy!$B$15*vstupy!$B$15)*(vstupy!$B$15-(BN7-18)+1)),IF(vstupy!$B$15<(BN7-18),0,(2*SUM($B$16:$T$16)/(2*vstupy!$B$15-1)))) -> 0 | BO20: =IF(vstupy!$B$14=1,IF(vstupy!$B$15<(BO7-18),0,(2*SUM($B$16:$T$16))/(vstupy!$B$15*vstupy!$B$15)*(vstupy!$B$15-(BO7-18)+1)),IF(vstupy!$B$15<(BO7-18),0,(2*SUM($B$16:$T$16)/(2*vstupy!$B$15-1)))) -> 0 | BP20: =IF(vstupy!$B$14=1,IF(vstupy!$B$15<(BP7-18),0,(2*SUM($B$16:$T$16))/(vstupy!$B$15*vstupy!$B$15)*(vstupy!$B$15-(BP7-18)+1)),IF(vstupy!$B$15<(BP7-18),0,(2*SUM($B$16:$T$16)/(2*vstupy!$B$15-1)))) -> 0 | BQ20: =IF(vstupy!$B$14=1,IF(vstupy!$B$15<(BQ7-18),0,(2*SUM($B$16:$T$16))/(vstupy!$B$15*vstupy!$B$15)*(vstupy!$B$15-(BQ7-18)+1)),IF(vstupy!$B$15<(BQ7-18),0,(2*SUM($B$16:$T$16)/(2*vstupy!$B$15-1)))) -> 0 | BR20: =IF(vstupy!$B$14=1,IF(vstupy!$B$15<(BR7-18),0,(2*SUM($B$16:$T$16))/(vstupy!$B$15*vstupy!$B$15)*(vstupy!$B$15-(BR7-18)+1)),IF(vstupy!$B$15<(BR7-18),0,(2*SUM($B$16:$T$16)/(2*vstupy!$B$15-1)))) -> 0 | BS20: =IF(vstupy!$B$14=1,IF(vstupy!$B$15<(BS7-18),0,(2*SUM($B$16:$T$16))/(vstupy!$B$15*vstupy!$B$15)*(vstupy!$B$15-(BS7-18)+1)),IF(vstupy!$B$15<(BS7-18),0,(2*SUM($B$16:$T$16)/(2*vstupy!$B$15-1)))) -> 0 | BT20: =IF(vstupy!$B$14=1,IF(vstupy!$B$15<(BT7-18),0,(2*SUM($B$16:$T$16))/(vstupy!$B$15*vstupy!$B$15)*(vstupy!$B$15-(BT7-18)+1)),IF(vstupy!$B$15<(BT7-18),0,(2*SUM($B$16:$T$16)/(2*vstupy!$B$15-1)))) -> 0 | BU20: =IF(vstupy!$B$14=1,IF(vstupy!$B$15<(BU7-18),0,(2*SUM($B$16:$T$16))/(vstupy!$B$15*vstupy!$B$15)*(vstupy!$B$15-(BU7-18)+1)),IF(vstupy!$B$15<(BU7-18),0,(2*SUM($B$16:$T$16)/(2*vstupy!$B$15-1)))) -> 0 | BV20: =IF(vstupy!$B$14=1,IF(vstupy!$B$15<(BV7-18),0,(2*SUM($B$16:$T$16))/(vstupy!$B$15*vstupy!$B$15)*(vstupy!$B$15-(BV7-18)+1)),IF(vstupy!$B$15<(BV7-18),0,(2*SUM($B$16:$T$16)/(2*vstupy!$B$15-1)))) -> 0 | BW20: =IF(vstupy!$B$14=1,IF(vstupy!$B$15<(BW7-18),0,(2*SUM($B$16:$T$16))/(vstupy!$B$15*vstupy!$B$15)*(vstupy!$B$15-(BW7-18)+1)),IF(vstupy!$B$15<(BW7-18),0,(2*SUM($B$16:$T$16)/(2*vstupy!$B$15-1)))) -> 0 | BX20: =IF(vstupy!$B$14=1,IF(vstupy!$B$15<(BX7-18),0,(2*SUM($B$16:$T$16))/(vstupy!$B$15*vstupy!$B$15)*(vstupy!$B$15-(BX7-18)+1)),IF(vstupy!$B$15<(BX7-18),0,(2*SUM($B$16:$T$16)/(2*vstupy!$B$15-1)))) -> 0 | BY20: =IF(vstupy!$B$14=1,IF(vstupy!$B$15<(BY7-18),0,(2*SUM($B$16:$T$16))/(vstupy!$B$15*vstupy!$B$15)*(vstupy!$B$15-(BY7-18)+1)),IF(vstupy!$B$15<(BY7-18),0,(2*SUM($B$16:$T$16)/(2*vstupy!$B$15-1)))) -> 0 | BZ20: =IF(vstupy!$B$14=1,IF(vstupy!$B$15<(BZ7-18),0,(2*SUM($B$16:$T$16))/(vstupy!$B$15*vstupy!$B$15)*(vstupy!$B$15-(BZ7-18)+1)),IF(vstupy!$B$15<(BZ7-18),0,(2*SUM($B$16:$T$16)/(2*vstupy!$B$15-1)))) -> 0 | CA20: =IF(vstupy!$B$14=1,IF(vstupy!$B$15<(CA7-18),0,(2*SUM($B$16:$T$16))/(vstupy!$B$15*vstupy!$B$15)*(vstupy!$B$15-(CA7-18)+1)),IF(vstupy!$B$15<(CA7-18),0,(2*SUM($B$16:$T$16)/(2*vstupy!$B$15-1)))) -> 0 | CB20: =IF(vstupy!$B$14=1,IF(vstupy!$B$15<(CB7-18),0,(2*SUM($B$16:$T$16))/(vstupy!$B$15*vstupy!$B$15)*(vstupy!$B$15-(CB7-18)+1)),IF(vstupy!$B$15<(CB7-18),0,(2*SUM($B$16:$T$16)/(2*vstupy!$B$15-1)))) -> 0
A21: Daň z příjmu | B21: =(B27-B19-B20)*vstupy!$B$13 -> 0 | C21: =(C27-C19-C20)*vstupy!$B$13 -> 0 | D21: =(D27-D19-D20)*vstupy!$B$13 -> 0 | E21: =(E27-E19-E20)*vstupy!$B$13 -> 0 | F21: =(F27-F19-F20)*vstupy!$B$13 -> 0 | G21: =(G27-G19-G20)*vstupy!$B$13 -> 0 | H21: =(H27-H19-H20)*vstupy!$B$13 -> 0 | I21: =(I27-I19-I20)*vstupy!$B$13 -> 0 | J21: =(J27-J19-J20)*vstupy!$B$13 -> 0 | K21: =(K27-K19-K20)*vstupy!$B$13 -> 0 | L21: =(L27-L19-L20)*vstupy!$B$13 -> 0 | M21: =(M27-M19-M20)*vstupy!$B$13 -> 0 | N21: =(N27-N19-N20)*vstupy!$B$13 -> 0 | O21: =(O27-O19-O20)*vstupy!$B$13 -> 0 | P21: =(P27-P19-P20)*vstupy!$B$13 -> 0 | Q21: =(Q27-Q19-Q20)*vstupy!$B$13 -> 0 | R21: =(R27-R19-R20)*vstupy!$B$13 -> 0 | S21: =(S27-S19-S20)*vstupy!$B$13 -> 0 | T21: =(T27-T19-T20)*vstupy!$B$13 -> 0 | U21: =(U27-U19-U20)*vstupy!$B$13 -> -1967391509 | V21: =(V27-V19-V20)*vstupy!$B$13 -> -3631645692 | W21: =(W27-W19-W20)*vstupy!$B$13 -> -3449463746 | X21: =(X27-X19-X20)*vstupy!$B$13 -> -3267331130 | Y21: =(Y27-Y19-Y20)*vstupy!$B$13 -> -3085248830 | Z21: =(Z27-Z19-Z20)*vstupy!$B$13 -> -2903217854 | AA21: =(AA27-AA19-AA20)*vstupy!$B$13 -> -2721239227 | AB21: =(AB27-AB19-AB20)*vstupy!$B$13 -> -2539313997 | AC21: =(AC27-AC19-AC20)*vstupy!$B$13 -> -2357443231 | AD21: =(AD27-AD19-AD20)*vstupy!$B$13 -> -2175628019 | AE21: =(AE27-AE19-AE20)*vstupy!$B$13 -> -1993869471 | AF21: =(AF27-AF19-AF20)*vstupy!$B$13 -> -1812168721 | AG21: =(AG27-AG19-AG20)*vstupy!$B$13 -> -1630526926 | AH21: =(AH27-AH19-AH20)*vstupy!$B$13 -> -1448945263 | AI21: =(AI27-AI19-AI20)*vstupy!$B$13 -> -1267424936 | AJ21: =(AJ27-AJ19-AJ20)*vstupy!$B$13 -> -1085967172 | AK21: =(AK27-AK19-AK20)*vstupy!$B$13 -> -904573221.5 | AL21: =(AL27-AL19-AL20)*vstupy!$B$13 -> -723244360.9 | AM21: =(AM27-AM19-AM20)*vstupy!$B$13 -> -541981892 | AN21: =(AN27-AN19-AN20)*vstupy!$B$13 -> -360787142.7 | AO21: =(AO27-AO19-AO20)*vstupy!$B$13 -> -179661467.4 | AP21: =(AP27-AP19-AP20)*vstupy!$B$13 -> -183254696.7 | AQ21: =(AQ27-AQ19-AQ20)*vstupy!$B$13 -> -186919790.6 | AR21: =(AR27-AR19-AR20)*vstupy!$B$13 -> -190658186.5 | AS21: =(AS27-AS19-AS20)*vstupy!$B$13 -> -194471350.2 | AT21: =(AT27-AT19-AT20)*vstupy!$B$13 -> -198360777.2 | AU21: =(AU27-AU19-AU20)*vstupy!$B$13 -> -202327992.7 | AV21: =(AV27-AV19-AV20)*vstupy!$B$13 -> -206374552.6 | AW21: =(AW27-AW19-AW20)*vstupy!$B$13 -> -210502043.6 | AX21: =(AX27-AX19-AX20)*vstupy!$B$13 -> -214712084.5 | AY21: =(AY27-AY19-AY20)*vstupy!$B$13 -> -219006326.2 | AZ21: =(AZ27-AZ19-AZ20)*vstupy!$B$13 -> -223386452.7 | BA21: =(BA27-BA19-BA20)*vstupy!$B$13 -> -227854181.8 | BB21: =(BB27-BB19-BB20)*vstupy!$B$13 -> -232411265.4 | BC21: =(BC27-BC19-BC20)*vstupy!$B$13 -> -237059490.7 | BD21: =(BD27-BD19-BD20)*vstupy!$B$13 -> -241800680.5 | BE21: =(BE27-BE19-BE20)*vstupy!$B$13 -> -246636694.2 | BF21: =(BF27-BF19-BF20)*vstupy!$B$13 -> -251569428 | BG21: =(BG27-BG19-BG20)*vstupy!$B$13 -> -256600816.6 | BH21: =(BH27-BH19-BH20)*vstupy!$B$13 -> -261732832.9 | BI21: =(BI27-BI19-BI20)*vstupy!$B$13 -> -266967489.6 | BJ21: =(BJ27-BJ19-BJ20)*vstupy!$B$13 -> -272306839.4 | BK21: =(BK27-BK19-BK20)*vstupy!$B$13 -> -277752976.2 | BL21: =(BL27-BL19-BL20)*vstupy!$B$13 -> -283308035.7 | BM21: =(BM27-BM19-BM20)*vstupy!$B$13 -> -288974196.4 | BN21: =(BN27-BN19-BN20)*vstupy!$B$13 -> -294753680.3 | BO21: =(BO27-BO19-BO20)*vstupy!$B$13 -> -300648753.9 | BP21: =(BP27-BP19-BP20)*vstupy!$B$13 -> -306661729 | BQ21: =(BQ27-BQ19-BQ20)*vstupy!$B$13 -> -312794963.6 | BR21: =(BR27-BR19-BR20)*vstupy!$B$13 -> -319050862.9 | BS21: =(BS27-BS19-BS20)*vstupy!$B$13 -> -325431880.1 | BT21: =(BT27-BT19-BT20)*vstupy!$B$13 -> -331940517.7 | BU21: =(BU27-BU19-BU20)*vstupy!$B$13 -> -338579328.1 | BV21: =(BV27-BV19-BV20)*vstupy!$B$13 -> -345350914.6 | BW21: =(BW27-BW19-BW20)*vstupy!$B$13 -> -352257932.9 | BX21: =(BX27-BX19-BX20)*vstupy!$B$13 -> -359303091.6 | BY21: =(BY27-BY19-BY20)*vstupy!$B$13 -> -366489153.4 | BZ21: =(BZ27-BZ19-BZ20)*vstupy!$B$13 -> -373818936.5 | CA21: =(CA27-CA19-CA20)*vstupy!$B$13 -> -381295315.2 | CB21: =(CB27-CB19-CB20)*vstupy!$B$13 -> -388921221.5
A22: Celkem | B22: =B19+B21 -> 0 | C22: 0 | D22: 0 | E22: 0 | F22: 0 | G22: 0 | H22: 0 | I22: 0 | J22: 0 | K22: 0 | L22: 0 | M22: 0 | N22: 0 | O22: 0 | P22: 0 | Q22: 0 | R22: 0 | S22: 0 | T22: 0 | U22: 6732760688 | V22: 5242509549 | W22: 5602174600 | X22: 5965339983 | Y22: 6332075704 | Z22: 6702453171 | AA22: 7076545219 | AB22: 7454426138 | AC22: 7836171707 | AD22: 8221859218 | AE22: 8611567510 | AF22: 9005376999 | AG22: 9403369709 | AH22: =AH19+AH21 -> 9805629304 | AI22: 1.021224112e+10 | AJ22: 1.062329221e+10 | AK22: 1.103887135e+10 | AL22: 1.14590691e+10 | AM22: 1.188397784e+10 | AN22: 1.231369178e+10 | AO22: 1.274830703e+10 | AP22: 1.300327317e+10 | AQ22: 1.326333864e+10 | AR22: 1.352860541e+10 | AS22: 1.379917752e+10 | AT22: 1.407516107e+10 | AU22: 1.435666429e+10 | AV22: 1.464379758e+10 | AW22: 1.493667353e+10 | AX22: 1.5235407e+10 | AY22: 1.554011514e+10 | AZ22: 1.585091744e+10 | BA22: 1.616793579e+10 | BB22: 1.649129451e+10 | BC22: 1.68211204e+10 | BD22: 1.71575428e+10 | BE22: 1.750069366e+10 | BF22: 1.785070753e+10 | BG22: 1.820772168e+10 | BH22: 1.857187612e+10 | BI22: 1.894331364e+10 | BJ22: 1.932217991e+10 | BK22: 1.970862351e+10 | BL22: 2.010279598e+10 | BM22: 2.05048519e+10 | BN22: 2.091494894e+10 | BO22: 2.133324792e+10 | BP22: 2.175991288e+10 | BQ22: 2.219511113e+10 | BR22: 2.263901336e+10 | BS22: 2.309179362e+10 | BT22: 2.35536295e+10 | BU22: 2.402470209e+10 | BV22: 2.450519613e+10 | BW22: 2.499530005e+10 | BX22: 2.549520605e+10 | BY22: 2.600511017e+10 | BZ22: 2.652521238e+10 | CA22: 2.705571662e+10 | CB22: 2.759683096e+10
A24: Příjmy
A25: Prodej elektřiny | B25: 0 | C25: =C11*$G$4*(1+$D$4)^C7 -> 0 | D25: =D11*$G$4*(1+$D$4)^D7 -> 0 | E25: 0 | F25: 0 | G25: 0 | H25: 0 | I25: 0 | J25: 0 | K25: 0 | L25: 0 | M25: 0 | N25: 0 | O25: 0 | P25: 0 | Q25: 0 | R25: 0 | S25: 0 | T25: 0 | U25: =U11*$G$4*(1+$J$4)^U7 -> 8063799475 | V25: =V11*$G$4*(1+$J$4)^V7 -> 8225075464 | W25: 8389576973 | X25: 8557368513 | Y25: 8728515883 | Z25: 8903086201 | AA25: 9081147925 | AB25: 9262770883 | AC25: 9448026301 | AD25: 9636986827 | AE25: 9829726564 | AF25: 1.002632109e+10 | AG25: 1.022684752e+10 | AH25: 1.043138447e+10 | AI25: 1.064001216e+10 | AJ25: 1.08528124e+10 | AK25: 1.106986865e+10 | AL25: 1.129126602e+10 | AM25: 1.151709134e+10 | AN25: 1.174743317e+10 | AO25: 1.198238183e+10 | AP25: 1.222202947e+10 | AQ25: 1.246647006e+10 | AR25: 1.271579946e+10 | AS25: 1.297011545e+10 | AT25: 1.322951776e+10 | AU25: 1.349410811e+10 | AV25: 1.376399027e+10 | AW25: 1.403927008e+10 | AX25: 1.432005548e+10 | AY25: 1.460645659e+10 | AZ25: 1.489858572e+10 | BA25: 1.519655744e+10 | BB25: 1.550048859e+10 | BC25: 1.581049836e+10 | BD25: 1.612670832e+10 | BE25: 1.644924249e+10 | BF25: 1.677822734e+10 | BG25: 1.711379189e+10 | BH25: 1.745606772e+10 | BI25: 1.780518908e+10 | BJ25: 1.816129286e+10 | BK25: 1.852451872e+10 | BL25: 1.889500909e+10 | BM25: 1.927290927e+10 | BN25: 1.965836746e+10 | BO25: 2.005153481e+10 | BP25: 2.045256551e+10 | BQ25: 2.086161682e+10 | BR25: 2.127884915e+10 | BS25: 2.170442613e+10 | BT25: 2.213851466e+10 | BU25: 2.258128495e+10 | BV25: 2.303291065e+10 | BW25: 2.349356886e+10 | BX25: 2.396344024e+10 | BY25: 2.444270904e+10 | BZ25: 2.493156323e+10 | CA25: 2.543019449e+10 | CB25: 2.593879838e+10
A26: Prodej tepla | B26: =(B12*vstupy!$B$34)*(1+$D$4)^B7 -> 0 | C26: =(C12*vstupy!$B$34)*(1+$D$4)^C7 -> 0 | D26: =(D12*vstupy!$B$34)*(1+$D$4)^D7 -> 0 | E26: =(E12*vstupy!$B$34)*(1+$D$4)^E7 -> 0 | F26: =(F12*vstupy!$B$34)*(1+$D$4)^F7 -> 0 | G26: =(G12*vstupy!$B$34)*(1+$D$4)^G7 -> 0 | H26: =(H12*vstupy!$B$34)*(1+$D$4)^H7 -> 0 | I26: =(I12*vstupy!$B$34)*(1+$D$4)^I7 -> 0 | J26: =(J12*vstupy!$B$34)*(1+$D$4)^J7 -> 0 | K26: =(K12*vstupy!$B$34)*(1+$D$4)^K7 -> 0 | L26: =(L12*vstupy!$B$34)*(1+$D$4)^L7 -> 0 | M26: =(M12*vstupy!$B$34)*(1+$D$4)^M7 -> 0 | N26: =(N12*vstupy!$B$34)*(1+$D$4)^N7 -> 0 | O26: =(O12*vstupy!$B$34)*(1+$D$4)^O7 -> 0 | P26: =(P12*vstupy!$B$34)*(1+$D$4)^P7 -> 0 | Q26: =(Q12*vstupy!$B$34)*(1+$D$4)^Q7 -> 0 | R26: =(R12*vstupy!$B$34)*(1+$D$4)^R7 -> 0 | S26: =(S12*vstupy!$B$34)*(1+$D$4)^S7 -> 0 | T26: =(T12*vstupy!$B$34)*(1+$D$4)^T7 -> 0 | U26: =(U12*vstupy!$B$34)*(1+$J$4)^U7 -> 0 | V26: =(V12*vstupy!$B$34)*(1+$J$4)^V7 -> 0 | W26: =(W12*vstupy!$B$34)*(1+$J$4)^W7 -> 0 | X26: =(X12*vstupy!$B$34)*(1+$J$4)^X7 -> 0 | Y26: =(Y12*vstupy!$B$34)*(1+$J$4)^Y7 -> 0 | Z26: =(Z12*vstupy!$B$34)*(1+$J$4)^Z7 -> 0 | AA26: =(AA12*vstupy!$B$34)*(1+$J$4)^AA7 -> 0 | AB26: =(AB12*vstupy!$B$34)*(1+$J$4)^AB7 -> 0 | AC26: =(AC12*vstupy!$B$34)*(1+$J$4)^AC7 -> 0 | AD26: =(AD12*vstupy!$B$34)*(1+$J$4)^AD7 -> 0 | AE26: =(AE12*vstupy!$B$34)*(1+$J$4)^AE7 -> 0 | AF26: =(AF12*vstupy!$B$34)*(1+$J$4)^AF7 -> 0 | AG26: =(AG12*vstupy!$B$34)*(1+$J$4)^AG7 -> 0 | AH26: =(AH12*vstupy!$B$34)*(1+$J$4)^AH7 -> 0 | AI26: =(AI12*vstupy!$B$34)*(1+$J$4)^AI7 -> 0 | AJ26: =(AJ12*vstupy!$B$34)*(1+$J$4)^AJ7 -> 0 | AK26: =(AK12*vstupy!$B$34)*(1+$J$4)^AK7 -> 0 | AL26: =(AL12*vstupy!$B$34)*(1+$J$4)^AL7 -> 0 | AM26: =(AM12*vstupy!$B$34)*(1+$J$4)^AM7 -> 0 | AN26: =(AN12*vstupy!$B$34)*(1+$J$4)^AN7 -> 0 | AO26: =(AO12*vstupy!$B$34)*(1+$J$4)^AO7 -> 0 | AP26: =(AP12*vstupy!$B$34)*(1+$J$4)^AP7 -> 0 | AQ26: =(AQ12*vstupy!$B$34)*(1+$J$4)^AQ7 -> 0 | AR26: =(AR12*vstupy!$B$34)*(1+$J$4)^AR7 -> 0 | AS26: =(AS12*vstupy!$B$34)*(1+$J$4)^AS7 -> 0 | AT26: =(AT12*vstupy!$B$34)*(1+$J$4)^AT7 -> 0 | AU26: =(AU12*vstupy!$B$34)*(1+$J$4)^AU7 -> 0 | AV26: =(AV12*vstupy!$B$34)*(1+$J$4)^AV7 -> 0 | AW26: =(AW12*vstupy!$B$34)*(1+$J$4)^AW7 -> 0 | AX26: =(AX12*vstupy!$B$34)*(1+$J$4)^AX7 -> 0 | AY26: =(AY12*vstupy!$B$34)*(1+$J$4)^AY7 -> 0 | AZ26: =(AZ12*vstupy!$B$34)*(1+$J$4)^AZ7 -> 0 | BA26: =(BA12*vstupy!$B$34)*(1+$J$4)^BA7 -> 0 | BB26: =(BB12*vstupy!$B$34)*(1+$J$4)^BB7 -> 0 | BC26: =(BC12*vstupy!$B$34)*(1+$J$4)^BC7 -> 0 | BD26: =(BD12*vstupy!$B$34)*(1+$J$4)^BD7 -> 0 | BE26: =(BE12*vstupy!$B$34)*(1+$J$4)^BE7 -> 0 | BF26: =(BF12*vstupy!$B$34)*(1+$J$4)^BF7 -> 0 | BG26: =(BG12*vstupy!$B$34)*(1+$J$4)^BG7 -> 0 | BH26: =(BH12*vstupy!$B$34)*(1+$J$4)^BH7 -> 0 | BI26: =(BI12*vstupy!$B$34)*(1+$J$4)^BI7 -> 0 | BJ26: =(BJ12*vstupy!$B$34)*(1+$J$4)^BJ7 -> 0 | BK26: =(BK12*vstupy!$B$34)*(1+$J$4)^BK7 -> 0 | BL26: =(BL12*vstupy!$B$34)*(1+$J$4)^BL7 -> 0 | BM26: =(BM12*vstupy!$B$34)*(1+$J$4)^BM7 -> 0 | BN26: =(BN12*vstupy!$B$34)*(1+$J$4)^BN7 -> 0 | BO26: =(BO12*vstupy!$B$34)*(1+$J$4)^BO7 -> 0 | BP26: =(BP12*vstupy!$B$34)*(1+$J$4)^BP7 -> 0 | BQ26: =(BQ12*vstupy!$B$34)*(1+$J$4)^BQ7 -> 0 | BR26: =(BR12*vstupy!$B$34)*(1+$J$4)^BR7 -> 0 | BS26: =(BS12*vstupy!$B$34)*(1+$J$4)^BS7 -> 0 | BT26: =(BT12*vstupy!$B$34)*(1+$J$4)^BT7 -> 0 | BU26: =(BU12*vstupy!$B$34)*(1+$J$4)^BU7 -> 0 | BV26: =(BV12*vstupy!$B$34)*(1+$J$4)^BV7 -> 0 | BW26: =(BW12*vstupy!$B$34)*(1+$J$4)^BW7 -> 0 | BX26: =(BX12*vstupy!$B$34)*(1+$J$4)^BX7 -> 0 | BY26: =(BY12*vstupy!$B$34)*(1+$J$4)^BY7 -> 0 | BZ26: =(BZ12*vstupy!$B$34)*(1+$J$4)^BZ7 -> 0 | CA26: =(CA12*vstupy!$B$34)*(1+$J$4)^CA7 -> 0 | CB26: =(CB12*vstupy!$B$34)*(1+$J$4)^CB7 -> 0
A27: Celkem | B27: =B25+B26 -> 0 | C27: =C25+C26 -> 0 | D27: =D25+D26 -> 0 | E27: 0 | F27: 0 | G27: 0 | H27: 0 | I27: 0 | J27: 0 | K27: 0 | L27: 0 | M27: 0 | N27: 0 | O27: 0 | P27: 0 | Q27: 0 | R27: 0 | S27: 0 | T27: 0 | U27: 8063799475 | V27: 8225075464 | W27: 8389576973 | X27: 8557368513 | Y27: 8728515883 | Z27: 8903086201 | AA27: 9081147925 | AB27: 9262770883 | AC27: 9448026301 | AD27: 9636986827 | AE27: 9829726564 | AF27: 1.002632109e+10 | AG27: 1.022684752e+10 | AH27: 1.043138447e+10 | AI27: 1.064001216e+10 | AJ27: 1.08528124e+10 | AK27: 1.106986865e+10 | AL27: 1.129126602e+10 | AM27: 1.151709134e+10 | AN27: 1.174743317e+10 | AO27: 1.198238183e+10 | AP27: 1.222202947e+10 | AQ27: 1.246647006e+10 | AR27: 1.271579946e+10 | AS27: 1.297011545e+10 | AT27: 1.322951776e+10 | AU27: 1.349410811e+10 | AV27: 1.376399027e+10 | AW27: 1.403927008e+10 | AX27: 1.432005548e+10 | AY27: 1.460645659e+10 | AZ27: 1.489858572e+10 | BA27: 1.519655744e+10 | BB27: 1.550048859e+10 | BC27: 1.581049836e+10 | BD27: 1.612670832e+10 | BE27: 1.644924249e+10 | BF27: 1.677822734e+10 | BG27: 1.711379189e+10 | BH27: 1.745606772e+10 | BI27: 1.780518908e+10 | BJ27: 1.816129286e+10 | BK27: 1.852451872e+10 | BL27: 1.889500909e+10 | BM27: 1.927290927e+10 | BN27: 1.965836746e+10 | BO27: 2.005153481e+10 | BP27: =BP25+BP26 -> 2.045256551e+10 | BQ27: 2.086161682e+10 | BR27: 2.127884915e+10 | BS27: 2.170442613e+10 | BT27: 2.213851466e+10 | BU27: 2.258128495e+10 | BV27: 2.303291065e+10 | BW27: 2.349356886e+10 | BX27: 2.396344024e+10 | BY27: 2.444270904e+10 | BZ27: 2.493156323e+10 | CA27: 2.543019449e+10 | CB27: 2.593879838e+10
A30: CF | B30: =-B16-B22+B27 -> -315466800 | C30: -482664204 | D30: -820529146.8 | E30: -1673879459 | F30: -3414714097 | G30: -5224512569 | H30: -7105337094 | I30: -9059304794 | J30: -1.293668725e+10 | K30: -1.885060142e+10 | L30: -2.307313613e+10 | M30: -2.941824857e+10 | N30: -3.000661354e+10 | O30: -2.652584637e+10 | P30: -1.040629358e+10 | Q30: -8491535558 | R30: -4330683135 | S30: -1104324199 | T30: -1126410683 | U30: 1331038787 | V30: 2982565915 | W30: 2787402374 | X30: 2592028530 | Y30: 2396440179 | Z30: 2200633030 | AA30: 2004602706 | AB30: 1808344745 | AC30: 1611854594 | AD30: 1415127609 | AE30: 1218159054 | AF30: 1020944096 | AG30: 823477807.5 | AH30: =-AH16-AH22+AH27 -> 625755162.7 | AI30: 427771033.9 | AJ30: 229520191.5 | AK30: 30997301.22 | AL30: -167803077.9 | AM30: -366886495.5 | AN30: -566258612.6 | AO30: -765925203 | AP30: -781243707 | AQ30: -796868581.2 | AR30: -812805952.8 | AS30: -829062071.8 | AT30: -845643313.3 | AU30: -862556179.6 | AV30: -879807303.1 | AW30: -897403449.2 | AX30: -915351518.2 | AY30: -933658548.6 | AZ30: -952331719.5 | BA30: -971378353.9 | BB30: -990805921 | BC30: -1010622039 | BD30: -1030834480 | BE30: -1051451170 | BF30: -1072480193 | BG30: -1093929797 | BH30: -1115808393 | BI30: -1138124561 | BJ30: -1160887052 | BK30: -1184104793 | BL30: -1207786889 | BM30: -1231942627 | BN30: -1256581479 | BO30: -1281713109 | BP30: -1307347371 | BQ30: -1333494318 | BR30: -1360164205 | BS30: -1387367489 | BT30: -1415114839 | BU30: -1443417136 | BV30: -1472285478 | BW30: -1501731188 | BX30: -1531765812 | BY30: -1562401128 | BZ30: -1593649150 | CA30: -1625522133 | CB30: -1658032576
A31: DCF | B31: =B30/((1+vstupy!$B$3)^B7) -> -315466800 | C31: =C30/((1+vstupy!$B$3)^C7) -> -451088041.1 | D31: =D30/((1+vstupy!$B$3)^D7) -> -716681934.5 | E31: =E30/((1+vstupy!$B$3)^E7) -> -1366384249 | F31: =F30/((1+vstupy!$B$3)^F7) -> -2605069035 | G31: =G30/((1+vstupy!$B$3)^G7) -> -3725005256 | H31: =H30/((1+vstupy!$B$3)^H7) -> -4734586120 | I31: =I30/((1+vstupy!$B$3)^I7) -> -5641679722 | J31: =J30/((1+vstupy!$B$3)^J7) -> -7529269760 | K31: =K30/((1+vstupy!$B$3)^K7) -> -1.025347818e+10 | L31: =L30/((1+vstupy!$B$3)^L7) -> -1.172921242e+10 | M31: =M30/((1+vstupy!$B$3)^M7) -> -1.397639798e+10 | N31: =N30/((1+vstupy!$B$3)^N7) -> -1.332329527e+10 | O31: =O30/((1+vstupy!$B$3)^O7) -> -1.100728319e+10 | P31: =P30/((1+vstupy!$B$3)^P7) -> -4035740064 | Q31: =Q30/((1+vstupy!$B$3)^Q7) -> -3077723264 | R31: =R30/((1+vstupy!$B$3)^R7) -> -1466952210 | S31: =S30/((1+vstupy!$B$3)^S7) -> -349600760.3 | T31: =T30/((1+vstupy!$B$3)^T7) -> -333264276.2 | U31: =U30/((1+vstupy!$B$3)^U7) -> 368043316.1 | V31: =V30/((1+vstupy!$B$3)^V7) -> 770751709.6 | W31: =W30/((1+vstupy!$B$3)^W7) -> 673194151.2 | X31: =X30/((1+vstupy!$B$3)^X7) -> 585054963.8 | Y31: =Y30/((1+vstupy!$B$3)^Y7) -> 505521586.9 | Z31: =Z30/((1+vstupy!$B$3)^Z7) -> 433847363.5 | AA31: =AA30/((1+vstupy!$B$3)^AA7) -> 369346399.9 | AB31: =AB30/((1+vstupy!$B$3)^AB7) -> 311388815 | AC31: =AC30/((1+vstupy!$B$3)^AC7) -> 259396351.9 | AD31: =AD30/((1+vstupy!$B$3)^AD7) -> 212838323.3 | AE31: =AE30/((1+vstupy!$B$3)^AE7) -> 171227866.1 | AF31: =AF30/((1+vstupy!$B$3)^AF7) -> 134118482.6 | AG31: =AG30/((1+vstupy!$B$3)^AG7) -> 101100846.4 | AH31: =AH30/((1+vstupy!$B$3)^AH7) -> 71799853.06 | AI31: =AI30/((1+vstupy!$B$3)^AI7) -> 45871897.98 | AJ31: =AJ30/((1+vstupy!$B$3)^AJ7) -> 23002363.18 | AK31: =AK30/((1+vstupy!$B$3)^AK7) -> 2903298.333 | AL31: =AL30/((1+vstupy!$B$3)^AL7) -> -14688719.1 | AM31: =AM30/((1+vstupy!$B$3)^AM7) -> -30014557.99 | AN31: =AN30/((1+vstupy!$B$3)^AN7) -> -43294354.46 | AO31: =AO30/((1+vstupy!$B$3)^AO7) -> -54729191.27 | AP31: =AP30/((1+vstupy!$B$3)^AP7) -> -52171752.42 | AQ31: =AQ30/((1+vstupy!$B$3)^AQ7) -> -49733820.07 | AR31: =AR30/((1+vstupy!$B$3)^AR7) -> -47409809.78 | AS31: =AS30/((1+vstupy!$B$3)^AS7) -> -45194398.11 | AT31: =AT30/((1+vstupy!$B$3)^AT7) -> -43082510.35 | AU31: =AU30/((1+vstupy!$B$3)^AU7) -> -41069308.93 | AV31: =AV30/((1+vstupy!$B$3)^AV7) -> -39150182.34 | AW31: =AW30/((1+vstupy!$B$3)^AW7) -> -37320734.57 | AX31: =AX30/((1+vstupy!$B$3)^AX7) -> -35576775.01 | AY31: =AY30/((1+vstupy!$B$3)^AY7) -> -33914308.89 | AZ31: =AZ30/((1+vstupy!$B$3)^AZ7) -> -32329528.1 | BA31: =BA30/((1+vstupy!$B$3)^BA7) -> -30818802.49 | BB31: =BB30/((1+vstupy!$B$3)^BB7) -> -29378671.53 | BC31: =BC30/((1+vstupy!$B$3)^BC7) -> -28005836.41 | BD31: =BD30/((1+vstupy!$B$3)^BD7) -> -26697152.47 | BE31: =BE30/((1+vstupy!$B$3)^BE7) -> -25449621.98 | BF31: =BF30/((1+vstupy!$B$3)^BF7) -> -24260387.31 | BG31: =BG30/((1+vstupy!$B$3)^BG7) -> -23126724.35 | BH31: =BH30/((1+vstupy!$B$3)^BH7) -> -22046036.29 | BI31: =BI30/((1+vstupy!$B$3)^BI7) -> -21015847.68 | BJ31: =BJ30/((1+vstupy!$B$3)^BJ7) -> -20033798.73 | BK31: =BK30/((1+vstupy!$B$3)^BK7) -> -19097639.91 | BL31: =BL30/((1+vstupy!$B$3)^BL7) -> -18205226.83 | BM31: =BM30/((1+vstupy!$B$3)^BM7) -> -17354515.29 | BN31: =BN30/((1+vstupy!$B$3)^BN7) -> -16543556.63 | BO31: =BO30/((1+vstupy!$B$3)^BO7) -> -15770493.24 | BP31: =BP30/((1+vstupy!$B$3)^BP7) -> -15033554.3 | BQ31: =BQ30/((1+vstupy!$B$3)^BQ7) -> -14331051.77 | BR31: =BR30/((1+vstupy!$B$3)^BR7) -> -13661376.45 | BS31: =BS30/((1+vstupy!$B$3)^BS7) -> -13022994.37 | BT31: =BT30/((1+vstupy!$B$3)^BT7) -> -12414443.23 | BU31: =BU30/((1+vstupy!$B$3)^BU7) -> -11834329.06 | BV31: =BV30/((1+vstupy!$B$3)^BV7) -> -11281323.03 | BW31: =BW30/((1+vstupy!$B$3)^BW7) -> -10754158.41 | BX31: =BX30/((1+vstupy!$B$3)^BX7) -> -10251627.64 | BY31: =BY30/((1+vstupy!$B$3)^BY7) -> -9772579.618 | BZ31: =BZ30/((1+vstupy!$B$3)^BZ7) -> -9315917.019 | CA31: =CA30/((1+vstupy!$B$3)^CA7) -> -8880593.794 | CB31: =CB30/((1+vstupy!$B$3)^CB7) -> -8465612.776
A33: NPV vztahem | B33: =SUM(B31:CB31) -> -9.268527477e+10 | D33: Cena v 0. roce dle scénáře pro NPV = 0, bez tepla | E33: 5 % | F33: 7 % | G33: 10 %
A34: NPV funkcí | B34: =NPV(C4,C30:CB30)+B30 -> -9.268527477e+10 | E34: 1615.436687 | F34: 2287.355587 | G34: 3809.959507
E35: =E34/vstupy!$B$10 -> 59.78670197 | F35: =F34/vstupy!$B$10 -> 84.65416681 | G35: =G34/vstupy!$B$10 -> 141.0051631
A36: LCOE | B36: =(NPV(C4,C16:AA16)+B16+NPV(C4,C22:CB22)+B22)/NPV(C4,C11:CB11) -> 3867.627558 | D36: Cena v 0. roce dle scénáře pro NPV = 0, s teplem | E36: 5 % | F36: 7 % | G36: 10 %
E37: 1179.386074 | F37: 2003.80105 | G37: 3899.663243
E38: =E37/vstupy!$B$10 -> 43.64863339 | F38: =F37/vstupy!$B$10 -> 74.15992042 | G38: =G37/vstupy!$B$10 -> 144.3250645

Sheet CfD
A1: Výpočet NPV projektu NJZ s podporou formou CfD + výpočet podpory
A3: =bez_podpory!A3 -> přehled vstupů: | B3: =bez_podpory!B3 -> scénář | C3: =bez_podpory!C3 -> diskont | D3: =bez_podpory!D3 -> růst cen služeb | E3: =bez_podpory!E3 -> O&M | F3: =bez_podpory!F3 -> overnight costs | G3: =bez_podpory!G3 -> cena elektřiny | H3: =bez_podpory!H3 -> odpisy | I3: =bez_podpory!I3 -> teplo | J3: =bez_podpory!J3 -> růst ceny energií
A4: =bez_podpory!A4 -> 0 | B4: =bez_podpory!B4 -> 7 % | C4: =bez_podpory!C4 -> 0.07 | D4: =bez_podpory!D4 -> 0.02 | E4: =bez_podpory!E4 -> 696.7394096 | F4: =bez_podpory!F4 -> 131444.5 | G4: =bez_podpory!G4 -> 645.778 | H4: =bez_podpory!H4 -> degresivní | I4: =bez_podpory!I4 -> ne | J4: =bez_podpory!J4 -> 0.02
A5: =bez_podpory!A5 -> 0 | B5: =bez_podpory!B5 -> 0 | C5: =bez_podpory!C5 -> 0 | D5: =bez_podpory!D5 -> 0 | E5: =bez_podpory!E5 -> 25.78606253 | F5: =bez_podpory!F5 -> 5500 | G5: =bez_podpory!G5 -> 23.9 | H5: =bez_podpory!H5 -> 20 | I5: =bez_podpory!I5 -> 0 | J5: =bez_podpory!J5 -> 0
A7: Strike price CfD | B7: 105 | C7: =B7*vstupy!B10 -> 2837.1
A8: Délka smlouvy | B8: 30
B10: =bez_podpory!B7 -> 0 | C10: =bez_podpory!C7 -> 1 | D10: =bez_podpory!D7 -> 2 | E10: =bez_podpory!E7 -> 3 | F10: =bez_podpory!F7 -> 4 | G10: =bez_podpory!G7 -> 5 | H10: =bez_podpory!H7 -> 6 | I10: =bez_podpory!I7 -> 7 | J10: =bez_podpory!J7 -> 8 | K10: =bez_podpory!K7 -> 9 | L10: =bez_podpory!L7 -> 10 | M10: =bez_podpory!M7 -> 11 | N10: =bez_podpory!N7 -> 12 | O10: =bez_podpory!O7 -> 13 | P10: =bez_podpory!P7 -> 14 | Q10: =bez_podpory!Q7 -> 15 | R10: =bez_podpory!R7 -> 16 | S10: =bez_podpory!S7 -> 17 | T10: =bez_podpory!T7 -> 18 | U10: =bez_podpory!U7 -> 19 | V10: =bez_podpory!V7 -> 20 | W10: =bez_podpory!W7 -> 21 | X10: =bez_podpory!X7 -> 22 | Y10: =bez_podpory!Y7 -> 23 | Z10: =bez_podpory!Z7 -> 24 | AA10: =bez_podpory!AA7 -> 25 | AB10: =bez_podpory!AB7 -> 26 | AC10: =bez_podpory!AC7 -> 27 | AD10: =bez_podpory!AD7 -> 28 | AE10: =bez_podpory!AE7 -> 29 | AF10: =bez_podpory!AF7 -> 30 | AG10: =bez_podpory!AG7 -> 31 | AH10: =bez_podpory!AH7 -> 32 | AI10: =bez_podpory!AI7 -> 33 | AJ10: =bez_podpory!AJ7 -> 34 | AK10: =bez_podpory!AK7 -> 35 | AL10: =bez_podpory!AL7 -> 36 | AM10: =bez_podpory!AM7 -> 37 | AN10: =bez_podpory!AN7 -> 38 | AO10: =bez_podpory!AO7 -> 39 | AP10: =bez_podpory!AP7 -> 40 | AQ10: =bez_podpory!AQ7 -> 41 | AR10: =bez_podpory!AR7 -> 42 | AS10: =bez_podpory!AS7 -> 43 | AT10: =bez_podpory!AT7 -> 44 | AU10: =bez_podpory!AU7 -> 45 | AV10: =bez_podpory!AV7 -> 46 | AW10: =bez_podpory!AW7 -> 47 | AX10: =bez_podpory!AX7 -> 48 | AY10: =bez_podpory!AY7 -> 49 | AZ10: =bez_podpory!AZ7 -> 50 | BA10: =bez_podpory!BA7 -> 51 | BB10: =bez_podpory!BB7 -> 52 | BC10: =bez_podpory!BC7 -> 53 | BD10: =bez_podpory!BD7 -> 54 | BE10: =bez_podpory!BE7 -> 55 | BF10: =bez_podpory!BF7 -> 56 | BG10: =bez_podpory!BG7 -> 57 | BH10: =bez_podpory!BH7 -> 58 | BI10: =bez_podpory!BI7 -> 59 | BJ10: =bez_podpory!BJ7 -> 60 | BK10: =bez_podpory!BK7 -> 61 | BL10: =bez_podpory!BL7 -> 62 | BM10: =bez_podpory!BM7 -> 63 | BN10: =bez_podpory!BN7 -> 64 | BO10: =bez_podpory!BO7 -> 65 | BP10: =bez_podpory!BP7 -> 66 | BQ10: =bez_podpory!BQ7 -> 67 | BR10: =bez_podpory!BR7 -> 68 | BS10: =bez_podpory!BS7 -> 69 | BT10: =bez_podpory!BT7 -> 70 | BU10: =bez_podpory!BU7 -> 71 | BV10: =bez_podpory!BV7 -> 72 | BW10: =bez_podpory!BW7 -> 73 | BX10: =bez_podpory!BX7 -> 74 | BY10: =bez_podpory!BY7 -> 75 | BZ10: =bez_podpory!BZ7 -> 76 | CA10: =bez_podpory!CA7 -> 77 | CB10: =bez_podpory!CB7 -> 78
A11: =bez_podpory!A8 -> Rok | B11: =bez_podpory!B8 -> 2016 | C11: =bez_podpory!C8 -> 2017 | D11: =bez_podpory!D8 -> 2018 | E11: =bez_podpory!E8 -> 2019 | F11: =bez_podpory!F8 -> 2020 | G11: =bez_podpory!G8 -> 2021 | H11: =bez_podpory!H8 -> 2022 | I11: =bez_podpory!I8 -> 2023 | J11: =bez_podpory!J8 -> 2024 | K11: =bez_podpory!K8 -> 2025 | L11: =bez_podpory!L8 -> 2026 | M11: =bez_podpory!M8 -> 2027 | N11: =bez_podpory!N8 -> 2028 | O11: =bez_podpory!O8 -> 2029 | P11: =bez_podpory!P8 -> 2030 | Q11: =bez_podpory!Q8 -> 2031 | R11: =bez_podpory!R8 -> 2032 | S11: =bez_podpory!S8 -> 2033 | T11: =bez_podpory!T8 -> 2034 | U11: =bez_podpory!U8 -> 2035 | V11: =bez_podpory!V8 -> 2036 | W11: =bez_podpory!W8 -> 2037 | X11: =bez_podpory!X8 -> 2038 | Y11: =bez_podpory!Y8 -> 2039 | Z11: =bez_podpory!Z8 -> 2040 | AA11: =bez_podpory!AA8 -> 2041 | AB11: =bez_podpory!AB8 -> 2042 | AC11: =bez_podpory!AC8 -> 2043 | AD11: =bez_podpory!AD8 -> 2044 | AE11: =bez_podpory!AE8 -> 2045 | AF11: =bez_podpory!AF8 -> 2046 | AG11: =bez_podpory!AG8 -> 2047 | AH11: =bez_podpory!AH8 -> 2048 | AI11: =bez_podpory!AI8 -> 2049 | AJ11: =bez_podpory!AJ8 -> 2050 | AK11: =bez_podpory!AK8 -> 2051 | AL11: =bez_podpory!AL8 -> 2052 | AM11: =bez_podpory!AM8 -> 2053 | AN11: =bez_podpory!AN8 -> 2054 | AO11: =bez_podpory!AO8 -> 2055 | AP11: =bez_podpory!AP8 -> 2056 | AQ11: =bez_podpory!AQ8 -> 2057 | AR11: =bez_podpory!AR8 -> 2058 | AS11: =bez_podpory!AS8 -> 2059 | AT11: =bez_podpory!AT8 -> 2060 | AU11: =bez_podpory!AU8 -> 2061 | AV11: =bez_podpory!AV8 -> 2062 | AW11: =bez_podpory!AW8 -> 2063 | AX11: =bez_podpory!AX8 -> 2064 | AY11: =bez_podpory!AY8 -> 2065 | AZ11: =bez_podpory!AZ8 -> 2066 | BA11: =bez_podpory!BA8 -> 2067 | BB11: =bez_podpory!BB8 -> 2068 | BC11: =bez_podpory!BC8 -> 2069 | BD11: =bez_podpory!BD8 -> 2070 | BE11: =bez_podpory!BE8 -> 2071 | BF11: =bez_podpory!BF8 -> 2072 | BG11: =bez_podpory!BG8 -> 2073 | BH11: =bez_podpory!BH8 -> 2074 | BI11: =bez_podpory!BI8 -> 2075 | BJ11: =bez_podpory!BJ8 -> 2076 | BK11: =bez_podpory!BK8 -> 2077 | BL11: =bez_podpory!BL8 -> 2078 | BM11: =bez_podpory!BM8 -> 2079 | BN11: =bez_podpory!BN8 -> 2080 | BO11: =bez_podpory!BO8 -> 2081 | BP11: =bez_podpory!BP8 -> 2082 | BQ11: =bez_podpory!BQ8 -> 2083 | BR11: =bez_podpory!BR8 -> 2084 | BS11: =bez_podpory!BS8 -> 2085 | BT11: =bez_podpory!BT8 -> 2086 | BU11: =bez_podpory!BU8 -> 2087 | BV11: =bez_podpory!BV8 -> 2088 | BW11: =bez_podpory!BW8 -> 2089 | BX11: =bez_podpory!BX8 -> 2090 | BY11: =bez_podpory!BY8 -> 2091 | BZ11: =bez_podpory!BZ8 -> 2092 | CA11: =bez_podpory!CA8 -> 2093 | CB11: =bez_podpory!CB8 -> 2094
A13: CF bez podpory | B13: =bez_podpory!B30 -> -315466800 | C13: =bez_podpory!C30 -> -482664204 | D13: =bez_podpory!D30 -> -820529146.8 | E13: =bez_podpory!E30 -> -1673879459 | F13: =bez_podpory!F30 -> -3414714097 | G13: =bez_podpory!G30 -> -5224512569 | H13: =bez_podpory!H30 -> -7105337094 | I13: =bez_podpory!I30 -> -9059304794 | J13: =bez_podpory!J30 -> -1.293668725e+10 | K13: =bez_podpory!K30 -> -1.885060142e+10 | L13: =bez_podpory!L30 -> -2.307313613e+10 | M13: =bez_podpory!M30 -> -2.941824857e+10 | N13: =bez_podpory!N30 -> -3.000661354e+10 | O13: =bez_podpory!O30 -> -2.652584637e+10 | P13: =bez_podpory!P30 -> -1.040629358e+10 | Q13: =bez_podpory!Q30 -> -8491535558 | R13: =bez_podpory!R30 -> -4330683135 | S13: =bez_podpory!S30 -> -1104324199 | T13: =bez_podpory!T30 -> -1126410683 | U13: =bez_podpory!U30 -> 1331038787 | V13: =bez_podpory!V30 -> 2982565915 | W13: =bez_podpory!W30 -> 2787402374 | X13: =bez_podpory!X30 -> 2592028530 | Y13: =bez_podpory!Y30 -> 2396440179 | Z13: =bez_podpory!Z30 -> 2200633030 | AA13: =bez_podpory!AA30 -> 2004602706 | AB13: =bez_podpory!AB30 -> 1808344745 | AC13: =bez_podpory!AC30 -> 1611854594 | AD13: =bez_podpory!AD30 -> 1415127609 | AE13: =bez_podpory!AE30 -> 1218159054 | AF13: =bez_podpory!AF30 -> 1020944096 | AG13: =bez_podpory!AG30 -> 823477807.5 | AH13: =bez_podpory!AH30 -> 625755162.7 | AI13: =bez_podpory!AI30 -> 427771033.9 | AJ13: =bez_podpory!AJ30 -> 229520191.5 | AK13: =bez_podpory!AK30 -> 30997301.22 | AL13: =bez_podpory!AL30 -> -167803077.9 | AM13: =bez_podpory!AM30 -> -366886495.5 | AN13: =bez_podpory!AN30 -> -566258612.6 | AO13: =bez_podpory!AO30 -> -765925203 | AP13: =bez_podpory!AP30 -> -781243707 | AQ13: =bez_podpory!AQ30 -> -796868581.2 | AR13: =bez_podpory!AR30 -> -812805952.8 | AS13: =bez_podpory!AS30 -> -829062071.8 | AT13: =bez_podpory!AT30 -> -845643313.3 | AU13: =bez_podpory!AU30 -> -862556179.6 | AV13: =bez_podpory!AV30 -> -879807303.1 | AW13: =bez_podpory!AW30 -> -897403449.2 | AX13: =bez_podpory!AX30 -> -915351518.2 | AY13: =bez_podpory!AY30 -> -933658548.6 | AZ13: =bez_podpory!AZ30 -> -952331719.5 | BA13: =bez_podpory!BA30 -> -971378353.9 | BB13: =bez_podpory!BB30 -> -990805921 | BC13: =bez_podpory!BC30 -> -1010622039 | BD13: =bez_podpory!BD30 -> -1030834480 | BE13: =bez_podpory!BE30 -> -1051451170 | BF13: =bez_podpory!BF30 -> -1072480193 | BG13: =bez_podpory!BG30 -> -1093929797 | BH13: =bez_podpory!BH30 -> -1115808393 | BI13: =bez_podpory!BI30 -> -1138124561 | BJ13: =bez_podpory!BJ30 -> -1160887052 | BK13: =bez_podpory!BK30 -> -1184104793 | BL13: =bez_podpory!BL30 -> -1207786889 | BM13: =bez_podpory!BM30 -> -1231942627 | BN13: =bez_podpory!BN30 -> -1256581479 | BO13: =bez_podpory!BO30 -> -1281713109 | BP13: =bez_podpory!BP30 -> -1307347371 | BQ13: =bez_podpory!BQ30 -> -1333494318 | BR13: =bez_podpory!BR30 -> -1360164205 | BS13: =bez_podpory!BS30 -> -1387367489 | BT13: =bez_podpory!BT30 -> -1415114839 | BU13: =bez_podpory!BU30 -> -1443417136 | BV13: =bez_podpory!BV30 -> -1472285478 | BW13: =bez_podpory!BW30 -> -1501731188 | BX13: =bez_podpory!BX30 -> -1531765812 | BY13: =bez_podpory!BY30 -> -1562401128 | BZ13: =bez_podpory!BZ30 -> -1593649150 | CA13: =bez_podpory!CA30 -> -1625522133 | CB13: =bez_podpory!CB30 -> -1658032576
A15: Doplatek od státu | B15: 0 | C15: 0 | D15: 0 | E15: 0 | F15: 0 | G15: 0 | H15: 0 | I15: 0 | J15: 0 | K15: 0 | L15: 0 | M15: 0 | N15: 0 | O15: 0 | P15: 0 | Q15: 0 | R15: 0 | S15: 0 | T15: 0 | U15: =IF((U10-18)<=$B$8,IF($B$7>vstupy!$B$9,(($B$7-vstupy!$B$9)*bez_podpory!U11*vstupy!$B$10)*(1+vstupy!$B$4)^U10,0),0) -> 2.736293462e+10 | V15: =IF((V10-18)<=$B$8,IF($B$7>vstupy!$B$9,(($B$7-vstupy!$B$9)*bez_podpory!V11*vstupy!$B$10)*(1+vstupy!$B$4)^V10,0),0) -> 2.791019331e+10 | W15: =IF((W10-18)<=$B$8,IF($B$7>vstupy!$B$9,(($B$7-vstupy!$B$9)*bez_podpory!W11*vstupy!$B$10)*(1+vstupy!$B$4)^W10,0),0) -> 2.846839718e+10 | X15: =IF((X10-18)<=$B$8,IF($B$7>vstupy!$B$9,(($B$7-vstupy!$B$9)*bez_podpory!X11*vstupy!$B$10)*(1+vstupy!$B$4)^X10,0),0) -> 2.903776512e+10 | Y15: =IF((Y10-18)<=$B$8,IF($B$7>vstupy!$B$9,(($B$7-vstupy!$B$9)*bez_podpory!Y11*vstupy!$B$10)*(1+vstupy!$B$4)^Y10,0),0) -> 2.961852042e+10 | Z15: =IF((Z10-18)<=$B$8,IF($B$7>vstupy!$B$9,(($B$7-vstupy!$B$9)*bez_podpory!Z11*vstupy!$B$10)*(1+vstupy!$B$4)^Z10,0),0) -> 3.021089083e+10 | AA15: =IF((AA10-18)<=$B$8,IF($B$7>vstupy!$B$9,(($B$7-vstupy!$B$9)*bez_podpory!AA11*vstupy!$B$10)*(1+vstupy!$B$4)^AA10,0),0) -> 3.081510865e+10 | AB15: =IF((AB10-18)<=$B$8,IF($B$7>vstupy!$B$9,(($B$7-vstupy!$B$9)*bez_podpory!AB11*vstupy!$B$10)*(1+vstupy!$B$4)^AB10,0),0) -> 3.143141082e+10 | AC15: =IF((AC10-18)<=$B$8,IF($B$7>vstupy!$B$9,(($B$7-vstupy!$B$9)*bez_podpory!AC11*vstupy!$B$10)*(1+vstupy!$B$4)^AC10,0),0) -> 3.206003904e+10 | AD15: =IF((AD10-18)<=$B$8,IF($B$7>vstupy!$B$9,(($B$7-vstupy!$B$9)*bez_podpory!AD11*vstupy!$B$10)*(1+vstupy!$B$4)^AD10,0),0) -> 3.270123982e+10 | AE15: =IF((AE10-18)<=$B$8,IF($B$7>vstupy!$B$9,(($B$7-vstupy!$B$9)*bez_podpory!AE11*vstupy!$B$10)*(1+vstupy!$B$4)^AE10,0),0) -> 3.335526462e+10 | AF15: =IF((AF10-18)<=$B$8,IF($B$7>vstupy!$B$9,(($B$7-vstupy!$B$9)*bez_podpory!AF11*vstupy!$B$10)*(1+vstupy!$B$4)^AF10,0),0) -> 3.402236991e+10 | AG15: =IF((AG10-18)<=$B$8,IF($B$7>vstupy!$B$9,(($B$7-vstupy!$B$9)*bez_podpory!AG11*vstupy!$B$10)*(1+vstupy!$B$4)^AG10,0),0) -> 3.470281731e+10 | AH15: =IF((AH10-18)<=$B$8,IF($B$7>vstupy!$B$9,(($B$7-vstupy!$B$9)*bez_podpory!AH11*vstupy!$B$10)*(1+vstupy!$B$4)^AH10,0),0) -> 3.539687365e+10 | AI15: =IF((AI10-18)<=$B$8,IF($B$7>vstupy!$B$9,(($B$7-vstupy!$B$9)*bez_podpory!AI11*vstupy!$B$10)*(1+vstupy!$B$4)^AI10,0),0) -> 3.610481112e+10 | AJ15: =IF((AJ10-18)<=$B$8,IF($B$7>vstupy!$B$9,(($B$7-vstupy!$B$9)*bez_podpory!AJ11*vstupy!$B$10)*(1+vstupy!$B$4)^AJ10,0),0) -> 3.682690735e+10 | AK15: =IF((AK10-18)<=$B$8,IF($B$7>vstupy!$B$9,(($B$7-vstupy!$B$9)*bez_podpory!AK11*vstupy!$B$10)*(1+vstupy!$B$4)^AK10,0),0) -> 3.756344549e+10 | AL15: =IF((AL10-18)<=$B$8,IF($B$7>vstupy!$B$9,(($B$7-vstupy!$B$9)*bez_podpory!AL11*vstupy!$B$10)*(1+vstupy!$B$4)^AL10,0),0) -> 3.83147144e+10 | AM15: =IF((AM10-18)<=$B$8,IF($B$7>vstupy!$B$9,(($B$7-vstupy!$B$9)*bez_podpory!AM11*vstupy!$B$10)*(1+vstupy!$B$4)^AM10,0),0) -> 3.908100869e+10 | AN15: =IF((AN10-18)<=$B$8,IF($B$7>vstupy!$B$9,(($B$7-vstupy!$B$9)*bez_podpory!AN11*vstupy!$B$10)*(1+vstupy!$B$4)^AN10,0),0) -> 3.986262887e+10 | AO15: =IF((AO10-18)<=$B$8,IF($B$7>vstupy!$B$9,(($B$7-vstupy!$B$9)*bez_podpory!AO11*vstupy!$B$10)*(1+vstupy!$B$4)^AO10,0),0) -> 4.065988144e+10 | AP15: =IF((AP10-18)<=$B$8,IF($B$7>vstupy!$B$9,(($B$7-vstupy!$B$9)*bez_podpory!AP11*vstupy!$B$10)*(1+vstupy!$B$4)^AP10,0),0) -> 4.147307907e+10 | AQ15: =IF((AQ10-18)<=$B$8,IF($B$7>vstupy!$B$9,(($B$7-vstupy!$B$9)*bez_podpory!AQ11*vstupy!$B$10)*(1+vstupy!$B$4)^AQ10,0),0) -> 4.230254065e+10 | AR15: =IF((AR10-18)<=$B$8,IF($B$7>vstupy!$B$9,(($B$7-vstupy!$B$9)*bez_podpory!AR11*vstupy!$B$10)*(1+vstupy!$B$4)^AR10,0),0) -> 4.314859147e+10 | AS15: =IF((AS10-18)<=$B$8,IF($B$7>vstupy!$B$9,(($B$7-vstupy!$B$9)*bez_podpory!AS11*vstupy!$B$10)*(1+vstupy!$B$4)^AS10,0),0) -> 4.40115633e+10 | AT15: =IF((AT10-18)<=$B$8,IF($B$7>vstupy!$B$9,(($B$7-vstupy!$B$9)*bez_podpory!AT11*vstupy!$B$10)*(1+vstupy!$B$4)^AT10,0),0) -> 4.489179456e+10 | AU15: =IF((AU10-18)<=$B$8,IF($B$7>vstupy!$B$9,(($B$7-vstupy!$B$9)*bez_podpory!AU11*vstupy!$B$10)*(1+vstupy!$B$4)^AU10,0),0) -> 4.578963045e+10 | AV15: =IF((AV10-18)<=$B$8,IF($B$7>vstupy!$B$9,(($B$7-vstupy!$B$9)*bez_podpory!AV11*vstupy!$B$10)*(1+vstupy!$B$4)^AV10,0),0) -> 4.670542306e+10 | AW15: =IF((AW10-18)<=$B$8,IF($B$7>vstupy!$B$9,(($B$7-vstupy!$B$9)*bez_podpory!AW11*vstupy!$B$10)*(1+vstupy!$B$4)^AW10,0),0) -> 4.763953152e+10 | AX15: =IF((AX10-18)<=$B$8,IF($B$7>vstupy!$B$9,(($B$7-vstupy!$B$9)*bez_podpory!AX11*vstupy!$B$10)*(1+vstupy!$B$4)^AX10,0),0) -> 4.859232215e+10 | AY15: =IF((AY10-18)<=$B$8,IF($B$7>vstupy!$B$9,(($B$7-vstupy!$B$9)*bez_podpory!AY11*vstupy!$B$10)*(1+vstupy!$B$4)^AY10,0),0) -> 0 | AZ15: =IF((AZ10-18)<=$B$8,IF($B$7>vstupy!$B$9,(($B$7-vstupy!$B$9)*bez_podpory!AZ11*vstupy!$B$10)*(1+vstupy!$B$4)^AZ10,0),0) -> 0 | BA15: =IF((BA10-18)<=$B$8,IF($B$7>vstupy!$B$9,(($B$7-vstupy!$B$9)*bez_podpory!BA11*vstupy!$B$10)*(1+vstupy!$B$4)^BA10,0),0) -> 0 | BB15: =IF((BB10-18)<=$B$8,IF($B$7>vstupy!$B$9,(($B$7-vstupy!$B$9)*bez_podpory!BB11*vstupy!$B$10)*(1+vstupy!$B$4)^BB10,0),0) -> 0 | BC15: =IF((BC10-18)<=$B$8,IF($B$7>vstupy!$B$9,(($B$7-vstupy!$B$9)*bez_podpory!BC11*vstupy!$B$10)*(1+vstupy!$B$4)^BC10,0),0) -> 0 | BD15: =IF((BD10-18)<=$B$8,IF($B$7>vstupy!$B$9,(($B$7-vstupy!$B$9)*bez_podpory!BD11*vstupy!$B$10)*(1+vstupy!$B$4)^BD10,0),0) -> 0 | BE15: =IF((BE10-18)<=$B$8,IF($B$7>vstupy!$B$9,(($B$7-vstupy!$B$9)*bez_podpory!BE11*vstupy!$B$10)*(1+vstupy!$B$4)^BE10,0),0) -> 0 | BF15: =IF((BF10-18)<=$B$8,IF($B$7>vstupy!$B$9,(($B$7-vstupy!$B$9)*bez_podpory!BF11*vstupy!$B$10)*(1+vstupy!$B$4)^BF10,0),0) -> 0 | BG15: =IF((BG10-18)<=$B$8,IF($B$7>vstupy!$B$9,(($B$7-vstupy!$B$9)*bez_podpory!BG11*vstupy!$B$10)*(1+vstupy!$B$4)^BG10,0),0) -> 0 | BH15: =IF((BH10-18)<=$B$8,IF($B$7>vstupy!$B$9,(($B$7-vstupy!$B$9)*bez_podpory!BH11*vstupy!$B$10)*(1+vstupy!$B$4)^BH10,0),0) -> 0 | BI15: =IF((BI10-18)<=$B$8,IF($B$7>vstupy!$B$9,(($B$7-vstupy!$B$9)*bez_podpory!BI11*vstupy!$B$10)*(1+vstupy!$B$4)^BI10,0),0) -> 0 | BJ15: =IF((BJ10-18)<=$B$8,IF($B$7>vstupy!$B$9,(($B$7-vstupy!$B$9)*bez_podpory!BJ11*vstupy!$B$10)*(1+vstupy!$B$4)^BJ10,0),0) -> 0 | BK15: =IF((BK10-18)<=$B$8,IF($B$7>vstupy!$B$9,(($B$7-vstupy!$B$9)*bez_podpory!BK11*vstupy!$B$10)*(1+vstupy!$B$4)^BK10,0),0) -> 0 | BL15: =IF((BL10-18)<=$B$8,IF($B$7>vstupy!$B$9,(($B$7-vstupy!$B$9)*bez_podpory!BL11*vstupy!$B$10)*(1+vstupy!$B$4)^BL10,0),0) -> 0 | BM15: =IF((BM10-18)<=$B$8,IF($B$7>vstupy!$B$9,(($B$7-vstupy!$B$9)*bez_podpory!BM11*vstupy!$B$10)*(1+vstupy!$B$4)^BM10,0),0) -> 0 | BN15: =IF((BN10-18)<=$B$8,IF($B$7>vstupy!$B$9,(($B$7-vstupy!$B$9)*bez_podpory!BN11*vstupy!$B$10)*(1+vstupy!$B$4)^BN10,0),0) -> 0 | BO15: =IF((BO10-18)<=$B$8,IF($B$7>vstupy!$B$9,(($B$7-vstupy!$B$9)*bez_podpory!BO11*vstupy!$B$10)*(1+vstupy!$B$4)^BO10,0),0) -> 0 | BP15: =IF((BP10-18)<=$B$8,IF($B$7>vstupy!$B$9,(($B$7-vstupy!$B$9)*bez_podpory!BP11*vstupy!$B$10)*(1+vstupy!$B$4)^BP10,0),0) -> 0 | BQ15: =IF((BQ10-18)<=$B$8,IF($B$7>vstupy!$B$9,(($B$7-vstupy!$B$9)*bez_podpory!BQ11*vstupy!$B$10)*(1+vstupy!$B$4)^BQ10,0),0) -> 0 | BR15: =IF((BR10-18)<=$B$8,IF($B$7>vstupy!$B$9,(($B$7-vstupy!$B$9)*bez_podpory!BR11*vstupy!$B$10)*(1+vstupy!$B$4)^BR10,0),0) -> 0 | BS15: =IF((BS10-18)<=$B$8,IF($B$7>vstupy!$B$9,(($B$7-vstupy!$B$9)*bez_podpory!BS11*vstupy!$B$10)*(1+vstupy!$B$4)^BS10,0),0) -> 0 | BT15: =IF((BT10-18)<=$B$8,IF($B$7>vstupy!$B$9,(($B$7-vstupy!$B$9)*bez_podpory!BT11*vstupy!$B$10)*(1+vstupy!$B$4)^BT10,0),0) -> 0 | BU15: =IF((BU10-18)<=$B$8,IF($B$7>vstupy!$B$9,(($B$7-vstupy!$B$9)*bez_podpory!BU11*vstupy!$B$10)*(1+vstupy!$B$4)^BU10,0),0) -> 0 | BV15: =IF((BV10-18)<=$B$8,IF($B$7>vstupy!$B$9,(($B$7-vstupy!$B$9)*bez_podpory!BV11*vstupy!$B$10)*(1+vstupy!$B$4)^BV10,0),0) -> 0 | BW15: =IF((BW10-18)<=$B$8,IF($B$7>vstupy!$B$9,(($B$7-vstupy!$B$9)*bez_podpory!BW11*vstupy!$B$10)*(1+vstupy!$B$4)^BW10,0),0) -> 0 | BX15: =IF((BX10-18)<=$B$8,IF($B$7>vstupy!$B$9,(($B$7-vstupy!$B$9)*bez_podpory!BX11*vstupy!$B$10)*(1+vstupy!$B$4)^BX10,0),0) -> 0 | BY15: =IF((BY10-18)<=$B$8,IF($B$7>vstupy!$B$9,(($B$7-vstupy!$B$9)*bez_podpory!BY11*vstupy!$B$10)*(1+vstupy!$B$4)^BY10,0),0) -> 0 | BZ15: =IF((BZ10-18)<=$B$8,IF($B$7>vstupy!$B$9,(($B$7-vstupy!$B$9)*bez_podpory!BZ11*vstupy!$B$10)*(1+vstupy!$B$4)^BZ10,0),0) -> 0 | CA15: =IF((CA10-18)<=$B$8,IF($B$7>vstupy!$B$9,(($B$7-vstupy!$B$9)*bez_podpory!CA11*vstupy!$B$10)*(1+vstupy!$B$4)^CA10,0),0) -> 0 | CB15: =IF((CB10-18)<=$B$8,IF($B$7>vstupy!$B$9,(($B$7-vstupy!$B$9)*bez_podpory!CB11*vstupy!$B$10)*(1+vstupy!$B$4)^CB10,0),0) -> 0
A16: daň z příjmu za CfD | B16: 0 | C16: 0 | D16: 0 | E16: 0 | F16: 0 | G16: 0 | H16: 0 | I16: 0 | J16: 0 | K16: 0 | L16: 0 | M16: 0 | N16: 0 | O16: 0 | P16: 0 | Q16: 0 | R16: 0 | S16: 0 | T16: 0 | U16: =U15*vstupy!$B$13 -> 5198957578 | V16: =V15*vstupy!$B$13 -> 5302936729 | W16: =W15*vstupy!$B$13 -> 5408995464 | X16: =X15*vstupy!$B$13 -> 5517175373 | Y16: =Y15*vstupy!$B$13 -> 5627518880 | Z16: =Z15*vstupy!$B$13 -> 5740069258 | AA16: =AA15*vstupy!$B$13 -> 5854870643 | AB16: =AB15*vstupy!$B$13 -> 5971968056 | AC16: =AC15*vstupy!$B$13 -> 6091407417 | AD16: =AD15*vstupy!$B$13 -> 6213235566 | AE16: =AE15*vstupy!$B$13 -> 6337500277 | AF16: =AF15*vstupy!$B$13 -> 6464250282 | AG16: =AG15*vstupy!$B$13 -> 6593535288 | AH16: =AH15*vstupy!$B$13 -> 6725405994 | AI16: =AI15*vstupy!$B$13 -> 6859914114 | AJ16: =AJ15*vstupy!$B$13 -> 6997112396 | AK16: =AK15*vstupy!$B$13 -> 7137054644 | AL16: =AL15*vstupy!$B$13 -> 7279795737 | AM16: =AM15*vstupy!$B$13 -> 7425391652 | AN16: =AN15*vstupy!$B$13 -> 7573899485 | AO16: =AO15*vstupy!$B$13 -> 7725377474 | AP16: =AP15*vstupy!$B$13 -> 7879885024 | AQ16: =AQ15*vstupy!$B$13 -> 8037482724 | AR16: =AR15*vstupy!$B$13 -> 8198232379 | AS16: =AS15*vstupy!$B$13 -> 8362197026 | AT16: =AT15*vstupy!$B$13 -> 8529440967 | AU16: =AU15*vstupy!$B$13 -> 8700029786 | AV16: =AV15*vstupy!$B$13 -> 8874030382 | AW16: =AW15*vstupy!$B$13 -> 9051510989 | AX16: =AX15*vstupy!$B$13 -> 9232541209 | AY16: =AY15*vstupy!$B$13 -> 0 | AZ16: =AZ15*vstupy!$B$13 -> 0 | BA16: =BA15*vstupy!$B$13 -> 0 | BB16: =BB15*vstupy!$B$13 -> 0 | BC16: =BC15*vstupy!$B$13 -> 0 | BD16: =BD15*vstupy!$B$13 -> 0 | BE16: =BE15*vstupy!$B$13 -> 0 | BF16: =BF15*vstupy!$B$13 -> 0 | BG16: =BG15*vstupy!$B$13 -> 0 | BH16: =BH15*vstupy!$B$13 -> 0 | BI16: =BI15*vstupy!$B$13 -> 0 | BJ16: =BJ15*vstupy!$B$13 -> 0 | BK16: =BK15*vstupy!$B$13 -> 0 | BL16: =BL15*vstupy!$B$13 -> 0 | BM16: =BM15*vstupy!$B$13 -> 0 | BN16: =BN15*vstupy!$B$13 -> 0 | BO16: =BO15*vstupy!$B$13 -> 0 | BP16: =BP15*vstupy!$B$13 -> 0 | BQ16: =BQ15*vstupy!$B$13 -> 0 | BR16: =BR15*vstupy!$B$13 -> 0 | BS16: =BS15*vstupy!$B$13 -> 0 | BT16: =BT15*vstupy!$B$13 -> 0 | BU16: =BU15*vstupy!$B$13 -> 0 | BV16: =BV15*vstupy!$B$13 -> 0 | BW16: =BW15*vstupy!$B$13 -> 0 | BX16: =BX15*vstupy!$B$13 -> 0 | BY16: =BY15*vstupy!$B$13 -> 0 | BZ16: =BZ15*vstupy!$B$13 -> 0 | CA16: =CA15*vstupy!$B$13 -> 0 | CB16: =CB15*vstupy!$B$13 -> 0
A18: Doplatek státu | B18: 0 | C18: 0 | D18: 0 | E18: 0 | F18: 0 | G18: 0 | H18: 0 | I18: 0 | J18: 0 | K18: 0 | L18: 0 | M18: 0 | N18: 0 | O18: 0 | P18: 0 | Q18: 0 | R18: 0 | S18: 0 | T18: 0 | U18: =IF((U10-18)<=$B$8,IF($B$7<vstupy!$B$9,((vstupy!$B$9-$B$7)*bez_podpory!U11*vstupy!$B$10)*((1+vstupy!$B$4)^U10),0),0) -> 0 | V18: =IF((V10-18)<=$B$8,IF($B$7<vstupy!$B$9,((vstupy!$B$9-$B$7)*bez_podpory!V11*vstupy!$B$10)*((1+vstupy!$B$4)^V10),0),0) -> 0 | W18: =IF((W10-18)<=$B$8,IF($B$7<vstupy!$B$9,((vstupy!$B$9-$B$7)*bez_podpory!W11*vstupy!$B$10)*((1+vstupy!$B$4)^W10),0),0) -> 0 | X18: =IF((X10-18)<=$B$8,IF($B$7<vstupy!$B$9,((vstupy!$B$9-$B$7)*bez_podpory!X11*vstupy!$B$10)*((1+vstupy!$B$4)^X10),0),0) -> 0 | Y18: =IF((Y10-18)<=$B$8,IF($B$7<vstupy!$B$9,((vstupy!$B$9-$B$7)*bez_podpory!Y11*vstupy!$B$10)*((1+vstupy!$B$4)^Y10),0),0) -> 0 | Z18: =IF((Z10-18)<=$B$8,IF($B$7<vstupy!$B$9,((vstupy!$B$9-$B$7)*bez_podpory!Z11*vstupy!$B$10)*((1+vstupy!$B$4)^Z10),0),0) -> 0 | AA18: =IF((AA10-18)<=$B$8,IF($B$7<vstupy!$B$9,((vstupy!$B$9-$B$7)*bez_podpory!AA11*vstupy!$B$10)*((1+vstupy!$B$4)^AA10),0),0) -> 0 | AB18: =IF((AB10-18)<=$B$8,IF($B$7<vstupy!$B$9,((vstupy!$B$9-$B$7)*bez_podpory!AB11*vstupy!$B$10)*((1+vstupy!$B$4)^AB10),0),0) -> 0 | AC18: =IF((AC10-18)<=$B$8,IF($B$7<vstupy!$B$9,((vstupy!$B$9-$B$7)*bez_podpory!AC11*vstupy!$B$10)*((1+vstupy!$B$4)^AC10),0),0) -> 0 | AD18: =IF((AD10-18)<=$B$8,IF($B$7<vstupy!$B$9,((vstupy!$B$9-$B$7)*bez_podpory!AD11*vstupy!$B$10)*((1+vstupy!$B$4)^AD10),0),0) -> 0 | AE18: =IF((AE10-18)<=$B$8,IF($B$7<vstupy!$B$9,((vstupy!$B$9-$B$7)*bez_podpory!AE11*vstupy!$B$10)*((1+vstupy!$B$4)^AE10),0),0) -> 0 | AF18: =IF((AF10-18)<=$B$8,IF($B$7<vstupy!$B$9,((vstupy!$B$9-$B$7)*bez_podpory!AF11*vstupy!$B$10)*((1+vstupy!$B$4)^AF10),0),0) -> 0 | AG18: =IF((AG10-18)<=$B$8,IF($B$7<vstupy!$B$9,((vstupy!$B$9-$B$7)*bez_podpory!AG11*vstupy!$B$10)*((1+vstupy!$B$4)^AG10),0),0) -> 0 | AH18: =IF((AH10-18)<=$B$8,IF($B$7<vstupy!$B$9,((vstupy!$B$9-$B$7)*bez_podpory!AH11*vstupy!$B$10)*((1+vstupy!$B$4)^AH10),0),0) -> 0 | AI18: =IF((AI10-18)<=$B$8,IF($B$7<vstupy!$B$9,((vstupy!$B$9-$B$7)*bez_podpory!AI11*vstupy!$B$10)*((1+vstupy!$B$4)^AI10),0),0) -> 0 | AJ18: =IF((AJ10-18)<=$B$8,IF($B$7<vstupy!$B$9,((vstupy!$B$9-$B$7)*bez_podpory!AJ11*vstupy!$B$10)*((1+vstupy!$B$4)^AJ10),0),0) -> 0 | AK18: =IF((AK10-18)<=$B$8,IF($B$7<vstupy!$B$9,((vstupy!$B$9-$B$7)*bez_podpory!AK11*vstupy!$B$10)*((1+vstupy!$B$4)^AK10),0),0) -> 0 | AL18: =IF((AL10-18)<=$B$8,IF($B$7<vstupy!$B$9,((vstupy!$B$9-$B$7)*bez_podpory!AL11*vstupy!$B$10)*((1+vstupy!$B$4)^AL10),0),0) -> 0 | AM18: =IF((AM10-18)<=$B$8,IF($B$7<vstupy!$B$9,((vstupy!$B$9-$B$7)*bez_podpory!AM11*vstupy!$B$10)*((1+vstupy!$B$4)^AM10),0),0) -> 0 | AN18: =IF((AN10-18)<=$B$8,IF($B$7<vstupy!$B$9,((vstupy!$B$9-$B$7)*bez_podpory!AN11*vstupy!$B$10)*((1+vstupy!$B$4)^AN10),0),0) -> 0 | AO18: =IF((AO10-18)<=$B$8,IF($B$7<vstupy!$B$9,((vstupy!$B$9-$B$7)*bez_podpory!AO11*vstupy!$B$10)*((1+vstupy!$B$4)^AO10),0),0) -> 0 | AP18: =IF((AP10-18)<=$B$8,IF($B$7<vstupy!$B$9,((vstupy!$B$9-$B$7)*bez_podpory!AP11*vstupy!$B$10)*((1+vstupy!$B$4)^AP10),0),0) -> 0 | AQ18: =IF((AQ10-18)<=$B$8,IF($B$7<vstupy!$B$9,((vstupy!$B$9-$B$7)*bez_podpory!AQ11*vstupy!$B$10)*((1+vstupy!$B$4)^AQ10),0),0) -> 0 | AR18: =IF((AR10-18)<=$B$8,IF($B$7<vstupy!$B$9,((vstupy!$B$9-$B$7)*bez_podpory!AR11*vstupy!$B$10)*((1+vstupy!$B$4)^AR10),0),0) -> 0 | AS18: =IF((AS10-18)<=$B$8,IF($B$7<vstupy!$B$9,((vstupy!$B$9-$B$7)*bez_podpory!AS11*vstupy!$B$10)*((1+vstupy!$B$4)^AS10),0),0) -> 0 | AT18: =IF((AT10-18)<=$B$8,IF($B$7<vstupy!$B$9,((vstupy!$B$9-$B$7)*bez_podpory!AT11*vstupy!$B$10)*((1+vstupy!$B$4)^AT10),0),0) -> 0 | AU18: =IF((AU10-18)<=$B$8,IF($B$7<vstupy!$B$9,((vstupy!$B$9-$B$7)*bez_podpory!AU11*vstupy!$B$10)*((1+vstupy!$B$4)^AU10),0),0) -> 0 | AV18: =IF((AV10-18)<=$B$8,IF($B$7<vstupy!$B$9,((vstupy!$B$9-$B$7)*bez_podpory!AV11*vstupy!$B$10)*((1+vstupy!$B$4)^AV10),0),0) -> 0 | AW18: =IF((AW10-18)<=$B$8,IF($B$7<vstupy!$B$9,((vstupy!$B$9-$B$7)*bez_podpory!AW11*vstupy!$B$10)*((1+vstupy!$B$4)^AW10),0),0) -> 0 | AX18: =IF((AX10-18)<=$B$8,IF($B$7<vstupy!$B$9,((vstupy!$B$9-$B$7)*bez_podpory!AX11*vstupy!$B$10)*((1+vstupy!$B$4)^AX10),0),0) -> 0 | AY18: =IF((AY10-18)<=$B$8,IF($B$7<vstupy!$B$9,((vstupy!$B$9-$B$7)*bez_podpory!AY11*vstupy!$B$10)*((1+vstupy!$B$4)^AY10),0),0) -> 0 | AZ18: =IF((AZ10-18)<=$B$8,IF($B$7<vstupy!$B$9,((vstupy!$B$9-$B$7)*bez_podpory!AZ11*vstupy!$B$10)*((1+vstupy!$B$4)^AZ10),0),0) -> 0 | BA18: =IF((BA10-18)<=$B$8,IF($B$7<vstupy!$B$9,((vstupy!$B$9-$B$7)*bez_podpory!BA11*vstupy!$B$10)*((1+vstupy!$B$4)^BA10),0),0) -> 0 | BB18: =IF((BB10-18)<=$B$8,IF($B$7<vstupy!$B$9,((vstupy!$B$9-$B$7)*bez_podpory!BB11*vstupy!$B$10)*((1+vstupy!$B$4)^BB10),0),0) -> 0 | BC18: =IF((BC10-18)<=$B$8,IF($B$7<vstupy!$B$9,((vstupy!$B$9-$B$7)*bez_podpory!BC11*vstupy!$B$10)*((1+vstupy!$B$4)^BC10),0),0) -> 0 | BD18: =IF((BD10-18)<=$B$8,IF($B$7<vstupy!$B$9,((vstupy!$B$9-$B$7)*bez_podpory!BD11*vstupy!$B$10)*((1+vstupy!$B$4)^BD10),0),0) -> 0 | BE18: =IF((BE10-18)<=$B$8,IF($B$7<vstupy!$B$9,((vstupy!$B$9-$B$7)*bez_podpory!BE11*vstupy!$B$10)*((1+vstupy!$B$4)^BE10),0),0) -> 0 | BF18: =IF((BF10-18)<=$B$8,IF($B$7<vstupy!$B$9,((vstupy!$B$9-$B$7)*bez_podpory!BF11*vstupy!$B$10)*((1+vstupy!$B$4)^BF10),0),0) -> 0 | BG18: =IF((BG10-18)<=$B$8,IF($B$7<vstupy!$B$9,((vstupy!$B$9-$B$7)*bez_podpory!BG11*vstupy!$B$10)*((1+vstupy!$B$4)^BG10),0),0) -> 0 | BH18: =IF((BH10-18)<=$B$8,IF($B$7<vstupy!$B$9,((vstupy!$B$9-$B$7)*bez_podpory!BH11*vstupy!$B$10)*((1+vstupy!$B$4)^BH10),0),0) -> 0 | BI18: =IF((BI10-18)<=$B$8,IF($B$7<vstupy!$B$9,((vstupy!$B$9-$B$7)*bez_podpory!BI11*vstupy!$B$10)*((1+vstupy!$B$4)^BI10),0),0) -> 0 | BJ18: =IF((BJ10-18)<=$B$8,IF($B$7<vstupy!$B$9,((vstupy!$B$9-$B$7)*bez_podpory!BJ11*vstupy!$B$10)*((1+vstupy!$B$4)^BJ10),0),0) -> 0 | BK18: =IF((BK10-18)<=$B$8,IF($B$7<vstupy!$B$9,((vstupy!$B$9-$B$7)*bez_podpory!BK11*vstupy!$B$10)*((1+vstupy!$B$4)^BK10),0),0) -> 0 | BL18: =IF((BL10-18)<=$B$8,IF($B$7<vstupy!$B$9,((vstupy!$B$9-$B$7)*bez_podpory!BL11*vstupy!$B$10)*((1+vstupy!$B$4)^BL10),0),0) -> 0 | BM18: =IF((BM10-18)<=$B$8,IF($B$7<vstupy!$B$9,((vstupy!$B$9-$B$7)*bez_podpory!BM11*vstupy!$B$10)*((1+vstupy!$B$4)^BM10),0),0) -> 0 | BN18: =IF((BN10-18)<=$B$8,IF($B$7<vstupy!$B$9,((vstupy!$B$9-$B$7)*bez_podpory!BN11*vstupy!$B$10)*((1+vstupy!$B$4)^BN10),0),0) -> 0 | BO18: =IF((BO10-18)<=$B$8,IF($B$7<vstupy!$B$9,((vstupy!$B$9-$B$7)*bez_podpory!BO11*vstupy!$B$10)*((1+vstupy!$B$4)^BO10),0),0) -> 0 | BP18: =IF((BP10-18)<=$B$8,IF($B$7<vstupy!$B$9,((vstupy!$B$9-$B$7)*bez_podpory!BP11*vstupy!$B$10)*((1+vstupy!$B$4)^BP10),0),0) -> 0 | BQ18: =IF((BQ10-18)<=$B$8,IF($B$7<vstupy!$B$9,((vstupy!$B$9-$B$7)*bez_podpory!BQ11*vstupy!$B$10)*((1+vstupy!$B$4)^BQ10),0),0) -> 0 | BR18: =IF((BR10-18)<=$B$8,IF($B$7<vstupy!$B$9,((vstupy!$B$9-$B$7)*bez_podpory!BR11*vstupy!$B$10)*((1+vstupy!$B$4)^BR10),0),0) -> 0 | BS18: =IF((BS10-18)<=$B$8,IF($B$7<vstupy!$B$9,((vstupy!$B$9-$B$7)*bez_podpory!BS11*vstupy!$B$10)*((1+vstupy!$B$4)^BS10),0),0) -> 0 | BT18: =IF((BT10-18)<=$B$8,IF($B$7<vstupy!$B$9,((vstupy!$B$9-$B$7)*bez_podpory!BT11*vstupy!$B$10)*((1+vstupy!$B$4)^BT10),0),0) -> 0 | BU18: =IF((BU10-18)<=$B$8,IF($B$7<vstupy!$B$9,((vstupy!$B$9-$B$7)*bez_podpory!BU11*vstupy!$B$10)*((1+vstupy!$B$4)^BU10),0),0) -> 0 | BV18: =IF((BV10-18)<=$B$8,IF($B$7<vstupy!$B$9,((vstupy!$B$9-$B$7)*bez_podpory!BV11*vstupy!$B$10)*((1+vstupy!$B$4)^BV10),0),0) -> 0 | BW18: =IF((BW10-18)<=$B$8,IF($B$7<vstupy!$B$9,((vstupy!$B$9-$B$7)*bez_podpory!BW11*vstupy!$B$10)*((1+vstupy!$B$4)^BW10),0),0) -> 0 | BX18: =IF((BX10-18)<=$B$8,IF($B$7<vstupy!$B$9,((vstupy!$B$9-$B$7)*bez_podpory!BX11*vstupy!$B$10)*((1+vstupy!$B$4)^BX10),0),0) -> 0 | BY18: =IF((BY10-18)<=$B$8,IF($B$7<vstupy!$B$9,((vstupy!$B$9-$B$7)*bez_podpory!BY11*vstupy!$B$10)*((1+vstupy!$B$4)^BY10),0),0) -> 0 | BZ18: =IF((BZ10-18)<=$B$8,IF($B$7<vstupy!$B$9,((vstupy!$B$9-$B$7)*bez_podpory!BZ11*vstupy!$B$10)*((1+vstupy!$B$4)^BZ10),0),0) -> 0 | CA18: =IF((CA10-18)<=$B$8,IF($B$7<vstupy!$B$9,((vstupy!$B$9-$B$7)*bez_podpory!CA11*vstupy!$B$10)*((1+vstupy!$B$4)^CA10),0),0) -> 0 | CB18: =IF((CB10-18)<=$B$8,IF($B$7<vstupy!$B$9,((vstupy!$B$9-$B$7)*bez_podpory!CB11*vstupy!$B$10)*((1+vstupy!$B$4)^CB10),0),0) -> 0
A20: CF s CfD | B20: =B13+B15-B18 -> -315466800 | C20: =C13+C15-C18-C16 -> -482664204 | D20: =D13+D15-D18-D16 -> -820529146.8 | E20: -1673879459 | F20: -3414714097 | G20: -5224512569 | H20: -7105337094 | I20: -9059304794 | J20: -1.293668725e+10 | K20: -1.885060142e+10 | L20: -2.307313613e+10 | M20: -2.941824857e+10 | N20: -3.000661354e+10 | O20: -2.652584637e+10 | P20: -1.040629358e+10 | Q20: -8491535558 | R20: -4330683135 | S20: -1104324199 | T20: -1126410683 | U20: 2.349501583e+10 | V20: 2.55898225e+10 | W20: 2.584680409e+10 | X20: 2.611261828e+10 | Y20: 2.638744172e+10 | Z20: 2.66714546e+10 | AA20: 2.696484071e+10 | AB20: 2.726778751e+10 | AC20: 2.758048622e+10 | AD20: 2.790313186e+10 | AE20: 2.823592339e+10 | AF20: 2.857906372e+10 | AG20: 2.893275983e+10 | AH20: 2.929722282e+10 | AI20: 2.967266804e+10 | AJ20: 3.005931514e+10 | AK20: 3.045738815e+10 | AL20: 3.086711559e+10 | AM20: 3.128873055e+10 | AN20: 3.172247077e+10 | AO20: 3.216857877e+10 | AP20: 3.281195034e+10 | AQ20: 3.346818935e+10 | AR20: 3.413755314e+10 | AS20: 3.48203042e+10 | AT20: 3.551671028e+10 | AU20: 3.622704449e+10 | AV20: 3.695158538e+10 | AW20: 3.769061708e+10 | AX20: 3.844442943e+10 | AY20: -933658548.6 | AZ20: -952331719.5 | BA20: -971378353.9 | BB20: -990805921 | BC20: -1010622039 | BD20: -1030834480 | BE20: -1051451170 | BF20: -1072480193 | BG20: -1093929797 | BH20: -1115808393 | BI20: -1138124561 | BJ20: -1160887052 | BK20: -1184104793 | BL20: -1207786889 | BM20: -1231942627 | BN20: -1256581479 | BO20: -1281713109 | BP20: =BP13+BP15-BP18-BP16 -> -1307347371 | BQ20: -1333494318 | BR20: -1360164205 | BS20: -1387367489 | BT20: -1415114839 | BU20: -1443417136 | BV20: -1472285478 | BW20: -1501731188 | BX20: -1531765812 | BY20: -1562401128 | BZ20: -1593649150 | CA20: -1625522133 | CB20: -1658032576
A21: DCF s CfD | B21: =B20/((1+$C$4)^B10) -> -315466800 | C21: =C20/((1+$C$4)^C10) -> -451088041.1 | D21: =D20/((1+$C$4)^D10) -> -716681934.5 | E21: -1366384249 | F21: -2605069035 | G21: -3725005256 | H21: -4734586120 | I21: -5641679722 | J21: -7529269760 | K21: -1.025347818e+10 | L21: -1.172921242e+10 | M21: -1.397639798e+10 | N21: -1.332329527e+10 | O21: -1.100728319e+10 | P21: -4035740064 | Q21: -3077723264 | R21: -1466952210 | S21: -349600760.3 | T21: -333264276.2 | U21: 6496567661 | V21: 6612896412 | W21: 6242341438 | X21: 5893961723 | Y21: 5566348591 | Z21: 5258187124 | AA21: 4968249723 | AB21: 4695390114 | AC21: 4438537777 | AD21: 4196692766 | AE21: 3968920886 | AF21: 3754349212 | AG21: 3552161915 | AH21: 3361596386 | AI21: 3181939621 | AJ21: 3012524866 | AK21: 2852728488 | AL21: 2701967069 | AM21: 2559694698 | AN21: 2425400450 | AO21: 2298606043 | AP21: 2191194546 | AQ21: 2088802277 | AR21: 1991194694 | AS21: 1898148213 | AT21: 1809449698 | AU21: 1724895974 | AV21: 1644293359 | AW21: 1567457220 | AX21: 1494211556 | AY21: -33914308.89 | AZ21: -32329528.1 | BA21: -30818802.49 | BB21: -29378671.53 | BC21: -28005836.41 | BD21: -26697152.47 | BE21: -25449621.98 | BF21: -24260387.31 | BG21: -23126724.35 | BH21: -22046036.29 | BI21: -21015847.68 | BJ21: -20033798.73 | BK21: -19097639.91 | BL21: -18205226.83 | BM21: -17354515.29 | BN21: -16543556.63 | BO21: -15770493.24 | BP21: =BP20/((1+$C$4)^BP10) -> -15033554.3 | BQ21: -14331051.77 | BR21: -13661376.45 | BS21: -13022994.37 | BT21: -12414443.23 | BU21: -11834329.06 | BV21: -11281323.03 | BW21: -10754158.41 | BX21: -10251627.64 | BY21: -9772579.618 | BZ21: -9315917.019 | CA21: -8880593.794 | CB21: -8465612.776
A22: NPV | B22: =NPV(vstupy!B3,C20:CB20)+B20 -> 7257464256 | C22: =SUM(B21:CB21) -> 7257464256
A24: Strike price pro NPV = 0
A25: Scénář | B25: bez tepla | C25: s teplem
A26: 5 % | B26: 74.82711382 | C26: 51.92544801
A27: 7 % | B27: 99.11082429 | C27: 86.11943683
A28: 10 % | B28: 153.1614416 | C28: 156.8259704

Sheet kapacitni_mechanismus
A1: Výpočet NPV projektu NJZ s podporou kapacitními mechanismy + výpočet podpory
A3: =bez_podpory!A3 -> přehled vstupů: | B3: =bez_podpory!B3 -> scénář | C3: =bez_podpory!C3 -> diskont | D3: =bez_podpory!D3 -> růst cen služeb | E3: =bez_podpory!E3 -> O&M | F3: =bez_podpory!F3 -> overnight costs | G3: =bez_podpory!G3 -> cena elektřiny | H3: =bez_podpory!H3 -> odpisy | I3: =bez_podpory!I3 -> teplo | J3: =bez_podpory!J3 -> růst ceny energií
A4: =bez_podpory!A4 -> 0 | B4: =bez_podpory!B4 -> 7 % | C4: =bez_podpory!C4 -> 0.07 | D4: =bez_podpory!D4 -> 0.02 | E4: =bez_podpory!E4 -> 696.7394096 | F4: =bez_podpory!F4 -> 131444.5 | G4: =bez_podpory!G4 -> 645.778 | H4: =bez_podpory!H4 -> degresivní | I4: =bez_podpory!I4 -> ne | J4: =bez_podpory!J4 -> 0.02
A5: =bez_podpory!A5 -> 0 | B5: =bez_podpory!B5 -> 0 | C5: =bez_podpory!C5 -> 0 | D5: =bez_podpory!D5 -> 0 | E5: =bez_podpory!E5 -> 25.78606253 | F5: =bez_podpory!F5 -> 5500 | G5: =bez_podpory!G5 -> 23.9 | H5: =bez_podpory!H5 -> 20 | I5: =bez_podpory!I5 -> 0 | J5: =bez_podpory!J5 -> 0
A7: Roční cena kapacity | B7: 20000 | C7: =B7*vstupy!B10 -> 540400
A8: Prodaná kapacita | B8: 500
A9: Roční využití kapacity | B9: 0.2
A10: Průměrná prodejní cena | B10: 40 | C10: =B10*vstupy!B10 -> 1080.8
B12: =bez_podpory!B7 -> 0 | C12: =bez_podpory!C7 -> 1 | D12: =bez_podpory!D7 -> 2 | E12: =bez_podpory!E7 -> 3 | F12: =bez_podpory!F7 -> 4 | G12: =bez_podpory!G7 -> 5 | H12: =bez_podpory!H7 -> 6 | I12: =bez_podpory!I7 -> 7 | J12: =bez_podpory!J7 -> 8 | K12: =bez_podpory!K7 -> 9 | L12: =bez_podpory!L7 -> 10 | M12: =bez_podpory!M7 -> 11 | N12: =bez_podpory!N7 -> 12 | O12: =bez_podpory!O7 -> 13 | P12: =bez_podpory!P7 -> 14 | Q12: =bez_podpory!Q7 -> 15 | R12: =bez_podpory!R7 -> 16 | S12: =bez_podpory!S7 -> 17 | T12: =bez_podpory!T7 -> 18 | U12: =bez_podpory!U7 -> 19 | V12: =bez_podpory!V7 -> 20 | W12: =bez_podpory!W7 -> 21 | X12: =bez_podpory!X7 -> 22 | Y12: =bez_podpory!Y7 -> 23 | Z12: =bez_podpory!Z7 -> 24 | AA12: =bez_podpory!AA7 -> 25 | AB12: =bez_podpory!AB7 -> 26 | AC12: =bez_podpory!AC7 -> 27 | AD12: =bez_podpory!AD7 -> 28 | AE12: =bez_podpory!AE7 -> 29 | AF12: =bez_podpory!AF7 -> 30 | AG12: =bez_podpory!AG7 -> 31 | AH12: =bez_podpory!AH7 -> 32 | AI12: =bez_podpory!AI7 -> 33 | AJ12: =bez_podpory!AJ7 -> 34 | AK12: =bez_podpory!AK7 -> 35 | AL12: =bez_podpory!AL7 -> 36 | AM12: =bez_podpory!AM7 -> 37 | AN12: =bez_podpory!AN7 -> 38 | AO12: =bez_podpory!AO7 -> 39 | AP12: =bez_podpory!AP7 -> 40 | AQ12: =bez_podpory!AQ7 -> 41 | AR12: =bez_podpory!AR7 -> 42 | AS12: =bez_podpory!AS7 -> 43 | AT12: =bez_podpory!AT7 -> 44 | AU12: =bez_podpory!AU7 -> 45 | AV12: =bez_podpory!AV7 -> 46 | AW12: =bez_podpory!AW7 -> 47 | AX12: =bez_podpory!AX7 -> 48 | AY12: =bez_podpory!AY7 -> 49 | AZ12: =bez_podpory!AZ7 -> 50 | BA12: =bez_podpory!BA7 -> 51 | BB12: =bez_podpory!BB7 -> 52 | BC12: =bez_podpory!BC7 -> 53 | BD12: =bez_podpory!BD7 -> 54 | BE12: =bez_podpory!BE7 -> 55 | BF12: =bez_podpory!BF7 -> 56 | BG12: =bez_podpory!BG7 -> 57 | BH12: =bez_podpory!BH7 -> 58 | BI12: =bez_podpory!BI7 -> 59 | BJ12: =bez_podpory!BJ7 -> 60 | BK12: =bez_podpory!BK7 -> 61 | BL12: =bez_podpory!BL7 -> 62 | BM12: =bez_podpory!BM7 -> 63 | BN12: =bez_podpory!BN7 -> 64 | BO12: =bez_podpory!BO7 -> 65 | BP12: =bez_podpory!BP7 -> 66 | BQ12: =bez_podpory!BQ7 -> 67 | BR12: =bez_podpory!BR7 -> 68 | BS12: =bez_podpory!BS7 -> 69 | BT12: =bez_podpory!BT7 -> 70 | BU12: =bez_podpory!BU7 -> 71 | BV12: =bez_podpory!BV7 -> 72 | BW12: =bez_podpory!BW7 -> 73 | BX12: =bez_podpory!BX7 -> 74 | BY12: =bez_podpory!BY7 -> 75 | BZ12: =bez_podpory!BZ7 -> 76 | CA12: =bez_podpory!CA7 -> 77 | CB12: =bez_podpory!CB7 -> 78
A13: Rok | B13: =bez_podpory!B8 -> 2016 | C13: =bez_podpory!C8 -> 2017 | D13: =bez_podpory!D8 -> 2018 | E13: =bez_podpory!E8 -> 2019 | F13: =bez_podpory!F8 -> 2020 | G13: =bez_podpory!G8 -> 2021 | H13: =bez_podpory!H8 -> 2022 | I13: =bez_podpory!I8 -> 2023 | J13: =bez_podpory!J8 -> 2024 | K13: =bez_podpory!K8 -> 2025 | L13: =bez_podpory!L8 -> 2026 | M13: =bez_podpory!M8 -> 2027 | N13: =bez_podpory!N8 -> 2028 | O13: =bez_podpory!O8 -> 2029 | P13: =bez_podpory!P8 -> 2030 | Q13: =bez_podpory!Q8 -> 2031 | R13: =bez_podpory!R8 -> 2032 | S13: =bez_podpory!S8 -> 2033 | T13: =bez_podpory!T8 -> 2034 | U13: =bez_podpory!U8 -> 2035 | V13: =bez_podpory!V8 -> 2036 | W13: =bez_podpory!W8 -> 2037 | X13: =bez_podpory!X8 -> 2038 | Y13: =bez_podpory!Y8 -> 2039 | Z13: =bez_podpory!Z8 -> 2040 | AA13: =bez_podpory!AA8 -> 2041 | AB13: =bez_podpory!AB8 -> 2042 | AC13: =bez_podpory!AC8 -> 2043 | AD13: =bez_podpory!AD8 -> 2044 | AE13: =bez_podpory!AE8 -> 2045 | AF13: =bez_podpory!AF8 -> 2046 | AG13: =bez_podpory!AG8 -> 2047 | AH13: =bez_podpory!AH8 -> 2048 | AI13: =bez_podpory!AI8 -> 2049 | AJ13: =bez_podpory!AJ8 -> 2050 | AK13: =bez_podpory!AK8 -> 2051 | AL13: =bez_podpory!AL8 -> 2052 | AM13: =bez_podpory!AM8 -> 2053 | AN13: =bez_podpory!AN8 -> 2054 | AO13: =bez_podpory!AO8 -> 2055 | AP13: =bez_podpory!AP8 -> 2056 | AQ13: =bez_podpory!AQ8 -> 2057 | AR13: =bez_podpory!AR8 -> 2058 | AS13: =bez_podpory!AS8 -> 2059 | AT13: =bez_podpory!AT8 -> 2060 | AU13: =bez_podpory!AU8 -> 2061 | AV13: =bez_podpory!AV8 -> 2062 | AW13: =bez_podpory!AW8 -> 2063 | AX13: =bez_podpory!AX8 -> 2064 | AY13: =bez_podpory!AY8 -> 2065 | AZ13: =bez_podpory!AZ8 -> 2066 | BA13: =bez_podpory!BA8 -> 2067 | BB13: =bez_podpory!BB8 -> 2068 | BC13: =bez_podpory!BC8 -> 2069 | BD13: =bez_podpory!BD8 -> 2070 | BE13: =bez_podpory!BE8 -> 2071 | BF13: =bez_podpory!BF8 -> 2072 | BG13: =bez_podpory!BG8 -> 2073 | BH13: =bez_podpory!BH8 -> 2074 | BI13: =bez_podpory!BI8 -> 2075 | BJ13: =bez_podpory!BJ8 -> 2076 | BK13: =bez_podpory!BK8 -> 2077 | BL13: =bez_podpory!BL8 -> 2078 | BM13: =bez_podpory!BM8 -> 2079 | BN13: =bez_podpory!BN8 -> 2080 | BO13: =bez_podpory!BO8 -> 2081 | BP13: =bez_podpory!BP8 -> 2082 | BQ13: =bez_podpory!BQ8 -> 2083 | BR13: =bez_podpory!BR8 -> 2084 | BS13: =bez_podpory!BS8 -> 2085 | BT13: =bez_podpory!BT8 -> 2086 | BU13: =bez_podpory!BU8 -> 2087 | BV13: =bez_podpory!BV8 -> 2088 | BW13: =bez_podpory!BW8 -> 2089 | BX13: =bez_podpory!BX8 -> 2090 | BY13: =bez_podpory!BY8 -> 2091 | BZ13: =bez_podpory!BZ8 -> 2092 | CA13: =bez_podpory!CA8 -> 2093 | CB13: =bez_podpory!CB8 -> 2094
A15: Výroba elektřiny | B15: 0 | C15: 0 | D15: 0 | E15: 0 | F15: 0 | G15: 0 | H15: 0 | I15: 0 | J15: 0 | K15: 0 | L15: 0 | M15: 0 | N15: 0 | O15: 0 | P15: 0 | Q15: 0 | R15: 0 | S15: 0 | T15: 0 | U15: =((vstupy!$B$6-$B$8)+($B$8*$B$9))*vstupy!$B$8/vstupy!$B$7*vstupy!$B$12 -> 6300000 | V15: =((vstupy!$B$6-$B$8)+($B$8*$B$9))*vstupy!$B$8/vstupy!$B$7*vstupy!$B$12 -> 6300000 | W15: =((vstupy!$B$6-$B$8)+($B$8*$B$9))*vstupy!$B$8/vstupy!$B$7*vstupy!$B$12 -> 6300000 | X15: =((vstupy!$B$6-$B$8)+($B$8*$B$9))*vstupy!$B$8/vstupy!$B$7*vstupy!$B$12 -> 6300000 | Y15: =((vstupy!$B$6-$B$8)+($B$8*$B$9))*vstupy!$B$8/vstupy!$B$7*vstupy!$B$12 -> 6300000 | Z15: =((vstupy!$B$6-$B$8)+($B$8*$B$9))*vstupy!$B$8/vstupy!$B$7*vstupy!$B$12 -> 6300000 | AA15: =((vstupy!$B$6-$B$8)+($B$8*$B$9))*vstupy!$B$8/vstupy!$B$7*vstupy!$B$12 -> 6300000 | AB15: =((vstupy!$B$6-$B$8)+($B$8*$B$9))*vstupy!$B$8/vstupy!$B$7*vstupy!$B$12 -> 6300000 | AC15: =((vstupy!$B$6-$B$8)+($B$8*$B$9))*vstupy!$B$8/vstupy!$B$7*vstupy!$B$12 -> 6300000 | AD15: =((vstupy!$B$6-$B$8)+($B$8*$B$9))*vstupy!$B$8/vstupy!$B$7*vstupy!$B$12 -> 6300000 | AE15: =((vstupy!$B$6-$B$8)+($B$8*$B$9))*vstupy!$B$8/vstupy!$B$7*vstupy!$B$12 -> 6300000 | AF15: =((vstupy!$B$6-$B$8)+($B$8*$B$9))*vstupy!$B$8/vstupy!$B$7*vstupy!$B$12 -> 6300000 | AG15: =((vstupy!$B$6-$B$8)+($B$8*$B$9))*vstupy!$B$8/vstupy!$B$7*vstupy!$B$12 -> 6300000 | AH15: =((vstupy!$B$6-$B$8)+($B$8*$B$9))*vstupy!$B$8/vstupy!$B$7*vstupy!$B$12 -> 6300000 | AI15: =((vstupy!$B$6-$B$8)+($B$8*$B$9))*vstupy!$B$8/vstupy!$B$7*vstupy!$B$12 -> 6300000 | AJ15: =((vstupy!$B$6-$B$8)+($B$8*$B$9))*vstupy!$B$8/vstupy!$B$7*vstupy!$B$12 -> 6300000 | AK15: =((vstupy!$B$6-$B$8)+($B$8*$B$9))*vstupy!$B$8/vstupy!$B$7*vstupy!$B$12 -> 6300000 | AL15: =((vstupy!$B$6-$B$8)+($B$8*$B$9))*vstupy!$B$8/vstupy!$B$7*vstupy!$B$12 -> 6300000 | AM15: =((vstupy!$B$6-$B$8)+($B$8*$B$9))*vstupy!$B$8/vstupy!$B$7*vstupy!$B$12 -> 6300000 | AN15: =((vstupy!$B$6-$B$8)+($B$8*$B$9))*vstupy!$B$8/vstupy!$B$7*vstupy!$B$12 -> 6300000 | AO15: =((vstupy!$B$6-$B$8)+($B$8*$B$9))*vstupy!$B$8/vstupy!$B$7*vstupy!$B$12 -> 6300000 | AP15: =((vstupy!$B$6-$B$8)+($B$8*$B$9))*vstupy!$B$8/vstupy!$B$7*vstupy!$B$12 -> 6300000 | AQ15: =((vstupy!$B$6-$B$8)+($B$8*$B$9))*vstupy!$B$8/vstupy!$B$7*vstupy!$B$12 -> 6300000 | AR15: =((vstupy!$B$6-$B$8)+($B$8*$B$9))*vstupy!$B$8/vstupy!$B$7*vstupy!$B$12 -> 6300000 | AS15: =((vstupy!$B$6-$B$8)+($B$8*$B$9))*vstupy!$B$8/vstupy!$B$7*vstupy!$B$12 -> 6300000 | AT15: =((vstupy!$B$6-$B$8)+($B$8*$B$9))*vstupy!$B$8/vstupy!$B$7*vstupy!$B$12 -> 6300000 | AU15: =((vstupy!$B$6-$B$8)+($B$8*$B$9))*vstupy!$B$8/vstupy!$B$7*vstupy!$B$12 -> 6300000 | AV15: =((vstupy!$B$6-$B$8)+($B$8*$B$9))*vstupy!$B$8/vstupy!$B$7*vstupy!$B$12 -> 6300000 | AW15: =((vstupy!$B$6-$B$8)+($B$8*$B$9))*vstupy!$B$8/vstupy!$B$7*vstupy!$B$12 -> 6300000 | AX15: =((vstupy!$B$6-$B$8)+($B$8*$B$9))*vstupy!$B$8/vstupy!$B$7*vstupy!$B$12 -> 6300000 | AY15: =((vstupy!$B$6-$B$8)+($B$8*$B$9))*vstupy!$B$8/vstupy!$B$7*vstupy!$B$12 -> 6300000 | AZ15: =((vstupy!$B$6-$B$8)+($B$8*$B$9))*vstupy!$B$8/vstupy!$B$7*vstupy!$B$12 -> 6300000 | BA15: =((vstupy!$B$6-$B$8)+($B$8*$B$9))*vstupy!$B$8/vstupy!$B$7*vstupy!$B$12 -> 6300000 | BB15: =((vstupy!$B$6-$B$8)+($B$8*$B$9))*vstupy!$B$8/vstupy!$B$7*vstupy!$B$12 -> 6300000 | BC15: =((vstupy!$B$6-$B$8)+($B$8*$B$9))*vstupy!$B$8/vstupy!$B$7*vstupy!$B$12 -> 6300000 | BD15: =((vstupy!$B$6-$B$8)+($B$8*$B$9))*vstupy!$B$8/vstupy!$B$7*vstupy!$B$12 -> 6300000 | BE15: =((vstupy!$B$6-$B$8)+($B$8*$B$9))*vstupy!$B$8/vstupy!$B$7*vstupy!$B$12 -> 6300000 | BF15: =((vstupy!$B$6-$B$8)+($B$8*$B$9))*vstupy!$B$8/vstupy!$B$7*vstupy!$B$12 -> 6300000 | BG15: =((vstupy!$B$6-$B$8)+($B$8*$B$9))*vstupy!$B$8/vstupy!$B$7*vstupy!$B$12 -> 6300000 | BH15: =((vstupy!$B$6-$B$8)+($B$8*$B$9))*vstupy!$B$8/vstupy!$B$7*vstupy!$B$12 -> 6300000 | BI15: =((vstupy!$B$6-$B$8)+($B$8*$B$9))*vstupy!$B$8/vstupy!$B$7*vstupy!$B$12 -> 6300000 | BJ15: =((vstupy!$B$6-$B$8)+($B$8*$B$9))*vstupy!$B$8/vstupy!$B$7*vstupy!$B$12 -> 6300000 | BK15: =((vstupy!$B$6-$B$8)+($B$8*$B$9))*vstupy!$B$8/vstupy!$B$7*vstupy!$B$12 -> 6300000 | BL15: =((vstupy!$B$6-$B$8)+($B$8*$B$9))*vstupy!$B$8/vstupy!$B$7*vstupy!$B$12 -> 6300000 | BM15: =((vstupy!$B$6-$B$8)+($B$8*$B$9))*vstupy!$B$8/vstupy!$B$7*vstupy!$B$12 -> 6300000 | BN15: =((vstupy!$B$6-$B$8)+($B$8*$B$9))*vstupy!$B$8/vstupy!$B$7*vstupy!$B$12 -> 6300000 | BO15: =((vstupy!$B$6-$B$8)+($B$8*$B$9))*vstupy!$B$8/vstupy!$B$7*vstupy!$B$12 -> 6300000 | BP15: =((vstupy!$B$6-$B$8)+($B$8*$B$9))*vstupy!$B$8/vstupy!$B$7*vstupy!$B$12 -> 6300000 | BQ15: =((vstupy!$B$6-$B$8)+($B$8*$B$9))*vstupy!$B$8/vstupy!$B$7*vstupy!$B$12 -> 6300000 | BR15: =((vstupy!$B$6-$B$8)+($B$8*$B$9))*vstupy!$B$8/vstupy!$B$7*vstupy!$B$12 -> 6300000 | BS15: =((vstupy!$B$6-$B$8)+($B$8*$B$9))*vstupy!$B$8/vstupy!$B$7*vstupy!$B$12 -> 6300000 | BT15: =((vstupy!$B$6-$B$8)+($B$8*$B$9))*vstupy!$B$8/vstupy!$B$7*vstupy!$B$12 -> 6300000 | BU15: =((vstupy!$B$6-$B$8)+($B$8*$B$9))*vstupy!$B$8/vstupy!$B$7*vstupy!$B$12 -> 6300000 | BV15: =((vstupy!$B$6-$B$8)+($B$8*$B$9))*vstupy!$B$8/vstupy!$B$7*vstupy!$B$12 -> 6300000 | BW15: =((vstupy!$B$6-$B$8)+($B$8*$B$9))*vstupy!$B$8/vstupy!$B$7*vstupy!$B$12 -> 6300000 | BX15: =((vstupy!$B$6-$B$8)+($B$8*$B$9))*vstupy!$B$8/vstupy!$B$7*vstupy!$B$12 -> 6300000 | BY15: =((vstupy!$B$6-$B$8)+($B$8*$B$9))*vstupy!$B$8/vstupy!$B$7*vstupy!$B$12 -> 6300000 | BZ15: =((vstupy!$B$6-$B$8)+($B$8*$B$9))*vstupy!$B$8/vstupy!$B$7*vstupy!$B$12 -> 6300000 | CA15: =((vstupy!$B$6-$B$8)+($B$8*$B$9))*vstupy!$B$8/vstupy!$B$7*vstupy!$B$12 -> 6300000 | CB15: =((vstupy!$B$6-$B$8)+($B$8*$B$9))*vstupy!$B$8/vstupy!$B$7*vstupy!$B$12 -> 6300000
A17: Kapitálové výdaje
A18: CAPEX | B18: =vstupy!B22*(1+vstupy!$B$4)^B12 -> 315466800 | C18: =vstupy!C22*(1+vstupy!$B$4)^C12 -> 482664204 | D18: =vstupy!D22*(1+vstupy!$B$4)^D12 -> 820529146.8 | E18: =vstupy!E22*(1+vstupy!$B$4)^E12 -> 1673879459 | F18: =vstupy!F22*(1+vstupy!$B$4)^F12 -> 3414714097 | G18: =vstupy!G22*(1+vstupy!$B$4)^G12 -> 5224512569 | H18: =vstupy!H22*(1+vstupy!$B$4)^H12 -> 7105337094 | I18: =vstupy!I22*(1+vstupy!$B$4)^I12 -> 9059304794 | J18: =vstupy!J22*(1+vstupy!$B$4)^J12 -> 1.293668725e+10 | K18: =vstupy!K22*(1+vstupy!$B$4)^K12 -> 1.885060142e+10 | L18: =vstupy!L22*(1+vstupy!$B$4)^L12 -> 2.307313613e+10 | M18: =vstupy!M22*(1+vstupy!$B$4)^M12 -> 2.941824857e+10 | N18: =vstupy!N22*(1+vstupy!$B$4)^N12 -> 3.000661354e+10 | O18: =vstupy!O22*(1+vstupy!$B$4)^O12 -> 2.652584637e+10 | P18: =vstupy!P22*(1+vstupy!$B$4)^P12 -> 1.040629358e+10 | Q18: =vstupy!Q22*(1+vstupy!$B$4)^Q12 -> 8491535558 | R18: =vstupy!R22*(1+vstupy!$B$4)^R12 -> 4330683135 | S18: =vstupy!S22*(1+vstupy!$B$4)^S12 -> 1104324199 | T18: =vstupy!T22*(1+vstupy!$B$4)^T12 -> 1126410683 | U18: =vstupy!U22*(1+vstupy!$B$4)^U12 -> 0 | V18: =vstupy!V22*(1+vstupy!$B$4)^V12 -> 0 | W18: =vstupy!W22*(1+vstupy!$B$4)^W12 -> 0 | X18: =vstupy!X22*(1+vstupy!$B$4)^X12 -> 0 | Y18: =vstupy!Y22*(1+vstupy!$B$4)^Y12 -> 0 | Z18: =vstupy!Z22*(1+vstupy!$B$4)^Z12 -> 0 | AA18: =vstupy!AA22*(1+vstupy!$B$4)^AA12 -> 0 | AB18: =vstupy!AB22*(1+vstupy!$B$4)^AB12 -> 0 | AC18: =vstupy!AC22*(1+vstupy!$B$4)^AC12 -> 0 | AD18: =vstupy!AD22*(1+vstupy!$B$4)^AD12 -> 0 | AE18: =vstupy!AE22*(1+vstupy!$B$4)^AE12 -> 0 | AF18: =vstupy!AF22*(1+vstupy!$B$4)^AF12 -> 0 | AG18: =vstupy!AG22*(1+vstupy!$B$4)^AG12 -> 0 | AH18: =vstupy!AH22*(1+vstupy!$B$4)^AH12 -> 0 | AI18: =vstupy!AI22*(1+vstupy!$B$4)^AI12 -> 0 | AJ18: =vstupy!AJ22*(1+vstupy!$B$4)^AJ12 -> 0 | AK18: =vstupy!AK22*(1+vstupy!$B$4)^AK12 -> 0 | AL18: =vstupy!AL22*(1+vstupy!$B$4)^AL12 -> 0 | AM18: =vstupy!AM22*(1+vstupy!$B$4)^AM12 -> 0 | AN18: =vstupy!AN22*(1+vstupy!$B$4)^AN12 -> 0 | AO18: =vstupy!AO22*(1+vstupy!$B$4)^AO12 -> 0 | AP18: =vstupy!AP22*(1+vstupy!$B$4)^AP12 -> 0 | AQ18: =vstupy!AQ22*(1+vstupy!$B$4)^AQ12 -> 0 | AR18: =vstupy!AR22*(1+vstupy!$B$4)^AR12 -> 0 | AS18: =vstupy!AS22*(1+vstupy!$B$4)^AS12 -> 0 | AT18: =vstupy!AT22*(1+vstupy!$B$4)^AT12 -> 0 | AU18: =vstupy!AU22*(1+vstupy!$B$4)^AU12 -> 0 | AV18: =vstupy!AV22*(1+vstupy!$B$4)^AV12 -> 0 | AW18: =vstupy!AW22*(1+vstupy!$B$4)^AW12 -> 0 | AX18: =vstupy!AX22*(1+vstupy!$B$4)^AX12 -> 0 | AY18: =vstupy!AY22*(1+vstupy!$B$4)^AY12 -> 0 | AZ18: =vstupy!AZ22*(1+vstupy!$B$4)^AZ12 -> 0 | BA18: =vstupy!BA22*(1+vstupy!$B$4)^BA12 -> 0 | BB18: =vstupy!BB22*(1+vstupy!$B$4)^BB12 -> 0 | BC18: =vstupy!BC22*(1+vstupy!$B$4)^BC12 -> 0 | BD18: =vstupy!BD22*(1+vstupy!$B$4)^BD12 -> 0 | BE18: =vstupy!BE22*(1+vstupy!$B$4)^BE12 -> 0 | BF18: =vstupy!BF22*(1+vstupy!$B$4)^BF12 -> 0 | BG18: =vstupy!BG22*(1+vstupy!$B$4)^BG12 -> 0 | BH18: =vstupy!BH22*(1+vstupy!$B$4)^BH12 -> 0 | BI18: =vstupy!BI22*(1+vstupy!$B$4)^BI12 -> 0 | BJ18: =vstupy!BJ22*(1+vstupy!$B$4)^BJ12 -> 0 | BK18: =vstupy!BK22*(1+vstupy!$B$4)^BK12 -> 0 | BL18: =vstupy!BL22*(1+vstupy!$B$4)^BL12 -> 0 | BM18: =vstupy!BM22*(1+vstupy!$B$4)^BM12 -> 0 | BN18: =vstupy!BN22*(1+vstupy!$B$4)^BN12 -> 0 | BO18: =vstupy!BO22*(1+vstupy!$B$4)^BO12 -> 0 | BP18: =vstupy!BP22*(1+vstupy!$B$4)^BP12 -> 0 | BQ18: =vstupy!BQ22*(1+vstupy!$B$4)^BQ12 -> 0 | BR18: =vstupy!BR22*(1+vstupy!$B$4)^BR12 -> 0 | BS18: =vstupy!BS22*(1+vstupy!$B$4)^BS12 -> 0 | BT18: =vstupy!BT22*(1+vstupy!$B$4)^BT12 -> 0 | BU18: =vstupy!BU22*(1+vstupy!$B$4)^BU12 -> 0 | BV18: =vstupy!BV22*(1+vstupy!$B$4)^BV12 -> 0 | BW18: =vstupy!BW22*(1+vstupy!$B$4)^BW12 -> 0 | BX18: =vstupy!BX22*(1+vstupy!$B$4)^BX12 -> 0 | BY18: =vstupy!BY22*(1+vstupy!$B$4)^BY12 -> 0 | BZ18: =vstupy!BZ22*(1+vstupy!$B$4)^BZ12 -> 0 | CA18: =vstupy!CA22*(1+vstupy!$B$4)^CA12 -> 0 | CB18: =vstupy!CB22*(1+vstupy!$B$4)^CB12 -> 0
A20: Provozní výdaje
A21: O&M | B21: 0 | C21: 0 | D21: 0 | E21: 0 | F21: 0 | G21: 0 | H21: 0 | I21: 0 | J21: 0 | K21: 0 | L21: 0 | M21: 0 | N21: 0 | O21: 0 | P21: 0 | Q21: 0 | R21: 0 | S21: 0 | T21: 0 | U21: =$E$4*U15*(1+$D$4)^U12 -> 6394611865 | V21: 6522504102 | W21: 6652954184 | X21: 6786013268 | Y21: 6921733533 | Z21: 7060168204 | AA21: 7201371568 | AB21: 7345398999 | AC21: 7492306979 | AD21: 7642153119 | AE21: 7794996181 | AF21: 7950896105 | AG21: 8109914027 | AH21: 8272112307 | AI21: 8437554553 | AJ21: 8606305644 | AK21: 8778431757 | AL21: 8954000392 | AM21: 9133080400 | AN21: 9315742008 | AO21: 9502056848 | AP21: 9692097985 | AQ21: 9885939945 | AR21: 1.008365874e+10 | AS21: 1.028533192e+10 | AT21: 1.049103856e+10 | AU21: 1.070085933e+10 | AV21: 1.091487652e+10 | AW21: 1.113317405e+10 | AX21: 1.135583753e+10 | AY21: 1.158295428e+10 | AZ21: 1.181461336e+10 | BA21: =$E$4*BA15*(1+$D$4)^BA12 -> 1.205090563e+10 | BB21: 1.229192374e+10 | BC21: 1.253776222e+10 | BD21: 1.278851746e+10 | BE21: 1.304428781e+10 | BF21: 1.330517357e+10 | BG21: 1.357127704e+10 | BH21: 1.384270258e+10 | BI21: 1.411955663e+10 | BJ21: 1.440194776e+10 | BK21: 1.468998672e+10 | BL21: 1.498378645e+10 | BM21: 1.528346218e+10 | BN21: 1.558913143e+10 | BO21: 1.590091405e+10 | BP21: 1.621893233e+10 | BQ21: 1.654331098e+10 | BR21: 1.68741772e+10 | BS21: 1.721166075e+10 | BT21: 1.755589396e+10 | BU21: 1.790701184e+10 | BV21: 1.826515208e+10 | BW21: 1.863045512e+10 | BX21: 1.900306422e+10 | BY21: 1.93831255e+10 | BZ21: 1.977078801e+10 | CA21: 2.016620377e+10 | CB21: 2.056952785e+10
A22: Daňové odpisy | B22: 0 | C22: 0 | D22: 0 | E22: 0 | F22: 0 | G22: 0 | H22: 0 | I22: 0 | J22: 0 | K22: 0 | L22: 0 | M22: 0 | N22: 0 | O22: 0 | P22: 0 | Q22: 0 | R22: 0 | S22: 0 | T22: 0 | U22: =IF(vstupy!B14=1,SUM(B18:T18)/vstupy!B15,SUM(B18:T18)/(2*vstupy!B15-1)) -> 9718339430 | V22: =IF(vstupy!$B$14=1,IF(vstupy!$B$15<(V12-18),0,(2*SUM($B$18:$T$18))/(vstupy!$B$15*vstupy!$B$15)*(vstupy!$B$15-(V12-18)+1)),IF(vstupy!$B$15<(V12-18),0,(2*SUM($B$18:$T$18)/(2*vstupy!$B$15-1)))) -> 1.846484492e+10 | W22: =IF(vstupy!$B$14=1,IF(vstupy!$B$15<(W12-18),0,(2*SUM($B$18:$T$18))/(vstupy!$B$15*vstupy!$B$15)*(vstupy!$B$15-(W12-18)+1)),IF(vstupy!$B$15<(W12-18),0,(2*SUM($B$18:$T$18)/(2*vstupy!$B$15-1)))) -> 1.749301097e+10 | X22: =IF(vstupy!$B$14=1,IF(vstupy!$B$15<(X12-18),0,(2*SUM($B$18:$T$18))/(vstupy!$B$15*vstupy!$B$15)*(vstupy!$B$15-(X12-18)+1)),IF(vstupy!$B$15<(X12-18),0,(2*SUM($B$18:$T$18)/(2*vstupy!$B$15-1)))) -> 1.652117703e+10 | Y22: =IF(vstupy!$B$14=1,IF(vstupy!$B$15<(Y12-18),0,(2*SUM($B$18:$T$18))/(vstupy!$B$15*vstupy!$B$15)*(vstupy!$B$15-(Y12-18)+1)),IF(vstupy!$B$15<(Y12-18),0,(2*SUM($B$18:$T$18)/(2*vstupy!$B$15-1)))) -> 1.554934309e+10 | Z22: =IF(vstupy!$B$14=1,IF(vstupy!$B$15<(Z12-18),0,(2*SUM($B$18:$T$18))/(vstupy!$B$15*vstupy!$B$15)*(vstupy!$B$15-(Z12-18)+1)),IF(vstupy!$B$15<(Z12-18),0,(2*SUM($B$18:$T$18)/(2*vstupy!$B$15-1)))) -> 1.457750914e+10 | AA22: =IF(vstupy!$B$14=1,IF(vstupy!$B$15<(AA12-18),0,(2*SUM($B$18:$T$18))/(vstupy!$B$15*vstupy!$B$15)*(vstupy!$B$15-(AA12-18)+1)),IF(vstupy!$B$15<(AA12-18),0,(2*SUM($B$18:$T$18)/(2*vstupy!$B$15-1)))) -> 1.36056752e+10 | AB22: =IF(vstupy!$B$14=1,IF(vstupy!$B$15<(AB12-18),0,(2*SUM($B$18:$T$18))/(vstupy!$B$15*vstupy!$B$15)*(vstupy!$B$15-(AB12-18)+1)),IF(vstupy!$B$15<(AB12-18),0,(2*SUM($B$18:$T$18)/(2*vstupy!$B$15-1)))) -> 1.263384126e+10 | AC22: =IF(vstupy!$B$14=1,IF(vstupy!$B$15<(AC12-18),0,(2*SUM($B$18:$T$18))/(vstupy!$B$15*vstupy!$B$15)*(vstupy!$B$15-(AC12-18)+1)),IF(vstupy!$B$15<(AC12-18),0,(2*SUM($B$18:$T$18)/(2*vstupy!$B$15-1)))) -> 1.166200732e+10 | AD22: =IF(vstupy!$B$14=1,IF(vstupy!$B$15<(AD12-18),0,(2*SUM($B$18:$T$18))/(vstupy!$B$15*vstupy!$B$15)*(vstupy!$B$15-(AD12-18)+1)),IF(vstupy!$B$15<(AD12-18),0,(2*SUM($B$18:$T$18)/(2*vstupy!$B$15-1)))) -> 1.069017337e+10 | AE22: =IF(vstupy!$B$14=1,IF(vstupy!$B$15<(AE12-18),0,(2*SUM($B$18:$T$18))/(vstupy!$B$15*vstupy!$B$15)*(vstupy!$B$15-(AE12-18)+1)),IF(vstupy!$B$15<(AE12-18),0,(2*SUM($B$18:$T$18)/(2*vstupy!$B$15-1)))) -> 9718339430 | AF22: =IF(vstupy!$B$14=1,IF(vstupy!$B$15<(AF12-18),0,(2*SUM($B$18:$T$18))/(vstupy!$B$15*vstupy!$B$15)*(vstupy!$B$15-(AF12-18)+1)),IF(vstupy!$B$15<(AF12-18),0,(2*SUM($B$18:$T$18)/(2*vstupy!$B$15-1)))) -> 8746505487 | AG22: =IF(vstupy!$B$14=1,IF(vstupy!$B$15<(AG12-18),0,(2*SUM($B$18:$T$18))/(vstupy!$B$15*vstupy!$B$15)*(vstupy!$B$15-(AG12-18)+1)),IF(vstupy!$B$15<(AG12-18),0,(2*SUM($B$18:$T$18)/(2*vstupy!$B$15-1)))) -> 7774671544 | AH22: =IF(vstupy!$B$14=1,IF(vstupy!$B$15<(AH12-18),0,(2*SUM($B$18:$T$18))/(vstupy!$B$15*vstupy!$B$15)*(vstupy!$B$15-(AH12-18)+1)),IF(vstupy!$B$15<(AH12-18),0,(2*SUM($B$18:$T$18)/(2*vstupy!$B$15-1)))) -> 6802837601 | AI22: =IF(vstupy!$B$14=1,IF(vstupy!$B$15<(AI12-18),0,(2*SUM($B$18:$T$18))/(vstupy!$B$15*vstupy!$B$15)*(vstupy!$B$15-(AI12-18)+1)),IF(vstupy!$B$15<(AI12-18),0,(2*SUM($B$18:$T$18)/(2*vstupy!$B$15-1)))) -> 5831003658 | AJ22: =IF(vstupy!$B$14=1,IF(vstupy!$B$15<(AJ12-18),0,(2*SUM($B$18:$T$18))/(vstupy!$B$15*vstupy!$B$15)*(vstupy!$B$15-(AJ12-18)+1)),IF(vstupy!$B$15<(AJ12-18),0,(2*SUM($B$18:$T$18)/(2*vstupy!$B$15-1)))) -> 4859169715 | AK22: =IF(vstupy!$B$14=1,IF(vstupy!$B$15<(AK12-18),0,(2*SUM($B$18:$T$18))/(vstupy!$B$15*vstupy!$B$15)*(vstupy!$B$15-(AK12-18)+1)),IF(vstupy!$B$15<(AK12-18),0,(2*SUM($B$18:$T$18)/(2*vstupy!$B$15-1)))) -> 3887335772 | AL22: =IF(vstupy!$B$14=1,IF(vstupy!$B$15<(AL12-18),0,(2*SUM($B$18:$T$18))/(vstupy!$B$15*vstupy!$B$15)*(vstupy!$B$15-(AL12-18)+1)),IF(vstupy!$B$15<(AL12-18),0,(2*SUM($B$18:$T$18)/(2*vstupy!$B$15-1)))) -> 2915501829 | AM22: =IF(vstupy!$B$14=1,IF(vstupy!$B$15<(AM12-18),0,(2*SUM($B$18:$T$18))/(vstupy!$B$15*vstupy!$B$15)*(vstupy!$B$15-(AM12-18)+1)),IF(vstupy!$B$15<(AM12-18),0,(2*SUM($B$18:$T$18)/(2*vstupy!$B$15-1)))) -> 1943667886 | AN22: =IF(vstupy!$B$14=1,IF(vstupy!$B$15<(AN12-18),0,(2*SUM($B$18:$T$18))/(vstupy!$B$15*vstupy!$B$15)*(vstupy!$B$15-(AN12-18)+1)),IF(vstupy!$B$15<(AN12-18),0,(2*SUM($B$18:$T$18)/(2*vstupy!$B$15-1)))) -> 971833943 | AO22: =IF(vstupy!$B$14=1,IF(vstupy!$B$15<(AO12-18),0,(2*SUM($B$18:$T$18))/(vstupy!$B$15*vstupy!$B$15)*(vstupy!$B$15-(AO12-18)+1)),IF(vstupy!$B$15<(AO12-18),0,(2*SUM($B$18:$T$18)/(2*vstupy!$B$15-1)))) -> 0 | AP22: =IF(vstupy!$B$14=1,IF(vstupy!$B$15<(AP12-18),0,(2*SUM($B$18:$T$18))/(vstupy!$B$15*vstupy!$B$15)*(vstupy!$B$15-(AP12-18)+1)),IF(vstupy!$B$15<(AP12-18),0,(2*SUM($B$18:$T$18)/(2*vstupy!$B$15-1)))) -> 0 | AQ22: =IF(vstupy!$B$14=1,IF(vstupy!$B$15<(AQ12-18),0,(2*SUM($B$18:$T$18))/(vstupy!$B$15*vstupy!$B$15)*(vstupy!$B$15-(AQ12-18)+1)),IF(vstupy!$B$15<(AQ12-18),0,(2*SUM($B$18:$T$18)/(2*vstupy!$B$15-1)))) -> 0 | AR22: =IF(vstupy!$B$14=1,IF(vstupy!$B$15<(AR12-18),0,(2*SUM($B$18:$T$18))/(vstupy!$B$15*vstupy!$B$15)*(vstupy!$B$15-(AR12-18)+1)),IF(vstupy!$B$15<(AR12-18),0,(2*SUM($B$18:$T$18)/(2*vstupy!$B$15-1)))) -> 0 | AS22: =IF(vstupy!$B$14=1,IF(vstupy!$B$15<(AS12-18),0,(2*SUM($B$18:$T$18))/(vstupy!$B$15*vstupy!$B$15)*(vstupy!$B$15-(AS12-18)+1)),IF(vstupy!$B$15<(AS12-18),0,(2*SUM($B$18:$T$18)/(2*vstupy!$B$15-1)))) -> 0 | AT22: =IF(vstupy!$B$14=1,IF(vstupy!$B$15<(AT12-18),0,(2*SUM($B$18:$T$18))/(vstupy!$B$15*vstupy!$B$15)*(vstupy!$B$15-(AT12-18)+1)),IF(vstupy!$B$15<(AT12-18),0,(2*SUM($B$18:$T$18)/(2*vstupy!$B$15-1)))) -> 0 | AU22: =IF(vstupy!$B$14=1,IF(vstupy!$B$15<(AU12-18),0,(2*SUM($B$18:$T$18))/(vstupy!$B$15*vstupy!$B$15)*(vstupy!$B$15-(AU12-18)+1)),IF(vstupy!$B$15<(AU12-18),0,(2*SUM($B$18:$T$18)/(2*vstupy!$B$15-1)))) -> 0 | AV22: =IF(vstupy!$B$14=1,IF(vstupy!$B$15<(AV12-18),0,(2*SUM($B$18:$T$18))/(vstupy!$B$15*vstupy!$B$15)*(vstupy!$B$15-(AV12-18)+1)),IF(vstupy!$B$15<(AV12-18),0,(2*SUM($B$18:$T$18)/(2*vstupy!$B$15-1)))) -> 0 | AW22: =IF(vstupy!$B$14=1,IF(vstupy!$B$15<(AW12-18),0,(2*SUM($B$18:$T$18))/(vstupy!$B$15*vstupy!$B$15)*(vstupy!$B$15-(AW12-18)+1)),IF(vstupy!$B$15<(AW12-18),0,(2*SUM($B$18:$T$18)/(2*vstupy!$B$15-1)))) -> 0 | AX22: =IF(vstupy!$B$14=1,IF(vstupy!$B$15<(AX12-18),0,(2*SUM($B$18:$T$18))/(vstupy!$B$15*vstupy!$B$15)*(vstupy!$B$15-(AX12-18)+1)),IF(vstupy!$B$15<(AX12-18),0,(2*SUM($B$18:$T$18)/(2*vstupy!$B$15-1)))) -> 0 | AY22: =IF(vstupy!$B$14=1,IF(vstupy!$B$15<(AY12-18),0,(2*SUM($B$18:$T$18))/(vstupy!$B$15*vstupy!$B$15)*(vstupy!$B$15-(AY12-18)+1)),IF(vstupy!$B$15<(AY12-18),0,(2*SUM($B$18:$T$18)/(2*vstupy!$B$15-1)))) -> 0 | AZ22: =IF(vstupy!$B$14=1,IF(vstupy!$B$15<(AZ12-18),0,(2*SUM($B$18:$T$18))/(vstupy!$B$15*vstupy!$B$15)*(vstupy!$B$15-(AZ12-18)+1)),IF(vstupy!$B$15<(AZ12-18),0,(2*SUM($B$18:$T$18)/(2*vstupy!$B$15-1)))) -> 0 | BA22: =IF(vstupy!$B$14=1,IF(vstupy!$B$15<(BA12-18),0,(2*SUM($B$18:$T$18))/(vstupy!$B$15*vstupy!$B$15)*(vstupy!$B$15-(BA12-18)+1)),IF(vstupy!$B$15<(BA12-18),0,(2*SUM($B$18:$T$18)/(2*vstupy!$B$15-1)))) -> 0 | BB22: =IF(vstupy!$B$14=1,IF(vstupy!$B$15<(BB12-18),0,(2*SUM($B$18:$T$18))/(vstupy!$B$15*vstupy!$B$15)*(vstupy!$B$15-(BB12-18)+1)),IF(vstupy!$B$15<(BB12-18),0,(2*SUM($B$18:$T$18)/(2*vstupy!$B$15-1)))) -> 0 | BC22: =IF(vstupy!$B$14=1,IF(vstupy!$B$15<(BC12-18),0,(2*SUM($B$18:$T$18))/(vstupy!$B$15*vstupy!$B$15)*(vstupy!$B$15-(BC12-18)+1)),IF(vstupy!$B$15<(BC12-18),0,(2*SUM($B$18:$T$18)/(2*vstupy!$B$15-1)))) -> 0 | BD22: =IF(vstupy!$B$14=1,IF(vstupy!$B$15<(BD12-18),0,(2*SUM($B$18:$T$18))/(vstupy!$B$15*vstupy!$B$15)*(vstupy!$B$15-(BD12-18)+1)),IF(vstupy!$B$15<(BD12-18),0,(2*SUM($B$18:$T$18)/(2*vstupy!$B$15-1)))) -> 0 | BE22: =IF(vstupy!$B$14=1,IF(vstupy!$B$15<(BE12-18),0,(2*SUM($B$18:$T$18))/(vstupy!$B$15*vstupy!$B$15)*(vstupy!$B$15-(BE12-18)+1)),IF(vstupy!$B$15<(BE12-18),0,(2*SUM($B$18:$T$18)/(2*vstupy!$B$15-1)))) -> 0 | BF22: =IF(vstupy!$B$14=1,IF(vstupy!$B$15<(BF12-18),0,(2*SUM($B$18:$T$18))/(vstupy!$B$15*vstupy!$B$15)*(vstupy!$B$15-(BF12-18)+1)),IF(vstupy!$B$15<(BF12-18),0,(2*SUM($B$18:$T$18)/(2*vstupy!$B$15-1)))) -> 0 | BG22: =IF(vstupy!$B$14=1,IF(vstupy!$B$15<(BG12-18),0,(2*SUM($B$18:$T$18))/(vstupy!$B$15*vstupy!$B$15)*(vstupy!$B$15-(BG12-18)+1)),IF(vstupy!$B$15<(BG12-18),0,(2*SUM($B$18:$T$18)/(2*vstupy!$B$15-1)))) -> 0 | BH22: =IF(vstupy!$B$14=1,IF(vstupy!$B$15<(BH12-18),0,(2*SUM($B$18:$T$18))/(vstupy!$B$15*vstupy!$B$15)*(vstupy!$B$15-(BH12-18)+1)),IF(vstupy!$B$15<(BH12-18),0,(2*SUM($B$18:$T$18)/(2*vstupy!$B$15-1)))) -> 0 | BI22: =IF(vstupy!$B$14=1,IF(vstupy!$B$15<(BI12-18),0,(2*SUM($B$18:$T$18))/(vstupy!$B$15*vstupy!$B$15)*(vstupy!$B$15-(BI12-18)+1)),IF(vstupy!$B$15<(BI12-18),0,(2*SUM($B$18:$T$18)/(2*vstupy!$B$15-1)))) -> 0 | BJ22: =IF(vstupy!$B$14=1,IF(vstupy!$B$15<(BJ12-18),0,(2*SUM($B$18:$T$18))/(vstupy!$B$15*vstupy!$B$15)*(vstupy!$B$15-(BJ12-18)+1)),IF(vstupy!$B$15<(BJ12-18),0,(2*SUM($B$18:$T$18)/(2*vstupy!$B$15-1)))) -> 0 | BK22: =IF(vstupy!$B$14=1,IF(vstupy!$B$15<(BK12-18),0,(2*SUM($B$18:$T$18))/(vstupy!$B$15*vstupy!$B$15)*(vstupy!$B$15-(BK12-18)+1)),IF(vstupy!$B$15<(BK12-18),0,(2*SUM($B$18:$T$18)/(2*vstupy!$B$15-1)))) -> 0 | BL22: =IF(vstupy!$B$14=1,IF(vstupy!$B$15<(BL12-18),0,(2*SUM($B$18:$T$18))/(vstupy!$B$15*vstupy!$B$15)*(vstupy!$B$15-(BL12-18)+1)),IF(vstupy!$B$15<(BL12-18),0,(2*SUM($B$18:$T$18)/(2*vstupy!$B$15-1)))) -> 0 | BM22: =IF(vstupy!$B$14=1,IF(vstupy!$B$15<(BM12-18),0,(2*SUM($B$18:$T$18))/(vstupy!$B$15*vstupy!$B$15)*(vstupy!$B$15-(BM12-18)+1)),IF(vstupy!$B$15<(BM12-18),0,(2*SUM($B$18:$T$18)/(2*vstupy!$B$15-1)))) -> 0 | BN22: =IF(vstupy!$B$14=1,IF(vstupy!$B$15<(BN12-18),0,(2*SUM($B$18:$T$18))/(vstupy!$B$15*vstupy!$B$15)*(vstupy!$B$15-(BN12-18)+1)),IF(vstupy!$B$15<(BN12-18),0,(2*SUM($B$18:$T$18)/(2*vstupy!$B$15-1)))) -> 0 | BO22: =IF(vstupy!$B$14=1,IF(vstupy!$B$15<(BO12-18),0,(2*SUM($B$18:$T$18))/(vstupy!$B$15*vstupy!$B$15)*(vstupy!$B$15-(BO12-18)+1)),IF(vstupy!$B$15<(BO12-18),0,(2*SUM($B$18:$T$18)/(2*vstupy!$B$15-1)))) -> 0 | BP22: =IF(vstupy!$B$14=1,IF(vstupy!$B$15<(BP12-18),0,(2*SUM($B$18:$T$18))/(vstupy!$B$15*vstupy!$B$15)*(vstupy!$B$15-(BP12-18)+1)),IF(vstupy!$B$15<(BP12-18),0,(2*SUM($B$18:$T$18)/(2*vstupy!$B$15-1)))) -> 0 | BQ22: =IF(vstupy!$B$14=1,IF(vstupy!$B$15<(BQ12-18),0,(2*SUM($B$18:$T$18))/(vstupy!$B$15*vstupy!$B$15)*(vstupy!$B$15-(BQ12-18)+1)),IF(vstupy!$B$15<(BQ12-18),0,(2*SUM($B$18:$T$18)/(2*vstupy!$B$15-1)))) -> 0 | BR22: =IF(vstupy!$B$14=1,IF(vstupy!$B$15<(BR12-18),0,(2*SUM($B$18:$T$18))/(vstupy!$B$15*vstupy!$B$15)*(vstupy!$B$15-(BR12-18)+1)),IF(vstupy!$B$15<(BR12-18),0,(2*SUM($B$18:$T$18)/(2*vstupy!$B$15-1)))) -> 0 | BS22: =IF(vstupy!$B$14=1,IF(vstupy!$B$15<(BS12-18),0,(2*SUM($B$18:$T$18))/(vstupy!$B$15*vstupy!$B$15)*(vstupy!$B$15-(BS12-18)+1)),IF(vstupy!$B$15<(BS12-18),0,(2*SUM($B$18:$T$18)/(2*vstupy!$B$15-1)))) -> 0 | BT22: =IF(vstupy!$B$14=1,IF(vstupy!$B$15<(BT12-18),0,(2*SUM($B$18:$T$18))/(vstupy!$B$15*vstupy!$B$15)*(vstupy!$B$15-(BT12-18)+1)),IF(vstupy!$B$15<(BT12-18),0,(2*SUM($B$18:$T$18)/(2*vstupy!$B$15-1)))) -> 0 | BU22: =IF(vstupy!$B$14=1,IF(vstupy!$B$15<(BU12-18),0,(2*SUM($B$18:$T$18))/(vstupy!$B$15*vstupy!$B$15)*(vstupy!$B$15-(BU12-18)+1)),IF(vstupy!$B$15<(BU12-18),0,(2*SUM($B$18:$T$18)/(2*vstupy!$B$15-1)))) -> 0 | BV22: =IF(vstupy!$B$14=1,IF(vstupy!$B$15<(BV12-18),0,(2*SUM($B$18:$T$18))/(vstupy!$B$15*vstupy!$B$15)*(vstupy!$B$15-(BV12-18)+1)),IF(vstupy!$B$15<(BV12-18),0,(2*SUM($B$18:$T$18)/(2*vstupy!$B$15-1)))) -> 0 | BW22: =IF(vstupy!$B$14=1,IF(vstupy!$B$15<(BW12-18),0,(2*SUM($B$18:$T$18))/(vstupy!$B$15*vstupy!$B$15)*(vstupy!$B$15-(BW12-18)+1)),IF(vstupy!$B$15<(BW12-18),0,(2*SUM($B$18:$T$18)/(2*vstupy!$B$15-1)))) -> 0 | BX22: =IF(vstupy!$B$14=1,IF(vstupy!$B$15<(BX12-18),0,(2*SUM($B$18:$T$18))/(vstupy!$B$15*vstupy!$B$15)*(vstupy!$B$15-(BX12-18)+1)),IF(vstupy!$B$15<(BX12-18),0,(2*SUM($B$18:$T$18)/(2*vstupy!$B$15-1)))) -> 0 | BY22: =IF(vstupy!$B$14=1,IF(vstupy!$B$15<(BY12-18),0,(2*SUM($B$18:$T$18))/(vstupy!$B$15*vstupy!$B$15)*(vstupy!$B$15-(BY12-18)+1)),IF(vstupy!$B$15<(BY12-18),0,(2*SUM($B$18:$T$18)/(2*vstupy!$B$15-1)))) -> 0 | BZ22: =IF(vstupy!$B$14=1,IF(vstupy!$B$15<(BZ12-18),0,(2*SUM($B$18:$T$18))/(vstupy!$B$15*vstupy!$B$15)*(vstupy!$B$15-(BZ12-18)+1)),IF(vstupy!$B$15<(BZ12-18),0,(2*SUM($B$18:$T$18)/(2*vstupy!$B$15-1)))) -> 0 | CA22: =IF(vstupy!$B$14=1,IF(vstupy!$B$15<(CA12-18),0,(2*SUM($B$18:$T$18))/(vstupy!$B$15*vstupy!$B$15)*(vstupy!$B$15-(CA12-18)+1)),IF(vstupy!$B$15<(CA12-18),0,(2*SUM($B$18:$T$18)/(2*vstupy!$B$15-1)))) -> 0 | CB22: =IF(vstupy!$B$14=1,IF(vstupy!$B$15<(CB12-18),0,(2*SUM($B$18:$T$18))/(vstupy!$B$15*vstupy!$B$15)*(vstupy!$B$15-(CB12-18)+1)),IF(vstupy!$B$15<(CB12-18),0,(2*SUM($B$18:$T$18)/(2*vstupy!$B$15-1)))) -> 0
A23: Daň z příjmu | B23: 0 | C23: 0 | D23: 0 | E23: 0 | F23: 0 | G23: 0 | H23: 0 | I23: 0 | J23: 0 | K23: 0 | L23: 0 | M23: 0 | N23: 0 | O23: 0 | P23: 0 | Q23: 0 | R23: 0 | S23: 0 | T23: 0 | U23: =(U29-U21-U22)*vstupy!$B$13 -> -1830690342 | V23: =(V29-V21-V22)*vstupy!$B$13 -> -3492210502 | W23: =(W29-W21-W22)*vstupy!$B$13 -> -3307239852 | X23: =(X29-X21-X22)*vstupy!$B$13 -> -3122262758 | Y23: =(Y29-Y21-Y22)*vstupy!$B$13 -> -2937279092 | Z23: =(Z29-Z21-Z22)*vstupy!$B$13 -> -2752288720 | AA23: =(AA29-AA21-AA22)*vstupy!$B$13 -> -2567291511 | AB23: =(AB29-AB21-AB22)*vstupy!$B$13 -> -2382287326 | AC23: =(AC29-AC21-AC22)*vstupy!$B$13 -> -2197276027 | AD23: =(AD29-AD21-AD22)*vstupy!$B$13 -> -2012257470 | AE23: =(AE29-AE21-AE22)*vstupy!$B$13 -> -1827231512 | AF23: =(AF29-AF21-AF22)*vstupy!$B$13 -> -1642198003 | AG23: =(AG29-AG21-AG22)*vstupy!$B$13 -> -1457156793 | AH23: =(AH29-AH21-AH22)*vstupy!$B$13 -> -1272107728 | AI23: =(AI29-AI21-AI22)*vstupy!$B$13 -> -1087050650 | AJ23: =(AJ29-AJ21-AJ22)*vstupy!$B$13 -> -901985400.4 | AK23: =(AK29-AK21-AK22)*vstupy!$B$13 -> -716911814.3 | AL23: =(AL29-AL21-AL22)*vstupy!$B$13 -> -531829725.5 | AM23: =(AM29-AM21-AM22)*vstupy!$B$13 -> -346738963.9 | AN23: =(AN29-AN21-AN22)*vstupy!$B$13 -> -161639356.1 | AO23: =(AO29-AO21-AO22)*vstupy!$B$13 -> 23469274.97 | AP23: =(AP29-AP21-AP22)*vstupy!$B$13 -> 23938660.46 | AQ23: =(AQ29-AQ21-AQ22)*vstupy!$B$13 -> 24417433.67 | AR23: =(AR29-AR21-AR22)*vstupy!$B$13 -> 24905782.35 | AS23: =(AS29-AS21-AS22)*vstupy!$B$13 -> 25403897.99 | AT23: =(AT29-AT21-AT22)*vstupy!$B$13 -> 25911975.95 | AU23: =(AU29-AU21-AU22)*vstupy!$B$13 -> 26430215.47 | AV23: =(AV29-AV21-AV22)*vstupy!$B$13 -> 26958819.78 | AW23: =(AW29-AW21-AW22)*vstupy!$B$13 -> 27497996.18 | AX23: =(AX29-AX21-AX22)*vstupy!$B$13 -> 28047956.1 | AY23: =(AY29-AY21-AY22)*vstupy!$B$13 -> 28608915.22 | AZ23: =(AZ29-AZ21-AZ22)*vstupy!$B$13 -> 29181093.53 | BA23: =(BA29-BA21-BA22)*vstupy!$B$13 -> 29764715.4 | BB23: =(BB29-BB21-BB22)*vstupy!$B$13 -> 30360009.71 | BC23: =(BC29-BC21-BC22)*vstupy!$B$13 -> 30967209.9 | BD23: =(BD29-BD21-BD22)*vstupy!$B$13 -> 31586554.1 | BE23: =(BE29-BE21-BE22)*vstupy!$B$13 -> 32218285.18 | BF23: =(BF29-BF21-BF22)*vstupy!$B$13 -> 32862650.88 | BG23: =(BG29-BG21-BG22)*vstupy!$B$13 -> 33519903.9 | BH23: =(BH29-BH21-BH22)*vstupy!$B$13 -> 34190301.98 | BI23: =(BI29-BI21-BI22)*vstupy!$B$13 -> 34874108.02 | BJ23: =(BJ29-BJ21-BJ22)*vstupy!$B$13 -> 35571590.18 | BK23: =(BK29-BK21-BK22)*vstupy!$B$13 -> 36283021.98 | BL23: =(BL29-BL21-BL22)*vstupy!$B$13 -> 37008682.42 | BM23: =(BM29-BM21-BM22)*vstupy!$B$13 -> 37748856.07 | BN23: =(BN29-BN21-BN22)*vstupy!$B$13 -> 38503833.19 | BO23: =(BO29-BO21-BO22)*vstupy!$B$13 -> 39273909.86 | BP23: =(BP29-BP21-BP22)*vstupy!$B$13 -> 40059388.05 | BQ23: =(BQ29-BQ21-BQ22)*vstupy!$B$13 -> 40860575.82 | BR23: =(BR29-BR21-BR22)*vstupy!$B$13 -> 41677787.33 | BS23: =(BS29-BS21-BS22)*vstupy!$B$13 -> 42511343.08 | BT23: =(BT29-BT21-BT22)*vstupy!$B$13 -> 43361569.94 | BU23: =(BU29-BU21-BU22)*vstupy!$B$13 -> 44228801.34 | BV23: =(BV29-BV21-BV22)*vstupy!$B$13 -> 45113377.37 | BW23: =(BW29-BW21-BW22)*vstupy!$B$13 -> 46015644.91 | BX23: =(BX29-BX21-BX22)*vstupy!$B$13 -> 46935957.81 | BY23: =(BY29-BY21-BY22)*vstupy!$B$13 -> 47874676.97 | BZ23: =(BZ29-BZ21-BZ22)*vstupy!$B$13 -> 48832170.51 | CA23: =(CA29-CA21-CA22)*vstupy!$B$13 -> 49808813.92 | CB23: =(CB29-CB21-CB22)*vstupy!$B$13 -> 50804990.2
A24: Celkem | B24: =B21+B23 -> 0 | C24: 0 | D24: =D21+D23 -> 0 | E24: =E21+E23 -> 0 | F24: 0 | G24: 0 | H24: 0 | I24: 0 | J24: 0 | K24: 0 | L24: 0 | M24: 0 | N24: 0 | O24: 0 | P24: 0 | Q24: 0 | R24: 0 | S24: 0 | T24: 0 | U24: 4563921522 | V24: 3030293600 | W24: 3345714332 | X24: 3663750509 | Y24: 3984454441 | Z24: 4307879483 | AA24: 4634080057 | AB24: 4963111673 | AC24: 5295030952 | AD24: 5629895648 | AE24: 5967764669 | AF24: 6308698102 | AG24: 6652757234 | AH24: 7000004579 | AI24: 7350503903 | AJ24: 7704320244 | AK24: 8061519943 | AL24: 8422170667 | AM24: 8786341436 | AN24: 9154102652 | AO24: 9525526123 | AP24: 9716036646 | AQ24: 9910357379 | AR24: 1.010856453e+10 | AS24: 1.031073582e+10 | AT24: 1.051695053e+10 | AU24: 1.072728954e+10 | AV24: 1.094183533e+10 | AW24: 1.116067204e+10 | AX24: 1.138388548e+10 | AY24: 1.161156319e+10 | AZ24: 1.184379446e+10 | BA24: 1.208067034e+10 | BB24: 1.232228375e+10 | BC24: 1.256872943e+10 | BD24: 1.282010402e+10 | BE24: 1.30765061e+10 | BF24: 1.333803622e+10 | BG24: 1.360479694e+10 | BH24: 1.387689288e+10 | BI24: 1.415443074e+10 | BJ24: 1.443751935e+10 | BK24: 1.472626974e+10 | BL24: 1.502079514e+10 | BM24: 1.532121104e+10 | BN24: 1.562763526e+10 | BO24: 1.594018796e+10 | BP24: 1.625899172e+10 | BQ24: =BQ21+BQ23 -> 1.658417156e+10 | BR24: 1.691585499e+10 | BS24: 1.725417209e+10 | BT24: 1.759925553e+10 | BU24: 1.795124064e+10 | BV24: 1.831026545e+10 | BW24: 1.867647076e+10 | BX24: 1.905000018e+10 | BY24: 1.943100018e+10 | BZ24: 1.981962019e+10 | CA24: 2.021601259e+10 | CB24: 2.062033284e+10
A26: Příjmy
A27: Prodej elektřiny | B27: 0 | C27: 0 | D27: 0 | E27: 0 | F27: 0 | G27: 0 | H27: 0 | I27: 0 | J27: 0 | K27: 0 | L27: 0 | M27: 0 | N27: 0 | O27: 0 | P27: 0 | Q27: 0 | R27: 0 | S27: 0 | T27: 0 | U27: =(vstupy!$B$6-$B$8)*vstupy!$B$7*vstupy!$B$8*$G$4*vstupy!$B$12*(1+$J$4)^U12+$B$8*$B$9*$C$10*vstupy!$B$12*(1+$J$4)^U12 -> 6084108587 | V27: =(vstupy!$B$6-$B$8)*vstupy!$B$7*vstupy!$B$8*$G$4*vstupy!$B$12*(1+$J$4)^V12+$B$8*$B$9*$C$10*vstupy!$B$12*(1+$J$4)^V12 -> 6205790759 | W27: =(vstupy!$B$6-$B$8)*vstupy!$B$7*vstupy!$B$8*$G$4*vstupy!$B$12*(1+$J$4)^W12+$B$8*$B$9*$C$10*vstupy!$B$12*(1+$J$4)^W12 -> 6329906574 | X27: =(vstupy!$B$6-$B$8)*vstupy!$B$7*vstupy!$B$8*$G$4*vstupy!$B$12*(1+$J$4)^X12+$B$8*$B$9*$C$10*vstupy!$B$12*(1+$J$4)^X12 -> 6456504706 | Y27: =(vstupy!$B$6-$B$8)*vstupy!$B$7*vstupy!$B$8*$G$4*vstupy!$B$12*(1+$J$4)^Y12+$B$8*$B$9*$C$10*vstupy!$B$12*(1+$J$4)^Y12 -> 6585634800 | Z27: =(vstupy!$B$6-$B$8)*vstupy!$B$7*vstupy!$B$8*$G$4*vstupy!$B$12*(1+$J$4)^Z12+$B$8*$B$9*$C$10*vstupy!$B$12*(1+$J$4)^Z12 -> 6717347496 | AA27: =(vstupy!$B$6-$B$8)*vstupy!$B$7*vstupy!$B$8*$G$4*vstupy!$B$12*(1+$J$4)^AA12+$B$8*$B$9*$C$10*vstupy!$B$12*(1+$J$4)^AA12 -> 6851694446 | AB27: =(vstupy!$B$6-$B$8)*vstupy!$B$7*vstupy!$B$8*$G$4*vstupy!$B$12*(1+$J$4)^AB12+$B$8*$B$9*$C$10*vstupy!$B$12*(1+$J$4)^AB12 -> 6988728334 | AC27: =(vstupy!$B$6-$B$8)*vstupy!$B$7*vstupy!$B$8*$G$4*vstupy!$B$12*(1+$J$4)^AC12+$B$8*$B$9*$C$10*vstupy!$B$12*(1+$J$4)^AC12 -> 7128502901 | AD27: =(vstupy!$B$6-$B$8)*vstupy!$B$7*vstupy!$B$8*$G$4*vstupy!$B$12*(1+$J$4)^AD12+$B$8*$B$9*$C$10*vstupy!$B$12*(1+$J$4)^AD12 -> 7271072959 | AE27: =(vstupy!$B$6-$B$8)*vstupy!$B$7*vstupy!$B$8*$G$4*vstupy!$B$12*(1+$J$4)^AE12+$B$8*$B$9*$C$10*vstupy!$B$12*(1+$J$4)^AE12 -> 7416494418 | AF27: =(vstupy!$B$6-$B$8)*vstupy!$B$7*vstupy!$B$8*$G$4*vstupy!$B$12*(1+$J$4)^AF12+$B$8*$B$9*$C$10*vstupy!$B$12*(1+$J$4)^AF12 -> 7564824307 | AG27: =(vstupy!$B$6-$B$8)*vstupy!$B$7*vstupy!$B$8*$G$4*vstupy!$B$12*(1+$J$4)^AG12+$B$8*$B$9*$C$10*vstupy!$B$12*(1+$J$4)^AG12 -> 7716120793 | AH27: =(vstupy!$B$6-$B$8)*vstupy!$B$7*vstupy!$B$8*$G$4*vstupy!$B$12*(1+$J$4)^AH12+$B$8*$B$9*$C$10*vstupy!$B$12*(1+$J$4)^AH12 -> 7870443209 | AI27: =(vstupy!$B$6-$B$8)*vstupy!$B$7*vstupy!$B$8*$G$4*vstupy!$B$12*(1+$J$4)^AI12+$B$8*$B$9*$C$10*vstupy!$B$12*(1+$J$4)^AI12 -> 8027852073 | AJ27: =(vstupy!$B$6-$B$8)*vstupy!$B$7*vstupy!$B$8*$G$4*vstupy!$B$12*(1+$J$4)^AJ12+$B$8*$B$9*$C$10*vstupy!$B$12*(1+$J$4)^AJ12 -> 8188409114 | AK27: =(vstupy!$B$6-$B$8)*vstupy!$B$7*vstupy!$B$8*$G$4*vstupy!$B$12*(1+$J$4)^AK12+$B$8*$B$9*$C$10*vstupy!$B$12*(1+$J$4)^AK12 -> 8352177297 | AL27: =(vstupy!$B$6-$B$8)*vstupy!$B$7*vstupy!$B$8*$G$4*vstupy!$B$12*(1+$J$4)^AL12+$B$8*$B$9*$C$10*vstupy!$B$12*(1+$J$4)^AL12 -> 8519220843 | AM27: =(vstupy!$B$6-$B$8)*vstupy!$B$7*vstupy!$B$8*$G$4*vstupy!$B$12*(1+$J$4)^AM12+$B$8*$B$9*$C$10*vstupy!$B$12*(1+$J$4)^AM12 -> 8689605259 | AN27: =(vstupy!$B$6-$B$8)*vstupy!$B$7*vstupy!$B$8*$G$4*vstupy!$B$12*(1+$J$4)^AN12+$B$8*$B$9*$C$10*vstupy!$B$12*(1+$J$4)^AN12 -> 8863397365 | AO27: =(vstupy!$B$6-$B$8)*vstupy!$B$7*vstupy!$B$8*$G$4*vstupy!$B$12*(1+$J$4)^AO12+$B$8*$B$9*$C$10*vstupy!$B$12*(1+$J$4)^AO12 -> 9040665312 | AP27: =(vstupy!$B$6-$B$8)*vstupy!$B$7*vstupy!$B$8*$G$4*vstupy!$B$12*(1+$J$4)^AP12+$B$8*$B$9*$C$10*vstupy!$B$12*(1+$J$4)^AP12 -> 9221478618 | AQ27: =(vstupy!$B$6-$B$8)*vstupy!$B$7*vstupy!$B$8*$G$4*vstupy!$B$12*(1+$J$4)^AQ12+$B$8*$B$9*$C$10*vstupy!$B$12*(1+$J$4)^AQ12 -> 9405908191 | AR27: =(vstupy!$B$6-$B$8)*vstupy!$B$7*vstupy!$B$8*$G$4*vstupy!$B$12*(1+$J$4)^AR12+$B$8*$B$9*$C$10*vstupy!$B$12*(1+$J$4)^AR12 -> 9594026354 | AS27: =(vstupy!$B$6-$B$8)*vstupy!$B$7*vstupy!$B$8*$G$4*vstupy!$B$12*(1+$J$4)^AS12+$B$8*$B$9*$C$10*vstupy!$B$12*(1+$J$4)^AS12 -> 9785906881 | AT27: =(vstupy!$B$6-$B$8)*vstupy!$B$7*vstupy!$B$8*$G$4*vstupy!$B$12*(1+$J$4)^AT12+$B$8*$B$9*$C$10*vstupy!$B$12*(1+$J$4)^AT12 -> 9981625019 | AU27: =(vstupy!$B$6-$B$8)*vstupy!$B$7*vstupy!$B$8*$G$4*vstupy!$B$12*(1+$J$4)^AU12+$B$8*$B$9*$C$10*vstupy!$B$12*(1+$J$4)^AU12 -> 1.018125752e+10 | AV27: =(vstupy!$B$6-$B$8)*vstupy!$B$7*vstupy!$B$8*$G$4*vstupy!$B$12*(1+$J$4)^AV12+$B$8*$B$9*$C$10*vstupy!$B$12*(1+$J$4)^AV12 -> 1.038488267e+10 | AW27: =(vstupy!$B$6-$B$8)*vstupy!$B$7*vstupy!$B$8*$G$4*vstupy!$B$12*(1+$J$4)^AW12+$B$8*$B$9*$C$10*vstupy!$B$12*(1+$J$4)^AW12 -> 1.059258032e+10 | AX27: =(vstupy!$B$6-$B$8)*vstupy!$B$7*vstupy!$B$8*$G$4*vstupy!$B$12*(1+$J$4)^AX12+$B$8*$B$9*$C$10*vstupy!$B$12*(1+$J$4)^AX12 -> 1.080443193e+10 | AY27: =(vstupy!$B$6-$B$8)*vstupy!$B$7*vstupy!$B$8*$G$4*vstupy!$B$12*(1+$J$4)^AY12+$B$8*$B$9*$C$10*vstupy!$B$12*(1+$J$4)^AY12 -> 1.102052057e+10 | AZ27: =(vstupy!$B$6-$B$8)*vstupy!$B$7*vstupy!$B$8*$G$4*vstupy!$B$12*(1+$J$4)^AZ12+$B$8*$B$9*$C$10*vstupy!$B$12*(1+$J$4)^AZ12 -> 1.124093098e+10 | BA27: =(vstupy!$B$6-$B$8)*vstupy!$B$7*vstupy!$B$8*$G$4*vstupy!$B$12*(1+$J$4)^BA12+$B$8*$B$9*$C$10*vstupy!$B$12*(1+$J$4)^BA12 -> 1.14657496e+10 | BB27: =(vstupy!$B$6-$B$8)*vstupy!$B$7*vstupy!$B$8*$G$4*vstupy!$B$12*(1+$J$4)^BB12+$B$8*$B$9*$C$10*vstupy!$B$12*(1+$J$4)^BB12 -> 1.169506459e+10 | BC27: =(vstupy!$B$6-$B$8)*vstupy!$B$7*vstupy!$B$8*$G$4*vstupy!$B$12*(1+$J$4)^BC12+$B$8*$B$9*$C$10*vstupy!$B$12*(1+$J$4)^BC12 -> 1.192896588e+10 | BD27: =(vstupy!$B$6-$B$8)*vstupy!$B$7*vstupy!$B$8*$G$4*vstupy!$B$12*(1+$J$4)^BD12+$B$8*$B$9*$C$10*vstupy!$B$12*(1+$J$4)^BD12 -> 1.21675452e+10 | BE27: =(vstupy!$B$6-$B$8)*vstupy!$B$7*vstupy!$B$8*$G$4*vstupy!$B$12*(1+$J$4)^BE12+$B$8*$B$9*$C$10*vstupy!$B$12*(1+$J$4)^BE12 -> 1.24108961e+10 | BF27: =(vstupy!$B$6-$B$8)*vstupy!$B$7*vstupy!$B$8*$G$4*vstupy!$B$12*(1+$J$4)^BF12+$B$8*$B$9*$C$10*vstupy!$B$12*(1+$J$4)^BF12 -> 1.265911403e+10 | BG27: =(vstupy!$B$6-$B$8)*vstupy!$B$7*vstupy!$B$8*$G$4*vstupy!$B$12*(1+$J$4)^BG12+$B$8*$B$9*$C$10*vstupy!$B$12*(1+$J$4)^BG12 -> 1.291229631e+10 | BH27: =(vstupy!$B$6-$B$8)*vstupy!$B$7*vstupy!$B$8*$G$4*vstupy!$B$12*(1+$J$4)^BH12+$B$8*$B$9*$C$10*vstupy!$B$12*(1+$J$4)^BH12 -> 1.317054223e+10 | BI27: =(vstupy!$B$6-$B$8)*vstupy!$B$7*vstupy!$B$8*$G$4*vstupy!$B$12*(1+$J$4)^BI12+$B$8*$B$9*$C$10*vstupy!$B$12*(1+$J$4)^BI12 -> 1.343395308e+10 | BJ27: =(vstupy!$B$6-$B$8)*vstupy!$B$7*vstupy!$B$8*$G$4*vstupy!$B$12*(1+$J$4)^BJ12+$B$8*$B$9*$C$10*vstupy!$B$12*(1+$J$4)^BJ12 -> 1.370263214e+10 | BK27: =(vstupy!$B$6-$B$8)*vstupy!$B$7*vstupy!$B$8*$G$4*vstupy!$B$12*(1+$J$4)^BK12+$B$8*$B$9*$C$10*vstupy!$B$12*(1+$J$4)^BK12 -> 1.397668478e+10 | BL27: =(vstupy!$B$6-$B$8)*vstupy!$B$7*vstupy!$B$8*$G$4*vstupy!$B$12*(1+$J$4)^BL12+$B$8*$B$9*$C$10*vstupy!$B$12*(1+$J$4)^BL12 -> 1.425621848e+10 | BM27: =(vstupy!$B$6-$B$8)*vstupy!$B$7*vstupy!$B$8*$G$4*vstupy!$B$12*(1+$J$4)^BM12+$B$8*$B$9*$C$10*vstupy!$B$12*(1+$J$4)^BM12 -> 1.454134285e+10 | BN27: =(vstupy!$B$6-$B$8)*vstupy!$B$7*vstupy!$B$8*$G$4*vstupy!$B$12*(1+$J$4)^BN12+$B$8*$B$9*$C$10*vstupy!$B$12*(1+$J$4)^BN12 -> 1.48321697e+10 | BO27: =(vstupy!$B$6-$B$8)*vstupy!$B$7*vstupy!$B$8*$G$4*vstupy!$B$12*(1+$J$4)^BO12+$B$8*$B$9*$C$10*vstupy!$B$12*(1+$J$4)^BO12 -> 1.51288131e+10 | BP27: =(vstupy!$B$6-$B$8)*vstupy!$B$7*vstupy!$B$8*$G$4*vstupy!$B$12*(1+$J$4)^BP12+$B$8*$B$9*$C$10*vstupy!$B$12*(1+$J$4)^BP12 -> 1.543138936e+10 | BQ27: =(vstupy!$B$6-$B$8)*vstupy!$B$7*vstupy!$B$8*$G$4*vstupy!$B$12*(1+$J$4)^BQ12+$B$8*$B$9*$C$10*vstupy!$B$12*(1+$J$4)^BQ12 -> 1.574001715e+10 | BR27: =(vstupy!$B$6-$B$8)*vstupy!$B$7*vstupy!$B$8*$G$4*vstupy!$B$12*(1+$J$4)^BR12+$B$8*$B$9*$C$10*vstupy!$B$12*(1+$J$4)^BR12 -> 1.605481749e+10 | BS27: =(vstupy!$B$6-$B$8)*vstupy!$B$7*vstupy!$B$8*$G$4*vstupy!$B$12*(1+$J$4)^BS12+$B$8*$B$9*$C$10*vstupy!$B$12*(1+$J$4)^BS12 -> 1.637591384e+10 | BT27: =(vstupy!$B$6-$B$8)*vstupy!$B$7*vstupy!$B$8*$G$4*vstupy!$B$12*(1+$J$4)^BT12+$B$8*$B$9*$C$10*vstupy!$B$12*(1+$J$4)^BT12 -> 1.670343212e+10 | BU27: =(vstupy!$B$6-$B$8)*vstupy!$B$7*vstupy!$B$8*$G$4*vstupy!$B$12*(1+$J$4)^BU12+$B$8*$B$9*$C$10*vstupy!$B$12*(1+$J$4)^BU12 -> 1.703750076e+10 | BV27: =(vstupy!$B$6-$B$8)*vstupy!$B$7*vstupy!$B$8*$G$4*vstupy!$B$12*(1+$J$4)^BV12+$B$8*$B$9*$C$10*vstupy!$B$12*(1+$J$4)^BV12 -> 1.737825078e+10 | BW27: =(vstupy!$B$6-$B$8)*vstupy!$B$7*vstupy!$B$8*$G$4*vstupy!$B$12*(1+$J$4)^BW12+$B$8*$B$9*$C$10*vstupy!$B$12*(1+$J$4)^BW12 -> 1.772581579e+10 | BX27: =(vstupy!$B$6-$B$8)*vstupy!$B$7*vstupy!$B$8*$G$4*vstupy!$B$12*(1+$J$4)^BX12+$B$8*$B$9*$C$10*vstupy!$B$12*(1+$J$4)^BX12 -> 1.808033211e+10 | BY27: =(vstupy!$B$6-$B$8)*vstupy!$B$7*vstupy!$B$8*$G$4*vstupy!$B$12*(1+$J$4)^BY12+$B$8*$B$9*$C$10*vstupy!$B$12*(1+$J$4)^BY12 -> 1.844193875e+10 | BZ27: =(vstupy!$B$6-$B$8)*vstupy!$B$7*vstupy!$B$8*$G$4*vstupy!$B$12*(1+$J$4)^BZ12+$B$8*$B$9*$C$10*vstupy!$B$12*(1+$J$4)^BZ12 -> 1.881077752e+10 | CA27: =(vstupy!$B$6-$B$8)*vstupy!$B$7*vstupy!$B$8*$G$4*vstupy!$B$12*(1+$J$4)^CA12+$B$8*$B$9*$C$10*vstupy!$B$12*(1+$J$4)^CA12 -> 1.918699307e+10 | CB27: =(vstupy!$B$6-$B$8)*vstupy!$B$7*vstupy!$B$8*$G$4*vstupy!$B$12*(1+$J$4)^CB12+$B$8*$B$9*$C$10*vstupy!$B$12*(1+$J$4)^CB12 -> 1.957073294e+10
A28: Prodej kapacity | B28: 0 | C28: 0 | D28: 0 | E28: 0 | F28: 0 | G28: 0 | H28: 0 | I28: 0 | J28: 0 | K28: 0 | L28: 0 | M28: 0 | N28: 0 | O28: 0 | P28: 0 | Q28: 0 | R28: 0 | S28: 0 | T28: 0 | U28: =$B$8*$C$7*(1+$J$4)^U12 -> 393630378.8 | V28: =$B$8*$C$7*(1+$J$4)^V12 -> 401502986.4 | W28: 409533046.1 | X28: 417723707 | Y28: 426078181.2 | Z28: 434599744.8 | AA28: 443291739.7 | AB28: 452157574.5 | AC28: 461200726 | AD28: 470424740.5 | AE28: 479833235.3 | AF28: 489429900 | AG28: 499218498 | AH28: 509202868 | AI28: 519386925.3 | AJ28: 529774663.9 | AK28: 540370157.1 | AL28: 551177560.3 | AM28: 562201111.5 | AN28: 573445133.7 | AO28: 584914036.4 | AP28: 596612317.1 | AQ28: 608544563.5 | AR28: 620715454.7 | AS28: 633129763.8 | AT28: 645792359.1 | AU28: 658708206.3 | AV28: 671882370.4 | AW28: 685320017.8 | AX28: 699026418.2 | AY28: 713006946.5 | AZ28: 727267085.5 | BA28: 741812427.2 | BB28: 756648675.7 | BC28: 771781649.2 | BD28: 787217282.2 | BE28: 802961627.9 | BF28: 819020860.4 | BG28: 835401277.6 | BH28: 852109303.2 | BI28: 869151489.2 | BJ28: 886534519 | BK28: 904265209.4 | BL28: 922350513.6 | BM28: 940797523.9 | BN28: 959613474.3 | BO28: 978805743.8 | BP28: 998381858.7 | BQ28: 1018349496 | BR28: 1038716486 | BS28: 1059490816 | BT28: 1080680632 | BU28: 1102294244 | BV28: 1124340129 | BW28: 1146826932 | BX28: 1169763471 | BY28: 1193158740 | BZ28: 1217021915 | CA28: 1241362353 | CB28: 1266189600
A29: Celkem | B29: =B27+B28 -> 0 | C29: =C27+C28 -> 0 | D29: =D27+D28 -> 0 | E29: 0 | F29: 0 | G29: 0 | H29: 0 | I29: 0 | J29: 0 | K29: 0 | L29: 0 | M29: 0 | N29: 0 | O29: 0 | P29: 0 | Q29: 0 | R29: 0 | S29: 0 | T29: 0 | U29: 6477738966 | V29: 6607293745 | W29: 6739439620 | X29: 6874228413 | Y29: 7011712981 | Z29: 7151947240 | AA29: 7294986185 | AB29: 7440885909 | AC29: 7589703627 | AD29: 7741497700 | AE29: 7896327654 | AF29: 8054254207 | AG29: 8215339291 | AH29: 8379646077 | AI29: 8547238998 | AJ29: 8718183778 | AK29: 8892547454 | AL29: 9070398403 | AM29: 9251806371 | AN29: 9436842498 | AO29: 9625579348 | AP29: 9818090935 | AQ29: 1.001445275e+10 | AR29: 1.021474181e+10 | AS29: 1.041903665e+10 | AT29: 1.062741738e+10 | AU29: 1.083996573e+10 | AV29: 1.105676504e+10 | AW29: 1.127790034e+10 | AX29: 1.150345835e+10 | AY29: 1.173352751e+10 | AZ29: 1.196819807e+10 | BA29: 1.220756203e+10 | BB29: 1.245171327e+10 | BC29: 1.270074753e+10 | BD29: 1.295476248e+10 | BE29: 1.321385773e+10 | BF29: 1.347813489e+10 | BG29: 1.374769758e+10 | BH29: 1.402265154e+10 | BI29: 1.430310457e+10 | BJ29: 1.458916666e+10 | BK29: 1.488094999e+10 | BL29: 1.517856899e+10 | BM29: 1.548214037e+10 | BN29: 1.579178318e+10 | BO29: 1.610761884e+10 | BP29: =BP27+BP28 -> 1.642977122e+10 | BQ29: 1.675836664e+10 | BR29: 1.709353398e+10 | BS29: 1.743540466e+10 | BT29: 1.778411275e+10 | BU29: 1.8139795e+10 | BV29: 1.85025909e+10 | BW29: 1.887264272e+10 | BX29: 1.925009558e+10 | BY29: 1.963509749e+10 | BZ29: 2.002779944e+10 | CA29: 2.042835543e+10 | CB29: 2.083692254e+10
A31: CF | B31: =B29-B24-B18 -> -315466800 | C31: -482664204 | D31: -820529146.8 | E31: -1673879459 | F31: -3414714097 | G31: -5224512569 | H31: -7105337094 | I31: -9059304794 | J31: -1.293668725e+10 | K31: -1.885060142e+10 | L31: -2.307313613e+10 | M31: -2.941824857e+10 | N31: -3.000661354e+10 | O31: -2.652584637e+10 | P31: -1.040629358e+10 | Q31: -8491535558 | R31: -4330683135 | S31: -1104324199 | T31: =T29-T24-T18 -> -1126410683 | U31: 1913817444 | V31: 3577000145 | W31: 3393725288 | X31: 3210477903 | Y31: 3027258539 | Z31: 2844067757 | AA31: 2660906129 | AB31: 2477774236 | AC31: 2294672675 | AD31: 2111602052 | AE31: 1928562985 | AF31: 1745556105 | AG31: 1562582057 | AH31: 1379641497 | AI31: 1196735095 | AJ31: 1013863534 | AK31: 831027510.8 | AL31: 648227735.9 | AM31: 465464934.5 | AN31: 282739846.1 | AO31: 100053224.9 | AP31: 102054289.3 | AQ31: 104095375.1 | AR31: 106177282.6 | AS31: 108300828.3 | AT31: 110466844.9 | AU31: 112676181.8 | AV31: 114929705.4 | AW31: 117228299.5 | AX31: 119572865.5 | AY31: 121964322.8 | AZ31: 124403609.3 | BA31: 126891681.4 | BB31: 129429515.1 | BC31: 132018105.4 | BD31: 134658467.5 | BE31: 137351636.8 | BF31: 140098669.6 | BG31: 142900643 | BH31: 145758655.8 | BI31: 148673828.9 | BJ31: 151647305.5 | BK31: 154680251.6 | BL31: 157773856.6 | BM31: 160929333.8 | BN31: =BN29-BN24-BN18 -> 164147920.5 | BO31: 167430878.9 | BP31: 170779496.4 | BQ31: 174195086.4 | BR31: 177678988.1 | BS31: 181232567.9 | BT31: 184857219.2 | BU31: 188554363.6 | BV31: 192325450.9 | BW31: 196171959.9 | BX31: 200095399.1 | BY31: 204097307.1 | BZ31: 208179253.2 | CA31: 212342838.3 | CB31: 216589695
A32: DCF | B32: =B31/((1+$C$4)^B12) -> -315466800 | C32: =C31/((1+$C$4)^C12) -> -451088041.1 | D32: -716681934.5 | E32: -1366384249 | F32: -2605069035 | G32: -3725005256 | H32: -4734586120 | I32: -5641679722 | J32: -7529269760 | K32: -1.025347818e+10 | L32: -1.172921242e+10 | M32: -1.397639798e+10 | N32: -1.332329527e+10 | O32: -1.100728319e+10 | P32: -4035740064 | Q32: -3077723264 | R32: -1466952210 | S32: -349600760.3 | T32: -333264276.2 | U32: 529186471.1 | V32: 924364810.6 | W32: 819629069.9 | X32: 724647129.3 | Y32: 638590754 | Z32: 560698345.3 | AA32: 490269765.7 | AB32: 426661556.2 | AC32: 369282516.4 | AD32: 317589620.3 | AE32: 271084242.7 | AF32: 229308673.4 | AG32: 191842897.4 | AH32: 158301621.3 | AI32: 128331527.5 | AJ32: 101608739 | AK32: 77836479.03 | AL32: 56742911.09 | AM32: 38079145.56 | AN32: 21617400.33 | AO32: 7149303.951 | AP32: 6815224.327 | AQ32: 6496755.9 | AR32: 6193169.176 | AS32: 5903768.747 | AT32: 5627891.703 | AU32: 5364906.109 | AV32: 5114209.562 | AW32: 4875227.807 | AX32: 4647413.424 | AY32: 4430244.572 | AZ32: 4223223.798 | BA32: 4025876.891 | BB32: 3837751.803 | BC32: 3658417.606 | BD32: 3487463.513 | BE32: 3324497.928 | BF32: 3169147.557 | BG32: 3021056.55 | BH32: 2879885.683 | BI32: 2745311.586 | BJ32: 2617025.998 | BK32: 2494735.063 | BL32: 2378158.659 | BM32: 2267029.749 | BN32: 2161093.78 | BO32: =BO31/((1+$C$4)^BO12) -> 2060108.089 | BP32: 1963841.356 | BQ32: 1872073.068 | BR32: 1784593.018 | BS32: 1701200.821 | BT32: 1621705.456 | BU32: 1545924.827 | BV32: 1473685.349 | BW32: 1404821.548 | BX32: 1339175.681 | BY32: 1276597.378 | BZ32: 1216943.295 | CA32: 1160076.786 | CB32: 1105867.59
A34: NPV vztahem | B34: =SUM(B32:CB32) -> -8.943206945e+10
A35: NPV funkcí | B35: =NPV(C4,C31:CB31)+B31 -> -8.943206945e+10
A37: Cena kapacity pro NPV = 0
A38: Scénář | B38: Roční cena kapacity
A39: 5 % | B39: 598644.4926 | C39: =B39*vstupy!$B$10 -> 16175374.19
A40: 7 % | B40: 1024943.89 | C40: =B40*vstupy!$B$10 -> 27693983.9
A41: 10 % | B41: 1990960.969 | C41: =B41*vstupy!$B$10 -> 53795765.38

Sheet citlivosti
A1: Citlivost NPV projektu bez podpory na výši nominálního diskontu
A2: diskont | B2: 0.03 | C2: 0.04 | D2: 0.05 | E2: 0.06 | F2: 0.07 | G2: 0.08 | H2: 0.09 | I2: 0.1 | J2: 0.11 | K2: 0.12 | L2: 0.13
A3: NPV bez tepla | B3: -1.384437667e+11 | C3: -1.239900374e+11 | D3: -1.119805234e+11 | E3: -1.016877124e+11 | F3: -9.268527477e+10 | G3: -8.47082045e+10 | H3: -7.758046731e+10 | I3: -7.11769373e+10 | J3: -6.540298916e+10 | K3: -6.018330975e+10 | L3: -5.545559327e+10
A4: NPV s teplem | B4: 1484343035 | C4: -3.847139081e+10 | D4: -5.954919737e+10 | E4: -6.990457282e+10 | F4: -7.40945711e+10 | G4: -7.472112286e+10 | H4: -7.3300206e+10 | I4: -7.073104269e+10 | J4: -6.755479e+10 | K4: -6.410028467e+10 | L4: -6.056796416e+10
A26: Citlivost ceny pro NPV = 0 projektu bez podpory na nominální diskont
A27: diskont | B27: 0.03 | C27: 0.04 | D27: 0.05 | E27: 0.06 | F27: 0.07 | G27: 0.08 | H27: 0.09 | I27: 0.1 | J27: 0.11 | K27: 0.12 | L27: 0.13
A28: cena bez tepla | B28: 1171.673813 | C28: 1367.585489 | D28: 1615.436687 | E28: 1920.427089 | F28: 2287.355587 | G28: 2721.017912 | H28: 3226.594136 | I28: 3809.959507 | J28: 4477.904367 | K28: 5238.280379 | L28: 6100.100681
A29: cena s teplem | B29: 639.943137 | C29: 877.5401763 | D29: 1179.386074 | E29: 1552.549433 | F29: 2003.80105 | G29: 2540.110914 | H29: 3169.142273 | I29: 3899.663243 | J29: 4741.858216 | K29: 5707.559113 | L29: 6810.429478
A30: cena bez tepla | B30: =B28/vstupy!$B$10 -> 43.3632055 | C30: =C28/vstupy!$B$10 -> 50.61382269 | D30: =D28/vstupy!$B$10 -> 59.78670197 | E30: =E28/vstupy!$B$10 -> 71.07428161 | F30: =F28/vstupy!$B$10 -> 84.65416681 | G30: =G28/vstupy!$B$10 -> 100.7038458 | H30: =H28/vstupy!$B$10 -> 119.4150309 | I30: =I28/vstupy!$B$10 -> 141.0051631 | J30: =J28/vstupy!$B$10 -> 165.7255502 | K30: =K28/vstupy!$B$10 -> 193.8667794 | L30: =L28/vstupy!$B$10 -> 225.7624234
A31: cena s teplem | B31: =B29/vstupy!$B$10 -> 23.68405392 | C31: =C29/vstupy!$B$10 -> 32.47743065 | D31: =D29/vstupy!$B$10 -> 43.64863339 | E31: =E29/vstupy!$B$10 -> 57.45926842 | F31: =F29/vstupy!$B$10 -> 74.15992042 | G31: =G29/vstupy!$B$10 -> 94.00854606 | H31: =H29/vstupy!$B$10 -> 117.2887592 | I31: =I29/vstupy!$B$10 -> 144.3250645 | J31: =J29/vstupy!$B$10 -> 175.4943825 | K31: =K29/vstupy!$B$10 -> 211.2346082 | L31: =L29/vstupy!$B$10 -> 252.051424
A53: Citlivost strike price pro CfD na nominální diskont
A54: diskont | B54: 0.03 | C54: 0.04 | D54: 0.05 | E54: 0.06 | F54: 0.07 | G54: 0.08 | H54: 0.09 | I54: 0.1 | J54: 0.11 | K54: 0.12 | L54: 0.13
A55: strike price bez tepla | B55: 57.88775864 | C55: 65.53286731 | D55: 74.82711382 | E55: 85.95193683 | F55: 99.11082429 | G55: 114.5291741 | H55: 132.4551614 | I55: 153.1614416 | J55: 176.9475503 | K55: 204.142884 | L55: 235.1101786
A56: strike price s teplem | B56: 23.59455115 | C56: 37.26772488 | D56: 51.92544801 | E56: 68.04306976 | F56: 86.11943683 | G56: 106.628665 | H56: 130.0386017 | I56: 156.8259704 | J56: 187.4893451 | K56: 222.5607629 | L56: 262.6165586
A79: Průběh CF a DCF projektu bez podpory
A80: rok | B80: 2016 | C80: 2017 | D80: 2018 | E80: 2019 | F80: 2020 | G80: 2021 | H80: 2022 | I80: 2023 | J80: 2024 | K80: 2025 | L80: 2026 | M80: 2027 | N80: 2028 | O80: 2029 | P80: 2030 | Q80: 2031 | R80: 2032 | S80: 2033 | T80: 2034 | U80: 2035 | V80: 2036 | W80: 2037 | X80: 2038 | Y80: 2039 | Z80: 2040 | AA80: 2041 | AB80: 2042 | AC80: 2043 | AD80: 2044 | AE80: 2045 | AF80: 2046 | AG80: 2047 | AH80: 2048 | AI80: 2049 | AJ80: 2050 | AK80: 2051 | AL80: 2052 | AM80: 2053 | AN80: 2054 | AO80: 2055 | AP80: 2056 | AQ80: 2057 | AR80: 2058 | AS80: 2059 | AT80: 2060 | AU80: 2061 | AV80: 2062 | AW80: 2063 | AX80: 2064 | AY80: 2065 | AZ80: 2066 | BA80: 2067 | BB80: 2068 | BC80: 2069 | BD80: 2070 | BE80: 2071 | BF80: 2072 | BG80: 2073 | BH80: 2074 | BI80: 2075 | BJ80: 2076 | BK80: 2077 | BL80: 2078 | BM80: 2079 | BN80: 2080 | BO80: 2081 | BP80: 2082 | BQ80: 2083 | BR80: 2084 | BS80: 2085 | BT80: 2086 | BU80: 2087 | BV80: 2088 | BW80: 2089 | BX80: 2090 | BY80: 2091 | BZ80: 2092 | CA80: 2093 | CB80: 2094
A81: CF | B81: =bez_podpory!B30 -> -315466800 | C81: =bez_podpory!C30 -> -482664204 | D81: =bez_podpory!D30 -> -820529146.8 | E81: =bez_podpory!E30 -> -1673879459 | F81: =bez_podpory!F30 -> -3414714097 | G81: =bez_podpory!G30 -> -5224512569 | H81: =bez_podpory!H30 -> -7105337094 | I81: =bez_podpory!I30 -> -9059304794 | J81: =bez_podpory!J30 -> -1.293668725e+10 | K81: =bez_podpory!K30 -> -1.885060142e+10 | L81: =bez_podpory!L30 -> -2.307313613e+10 | M81: =bez_podpory!M30 -> -2.941824857e+10 | N81: =bez_podpory!N30 -> -3.000661354e+10 | O81: =bez_podpory!O30 -> -2.652584637e+10 | P81: =bez_podpory!P30 -> -1.040629358e+10 | Q81: =bez_podpory!Q30 -> -8491535558 | R81: =bez_podpory!R30 -> -4330683135 | S81: =bez_podpory!S30 -> -1104324199 | T81: =bez_podpory!T30 -> -1126410683 | U81: =bez_podpory!U30 -> 1331038787 | V81: =bez_podpory!V30 -> 2982565915 | W81: =bez_podpory!W30 -> 2787402374 | X81: =bez_podpory!X30 -> 2592028530 | Y81: =bez_podpory!Y30 -> 2396440179 | Z81: =bez_podpory!Z30 -> 2200633030 | AA81: =bez_podpory!AA30 -> 2004602706 | AB81: =bez_podpory!AB30 -> 1808344745 | AC81: =bez_podpory!AC30 -> 1611854594 | AD81: =bez_podpory!AD30 -> 1415127609 | AE81: =bez_podpory!AE30 -> 1218159054 | AF81: =bez_podpory!AF30 -> 1020944096 | AG81: =bez_podpory!AG30 -> 823477807.5 | AH81: =bez_podpory!AH30 -> 625755162.7 | AI81: =bez_podpory!AI30 -> 427771033.9 | AJ81: =bez_podpory!AJ30 -> 229520191.5 | AK81: =bez_podpory!AK30 -> 30997301.22 | AL81: =bez_podpory!AL30 -> -167803077.9 | AM81: =bez_podpory!AM30 -> -366886495.5 | AN81: =bez_podpory!AN30 -> -566258612.6 | AO81: =bez_podpory!AO30 -> -765925203 | AP81: =bez_podpory!AP30 -> -781243707 | AQ81: =bez_podpory!AQ30 -> -796868581.2 | AR81: =bez_podpory!AR30 -> -812805952.8 | AS81: =bez_podpory!AS30 -> -829062071.8 | AT81: =bez_podpory!AT30 -> -845643313.3 | AU81: =bez_podpory!AU30 -> -862556179.6 | AV81: =bez_podpory!AV30 -> -879807303.1 | AW81: =bez_podpory!AW30 -> -897403449.2 | AX81: =bez_podpory!AX30 -> -915351518.2 | AY81: =bez_podpory!AY30 -> -933658548.6 | AZ81: =bez_podpory!AZ30 -> -952331719.5 | BA81: =bez_podpory!BA30 -> -971378353.9 | BB81: =bez_podpory!BB30 -> -990805921 | BC81: =bez_podpory!BC30 -> -1010622039 | BD81: =bez_podpory!BD30 -> -1030834480 | BE81: =bez_podpory!BE30 -> -1051451170 | BF81: =bez_podpory!BF30 -> -1072480193 | BG81: =bez_podpory!BG30 -> -1093929797 | BH81: =bez_podpory!BH30 -> -1115808393 | BI81: =bez_podpory!BI30 -> -1138124561 | BJ81: =bez_podpory!BJ30 -> -1160887052 | BK81: =bez_podpory!BK30 -> -1184104793 | BL81: =bez_podpory!BL30 -> -1207786889 | BM81: =bez_podpory!BM30 -> -1231942627 | BN81: =bez_podpory!BN30 -> -1256581479 | BO81: =bez_podpory!BO30 -> -1281713109 | BP81: =bez_podpory!BP30 -> -1307347371 | BQ81: =bez_podpory!BQ30 -> -1333494318 | BR81: =bez_podpory!BR30 -> -1360164205 | BS81: =bez_podpory!BS30 -> -1387367489 | BT81: =bez_podpory!BT30 -> -1415114839 | BU81: =bez_podpory!BU30 -> -1443417136 | BV81: =bez_podpory!BV30 -> -1472285478 | BW81: =bez_podpory!BW30 -> -1501731188 | BX81: =bez_podpory!BX30 -> -1531765812 | BY81: =bez_podpory!BY30 -> -1562401128 | BZ81: =bez_podpory!BZ30 -> -1593649150 | CA81: =bez_podpory!CA30 -> -1625522133 | CB81: =bez_podpory!CB30 -> -1658032576
A82: DCF | B82: =bez_podpory!B31 -> -315466800 | C82: =bez_podpory!C31 -> -451088041.1 | D82: =bez_podpory!D31 -> -716681934.5 | E82: =bez_podpory!E31 -> -1366384249 | F82: =bez_podpory!F31 -> -2605069035 | G82: =bez_podpory!G31 -> -3725005256 | H82: =bez_podpory!H31 -> -4734586120 | I82: =bez_podpory!I31 -> -5641679722 | J82: =bez_podpory!J31 -> -7529269760 | K82: =bez_podpory!K31 -> -1.025347818e+10 | L82: =bez_podpory!L31 -> -1.172921242e+10 | M82: =bez_podpory!M31 -> -1.397639798e+10 | N82: =bez_podpory!N31 -> -1.332329527e+10 | O82: =bez_podpory!O31 -> -1.100728319e+10 | P82: =bez_podpory!P31 -> -4035740064 | Q82: =bez_podpory!Q31 -> -3077723264 | R82: =bez_podpory!R31 -> -1466952210 | S82: =bez_podpory!S31 -> -349600760.3 | T82: =bez_podpory!T31 -> -333264276.2 | U82: =bez_podpory!U31 -> 368043316.1 | V82: =bez_podpory!V31 -> 770751709.6 | W82: =bez_podpory!W31 -> 673194151.2 | X82: =bez_podpory!X31 -> 585054963.8 | Y82: =bez_podpory!Y31 -> 505521586.9 | Z82: =bez_podpory!Z31 -> 433847363.5 | AA82: =bez_podpory!AA31 -> 369346399.9 | AB82: =bez_podpory!AB31 -> 311388815 | AC82: =bez_podpory!AC31 -> 259396351.9 | AD82: =bez_podpory!AD31 -> 212838323.3 | AE82: =bez_podpory!AE31 -> 171227866.1 | AF82: =bez_podpory!AF31 -> 134118482.6 | AG82: =bez_podpory!AG31 -> 101100846.4 | AH82: =bez_podpory!AH31 -> 71799853.06 | AI82: =bez_podpory!AI31 -> 45871897.98 | AJ82: =bez_podpory!AJ31 -> 23002363.18 | AK82: =bez_podpory!AK31 -> 2903298.333 | AL82: =bez_podpory!AL31 -> -14688719.1 | AM82: =bez_podpory!AM31 -> -30014557.99 | AN82: =bez_podpory!AN31 -> -43294354.46 | AO82: =bez_podpory!AO31 -> -54729191.27 | AP82: =bez_podpory!AP31 -> -52171752.42 | AQ82: =bez_podpory!AQ31 -> -49733820.07 | AR82: =bez_podpory!AR31 -> -47409809.78 | AS82: =bez_podpory!AS31 -> -45194398.11 | AT82: =bez_podpory!AT31 -> -43082510.35 | AU82: =bez_podpory!AU31 -> -41069308.93 | AV82: =bez_podpory!AV31 -> -39150182.34 | AW82: =bez_podpory!AW31 -> -37320734.57 | AX82: =bez_podpory!AX31 -> -35576775.01 | AY82: =bez_podpory!AY31 -> -33914308.89 | AZ82: =bez_podpory!AZ31 -> -32329528.1 | BA82: =bez_podpory!BA31 -> -30818802.49 | BB82: =bez_podpory!BB31 -> -29378671.53 | BC82: =bez_podpory!BC31 -> -28005836.41 | BD82: =bez_podpory!BD31 -> -26697152.47 | BE82: =bez_podpory!BE31 -> -25449621.98 | BF82: =bez_podpory!BF31 -> -24260387.31 | BG82: =bez_podpory!BG31 -> -23126724.35 | BH82: =bez_podpory!BH31 -> -22046036.29 | BI82: =bez_podpory!BI31 -> -21015847.68 | BJ82: =bez_podpory!BJ31 -> -20033798.73 | BK82: =bez_podpory!BK31 -> -19097639.91 | BL82: =bez_podpory!BL31 -> -18205226.83 | BM82: =bez_podpory!BM31 -> -17354515.29 | BN82: =bez_podpory!BN31 -> -16543556.63 | BO82: =bez_podpory!BO31 -> -15770493.24 | BP82: =bez_podpory!BP31 -> -15033554.3 | BQ82: =bez_podpory!BQ31 -> -14331051.77 | BR82: =bez_podpory!BR31 -> -13661376.45 | BS82: =bez_podpory!BS31 -> -13022994.37 | BT82: =bez_podpory!BT31 -> -12414443.23 | BU82: =bez_podpory!BU31 -> -11834329.06 | BV82: =bez_podpory!BV31 -> -11281323.03 | BW82: =bez_podpory!BW31 -> -10754158.41 | BX82: =bez_podpory!BX31 -> -10251627.64 | BY82: =bez_podpory!BY31 -> -9772579.618 | BZ82: =bez_podpory!BZ31 -> -9315917.019 | CA82: =bez_podpory!CA31 -> -8880593.794 | CB82: =bez_podpory!CB31 -> -8465612.776
A104: Průběh CF a DCF projektu s podporou CfD (SP dle listu CfD)
A105: rok | B105: 2016 | C105: 2017 | D105: 2018 | E105: 2019 | F105: 2020 | G105: 2021 | H105: 2022 | I105: 2023 | J105: 2024 | K105: 2025 | L105: 2026 | M105: 2027 | N105: 2028 | O105: 2029 | P105: 2030 | Q105: 2031 | R105: 2032 | S105: 2033 | T105: 2034 | U105: 2035 | V105: 2036 | W105: 2037 | X105: 2038 | Y105: 2039 | Z105: 2040 | AA105: 2041 | AB105: 2042 | AC105: 2043 | AD105: 2044 | AE105: 2045 | AF105: 2046 | AG105: 2047 | AH105: 2048 | AI105: 2049 | AJ105: 2050 | AK105: 2051 | AL105: 2052 | AM105: 2053 | AN105: 2054 | AO105: 2055 | AP105: 2056 | AQ105: 2057 | AR105: 2058 | AS105: 2059 | AT105: 2060 | AU105: 2061 | AV105: 2062 | AW105: 2063 | AX105: 2064 | AY105: 2065 | AZ105: 2066 | BA105: 2067 | BB105: 2068 | BC105: 2069 | BD105: 2070 | BE105: 2071 | BF105: 2072 | BG105: 2073 | BH105: 2074 | BI105: 2075 | BJ105: 2076 | BK105: 2077 | BL105: 2078 | BM105: 2079 | BN105: 2080 | BO105: 2081 | BP105: 2082 | BQ105: 2083 | BR105: 2084 | BS105: 2085 | BT105: 2086 | BU105: 2087 | BV105: 2088 | BW105: 2089 | BX105: 2090 | BY105: 2091 | BZ105: 2092 | CA105: 2093 | CB105: 2094
A106: CF | B106: =CfD!B20 -> -315466800 | C106: =CfD!C20 -> -482664204 | D106: =CfD!D20 -> -820529146.8 | E106: =CfD!E20 -> -1673879459 | F106: =CfD!F20 -> -3414714097 | G106: =CfD!G20 -> -5224512569 | H106: =CfD!H20 -> -7105337094 | I106: =CfD!I20 -> -9059304794 | J106: =CfD!J20 -> -1.293668725e+10 | K106: =CfD!K20 -> -1.885060142e+10 | L106: =CfD!L20 -> -2.307313613e+10 | M106: =CfD!M20 -> -2.941824857e+10 | N106: =CfD!N20 -> -3.000661354e+10 | O106: =CfD!O20 -> -2.652584637e+10 | P106: =CfD!P20 -> -1.040629358e+10 | Q106: =CfD!Q20 -> -8491535558 | R106: =CfD!R20 -> -4330683135 | S106: =CfD!S20 -> -1104324199 | T106: =CfD!T20 -> -1126410683 | U106: =CfD!U20 -> 2.349501583e+10 | V106: =CfD!V20 -> 2.55898225e+10 | W106: =CfD!W20 -> 2.584680409e+10 | X106: =CfD!X20 -> 2.611261828e+10 | Y106: =CfD!Y20 -> 2.638744172e+10 | Z106: =CfD!Z20 -> 2.66714546e+10 | AA106: =CfD!AA20 -> 2.696484071e+10 | AB106: =CfD!AB20 -> 2.726778751e+10 | AC106: =CfD!AC20 -> 2.758048622e+10 | AD106: =CfD!AD20 -> 2.790313186e+10 | AE106: =CfD!AE20 -> 2.823592339e+10 | AF106: =CfD!AF20 -> 2.857906372e+10 | AG106: =CfD!AG20 -> 2.893275983e+10 | AH106: =CfD!AH20 -> 2.929722282e+10 | AI106: =CfD!AI20 -> 2.967266804e+10 | AJ106: =CfD!AJ20 -> 3.005931514e+10 | AK106: =CfD!AK20 -> 3.045738815e+10 | AL106: =CfD!AL20 -> 3.086711559e+10 | AM106: =CfD!AM20 -> 3.128873055e+10 | AN106: =CfD!AN20 -> 3.172247077e+10 | AO106: =CfD!AO20 -> 3.216857877e+10 | AP106: =CfD!AP20 -> 3.281195034e+10 | AQ106: =CfD!AQ20 -> 3.346818935e+10 | AR106: =CfD!AR20 -> 3.413755314e+10 | AS106: =CfD!AS20 -> 3.48203042e+10 | AT106: =CfD!AT20 -> 3.551671028e+10 | AU106: =CfD!AU20 -> 3.622704449e+10 | AV106: =CfD!AV20 -> 3.695158538e+10 | AW106: =CfD!AW20 -> 3.769061708e+10 | AX106: =CfD!AX20 -> 3.844442943e+10 | AY106: =CfD!AY20 -> -933658548.6 | AZ106: =CfD!AZ20 -> -952331719.5 | BA106: =CfD!BA20 -> -971378353.9 | BB106: =CfD!BB20 -> -990805921 | BC106: =CfD!BC20 -> -1010622039 | BD106: =CfD!BD20 -> -1030834480 | BE106: =CfD!BE20 -> -1051451170 | BF106: =CfD!BF20 -> -1072480193 | BG106: =CfD!BG20 -> -1093929797 | BH106: =CfD!BH20 -> -1115808393 | BI106: =CfD!BI20 -> -1138124561 | BJ106: =CfD!BJ20 -> -1160887052 | BK106: =CfD!BK20 -> -1184104793 | BL106: =CfD!BL20 -> -1207786889 | BM106: =CfD!BM20 -> -1231942627 | BN106: =CfD!BN20 -> -1256581479 | BO106: =CfD!BO20 -> -1281713109 | BP106: =CfD!BP20 -> -1307347371 | BQ106: =CfD!BQ20 -> -1333494318 | BR106: =CfD!BR20 -> -1360164205 | BS106: =CfD!BS20 -> -1387367489 | BT106: =CfD!BT20 -> -1415114839 | BU106: =CfD!BU20 -> -1443417136 | BV106: =CfD!BV20 -> -1472285478 | BW106: =CfD!BW20 -> -1501731188 | BX106: =CfD!BX20 -> -1531765812 | BY106: =CfD!BY20 -> -1562401128 | BZ106: =CfD!BZ20 -> -1593649150 | CA106: =CfD!CA20 -> -1625522133 | CB106: =CfD!CB20 -> -1658032576
A107: DCF | B107: =CfD!B21 -> -315466800 | C107: =CfD!C21 -> -451088041.1 | D107: =CfD!D21 -> -716681934.5 | E107: =CfD!E21 -> -1366384249 | F107: =CfD!F21 -> -2605069035 | G107: =CfD!G21 -> -3725005256 | H107: =CfD!H21 -> -4734586120 | I107: =CfD!I21 -> -5641679722 | J107: =CfD!J21 -> -7529269760 | K107: =CfD!K21 -> -1.025347818e+10 | L107: =CfD!L21 -> -1.172921242e+10 | M107: =CfD!M21 -> -1.397639798e+10 | N107: =CfD!N21 -> -1.332329527e+10 | O107: =CfD!O21 -> -1.100728319e+10 | P107: =CfD!P21 -> -4035740064 | Q107: =CfD!Q21 -> -3077723264 | R107: =CfD!R21 -> -1466952210 | S107: =CfD!S21 -> -349600760.3 | T107: =CfD!T21 -> -333264276.2 | U107: =CfD!U21 -> 6496567661 | V107: =CfD!V21 -> 6612896412 | W107: =CfD!W21 -> 6242341438 | X107: =CfD!X21 -> 5893961723 | Y107: =CfD!Y21 -> 5566348591 | Z107: =CfD!Z21 -> 5258187124 | AA107: =CfD!AA21 -> 4968249723 | AB107: =CfD!AB21 -> 4695390114 | AC107: =CfD!AC21 -> 4438537777 | AD107: =CfD!AD21 -> 4196692766 | AE107: =CfD!AE21 -> 3968920886 | AF107: =CfD!AF21 -> 3754349212 | AG107: =CfD!AG21 -> 3552161915 | AH107: =CfD!AH21 -> 3361596386 | AI107: =CfD!AI21 -> 3181939621 | AJ107: =CfD!AJ21 -> 3012524866 | AK107: =CfD!AK21 -> 2852728488 | AL107: =CfD!AL21 -> 2701967069 | AM107: =CfD!AM21 -> 2559694698 | AN107: =CfD!AN21 -> 2425400450 | AO107: =CfD!AO21 -> 2298606043 | AP107: =CfD!AP21 -> 2191194546 | AQ107: =CfD!AQ21 -> 2088802277 | AR107: =CfD!AR21 -> 1991194694 | AS107: =CfD!AS21 -> 1898148213 | AT107: =CfD!AT21 -> 1809449698 | AU107: =CfD!AU21 -> 1724895974 | AV107: =CfD!AV21 -> 1644293359 | AW107: =CfD!AW21 -> 1567457220 | AX107: =CfD!AX21 -> 1494211556 | AY107: =CfD!AY21 -> -33914308.89 | AZ107: =CfD!AZ21 -> -32329528.1 | BA107: =CfD!BA21 -> -30818802.49 | BB107: =CfD!BB21 -> -29378671.53 | BC107: =CfD!BC21 -> -28005836.41 | BD107: =CfD!BD21 -> -26697152.47 | BE107: =CfD!BE21 -> -25449621.98 | BF107: =CfD!BF21 -> -24260387.31 | BG107: =CfD!BG21 -> -23126724.35 | BH107: =CfD!BH21 -> -22046036.29 | BI107: =CfD!BI21 -> -21015847.68 | BJ107: =CfD!BJ21 -> -20033798.73 | BK107: =CfD!BK21 -> -19097639.91 | BL107: =CfD!BL21 -> -18205226.83 | BM107: =CfD!BM21 -> -17354515.29 | BN107: =CfD!BN21 -> -16543556.63 | BO107: =CfD!BO21 -> -15770493.24 | BP107: =CfD!BP21 -> -15033554.3 | BQ107: =CfD!BQ21 -> -14331051.77 | BR107: =CfD!BR21 -> -13661376.45 | BS107: =CfD!BS21 -> -13022994.37 | BT107: =CfD!BT21 -> -12414443.23 | BU107: =CfD!BU21 -> -11834329.06 | BV107: =CfD!BV21 -> -11281323.03 | BW107: =CfD!BW21 -> -10754158.41 | BX107: =CfD!BX21 -> -10251627.64 | BY107: =CfD!BY21 -> -9772579.618 | BZ107: =CfD!BZ21 -> -9315917.019 | CA107: =CfD!CA21 -> -8880593.794 | CB107: =CfD!CB21 -> -8465612.776
A129: Citlivost NPV projektu na výši strike price CfD
A130: Strike price | B130: 50 | C130: 55 | D130: 60 | E130: 65 | F130: 70 | G130: 75 | H130: 80 | I130: 85 | J130: 90 | K130: 95 | L130: 100 | M130: 105 | N130: 110 | O130: 115 | P130: 120 | Q130: 125 | R130: 130
A131: NPV bez tepla | B131: -6.052121202e+10 | C131: -5.435951418e+10 | D131: -4.819781634e+10 | E131: -4.203611849e+10 | F131: -3.587442065e+10 | G131: -2.971272281e+10 | H131: -2.355102496e+10 | I131: -1.738932712e+10 | J131: -1.122762927e+10 | K131: -5065931431 | L131: 1095766413 | M131: 7257464256 | N131: 1.34191621e+10 | O131: 1.958085994e+10 | P131: 2.574255779e+10 | Q131: 3.190425563e+10 | R131: 3.806595347e+10
A132: NPV s teplem | B132: -4.301315339e+10 | C132: -3.705885881e+10 | D132: -3.110456423e+10 | E132: -2.515026965e+10 | F132: -1.919597507e+10 | G132: -1.324168049e+10 | H132: -7287385908 | I132: -1333091327 | J132: 4621203254 | K132: 1.057549783e+10 | L132: 1.652979242e+10 | M132: 2.2484087e+10 | N132: 2.843838158e+10 | O132: 3.439267616e+10 | P132: 4.034697074e+10 | Q132: 4.630126532e+10 | R132: 5.22555599e+10
A154: Citlivost strike price pro NPV=0 na délce kontraktu
A155: Délka kontraktu | B155: 15 | C155: 20 | D155: 25 | E155: 30 | F155: 35 | G155: 40 | H155: 45 | I155: 50 | J155: 55 | K155: 60
A156: SP bez tepla | B156: 135.799012 | C156: 116.9420158 | D156: 106.0449604 | E156: 99.11082429 | F156: 94.42448899 | G156: 91.1270336 | H156: 88.74050131 | I156: 86.97778757 | J156: 85.65619399 | K156: 84.65416681
A157: SP s teplem | B157: 116.4703657 | C157: 100.870594 | D157: 91.8558192 | E157: 86.11943683 | F157: 82.24258604 | G157: 79.51470985 | H157: 77.54041031 | I157: 76.08217532 | J157: 74.9888645 | K157: 74.15992042
A179: Citlivost projektu bez podpory na výši overnight cost
A180: Overnight cost | B180: 3000 | C180: 3500 | D180: 4000 | E180: 4500 | F180: 5000 | G180: 5500 | H180: 6000 | I180: 6500 | J180: 7000
A181: Netto investice | B181: 86 | C181: 100 | D181: 115 | E181: 129 | F181: 143 | G181: 158 | H181: 172 | I181: 186 | J181: 201
A182: NPV | B182: -5.186348496e+10 | C182: -6.002784292e+10 | D182: -6.819220089e+10 | E182: -7.635655885e+10 | F182: -8.452091681e+10 | G182: -9.268527477e+10 | H182: -1.008496327e+11 | I182: -1.090139907e+11 | J182: -1.171783487e+11
A206: Citlivost projektu s podporou CfD na velikost investice
A207: Overnight cost | B207: 3000 | C207: 3500 | D207: 4000 | E207: 4500 | F207: 5000 | G207: 5500 | H207: 6000 | I207: 6500 | J207: 7000
A208: Netto investice | B208: 86 | C208: 100 | D208: 115 | E208: 129 | F208: 143 | G208: 158 | H208: 172 | I208: 186 | J208: 201
A209: NPV | B209: 4.08217898e+10 | C209: 3.265743184e+10 | D209: 2.449307388e+10 | E209: 1.632871592e+10 | F209: 8164357961 | G209: 0 | H209: -8164357961 | I209: -1.632871592e+10 | J209: -2.449307388e+10
A232: Citlivost SP projektu s podporou CfD na velikost investice
A233: Overnight cost | B233: 3000 | C233: 3500 | D233: 4000 | E233: 4500 | F233: 5000 | G233: 5500 | H233: 6000 | I233: 6500 | J233: 7000
A234: Netto investice | B234: 86 | C234: 100 | D234: 115 | E234: 129 | F234: 143 | G234: 158 | H234: 172 | I234: 186 | J234: 201
A235: SP | B235: 66 | C235: 72.6 | D235: 79.2 | E235: 85.9 | F235: 92.5 | G235: 99.1 | H235: 105.7 | I235: 112.4 | J235: 119

Sheet pomocny (hidden)
A1: scénáře | B1: odpisy | C1: teplo
A2: 5 % | B2: degresivní | C2: ano
A3: 7 % | B3: lineární | C3: ne
A4: 10 %
